{"text_format":"1","workbook":"xlsx","n_sheets":7,"sheets":["1","2.1","2","2.1_2","2.1_2_2","4","5"],"not_rendered":{"charts":0,"images":0,"macros":0,"external_links":0,"defined_names":12,"comments":0,"pivot_tables":0},"unopened":[],"bounds":{"document_bytes":16777216,"sheet_cells":100000,"rows_first":2000,"rows_last":500,"rows_between":2000,"halvings":0,"cell_chars":16384,"cell_head_chars":4096},"cells_cut":0,"cells_raw":0,"read":"whole","date_system":"1900"}

{"sheet":"1","index":0,"n_rows":54,"n_cols":99,"rows_kept":54,"cut":false,"hidden":false,"merged":[[0,46,0,107],[1,46,1,107],[2,45,2,107],[3,46,3,107],[4,46,4,107],[5,46,5,107],[8,34,8,107],[9,33,9,107],[10,33,10,107],[11,78,11,107],[12,34,12,70],[12,76,12,107],[13,65,13,68],[13,72,13,89],[13,90,13,93],[13,94,13,97],[16,12,16,97],[16,167,16,170],[17,0,17,107],[18,25,18,91],[20,92,20,107],[21,92,21,107],[22,37,22,40],[22,44,22,61],[22,62,22,65],[22,66,22,69],[22,92,22,107],[23,92,23,107],[24,92,24,107],[25,33,28,73],[25,92,25,107],[26,92,26,107],[27,92,27,107],[28,92,28,107],[29,32,29,73],[29,92,29,107],[30,0,31,51],[30,92,30,107],[33,45,34,91],[36,45,37,104],[40,0,40,107],[42,66,42,106],[43,0,43,107],[44,65,44,106],[45,0,45,107],[46,77,46,106],[54,0,54,107],[47,0,47,107],[49,0,49,107],[50,0,50,102],[51,0,51,107],[52,0,52,107],[53,0,53,107]]}
[null,null,null,null,null,null,null,null,null,null,null,null,null,null,null,null,null,null,null,null,null,null,null,null,null,null,null,null,null,null,null,null,null,null,null,null,null,null,null,null,null,null,null,null,null,null,"Приложение "]
[null,null,null,null,null,null,null,null,null,null,null,null,null,null,null,null,null,null,null,null,null,null,null,null,null,null,null,null,null,null,null,null,null,null,null,null,null,null,null,null,null,null,null,null,null,null,"к Порядку составления и утверждения плана"]
[null,null,null,null,null,null,null,null,null,null,null,null,null,null,null,null,null,null,null,null,null,null,null,null,null,null,null,null,null,null,null,null,null,null,null,null,null,null,null,null,null,null,null,null,null,"        финансово-хозяйственной деятельности "]
[null,null,null,null,null,null,null,null,null,null,null,null,null,null,null,null,null,null,null,null,null,null,null,null,null,null,null,null,null,null,null,null,null,null,null,null,null,null,null,null,null,null,null,null,"     государственных учреждений Самарской области,",null,"государственного учреждения Самарской области,"]
[null,null,null,null,null,null,null,null,null,null,null,null,null,null,null,null,null,null,null,null,null,null,null,null,null,null,null,null,null,null,null,null,null,null,null,null,null,null,null,null,null,null,null,null,null,null," находящихся в ведении министерства"]
[null,null,null,null,null,null,null,null,null,null,null,null,null,null,null,null,null,null,null,null,null,null,null,null,null,null,null,null,null,null,null,null,null,null,null,null,null,null,null,null,null,null,null,null,null,null,"образования и науки Самарской области"]
[]
[]
[null,null,null,null,null,null,null,null,null,null,null,null,null,null,null,null,null,null,null,null,null,null,null,null,null,null,null,null,null,null,null,null,null,null,"УТВЕРЖДАЮ"]
[null,null,null,null,null,null,null,null,null,null,null,null,null,null,null,null,null,null,null,null,null,null,null,null,null,null,null,null,null,null,null,null,null,"Руководителю СВУ МО и НСО"]
[null,null,null,null,null,null,null,null,null,null,null,null,null,null,null,null,null,null,null,null,null,null,null,null,null,null,null,null,null,null,null,null,null,"(наименование должности лица, утверждающего документ)"]
[null,null,null,null,null,null,null,null,null,null,null,null,null,null,null,null,null,null,null,null,null,null,null,null,null,null,null,null,null,null,null,null,null,"  ____________________________",null,null,null,null,null,null,null,null,null,null,null,null,null,null,null,null,null,null,null,null,null,null,null,null,null,null,null,null,null,null,null,null,null,null,null,null,null,null,null,null,null,null,null,null,"А.Н.Каврын"]
[null,null,null,null,null,null,null,null,null,null,null,null,null,null,null,null,null,null,null,null,null,null,null,null,null,null,null,null,null,null,null,null,null,null,"(подпись)",null,null,null,null,null,null,null,null,null,null,null,null,null,null,null,null,null,null,null,null,null,null,null,null,null,null,null,null,null,null,null,null,null,null,null,null,null,null,null,null,null,"(расшифровка подписи)"]
[null,null,null,null,null,null,null,null,null,null,null,null,null,null,null,null,null,null,null,null,null,null,null,null,null,null,null,null,null,null,null,null,null,null,null,null,null,null,null,null,null,null,null,null,null,null,null,null,null,null,null,null,null,null,null,null,null,null,null,null,null,null,null,null,"\"",null,null,null,null,"\"",null,null,null,null,null,null,null,null,null,null,null,null,null,null,null,null,null,null,null,null,20,null,null,null,"18",null,null,null," г."]
[]
[]
[1,null,null,null,null,null,null,null,null,null,null,null,"План финансово-хозяйственной деятельности"]
["на 2018 год и на плановый период 2019 и 2020 годов",null,null,null,null,null,null,null,null,null,null,null,null,null,null,null,null,null,null,null,null,null,null,null,null,null,null,null,null,null,null,null,null,null,null,null,null,null,null,null,null,null,null,null,null,null,null,null,null,null,null,null,"на 20",null,null,null,null," год и плановый период"]
[null,null,null,null,null,null,null,null,null,null,null,null,null,null,null,null,null,null,null,null,null,null,null,null,null,"\"           \"                              2018г."]
[]
[null,null,null,null,null,null,null,null,null,null,null,null,null,null,null,null,null,null,null,null,null,null,null,null,null,null,null,null,null,null,null,null,null,null,null,null,null,null,null,null,null,null,null,null,null,null,null,null,null,null,null,null,null,null,null,null,null,null,null,null,null,null,null,null,null,null,null,null,null,null,null,null,null,null,null,null,null,null,null,null,null,null,null,null,null,null,null,null,null,null,null,null,"КОДЫ"]
[null,null,null,null,null,null,null,null,null,null,null,null,null,null,null,null,null,null,null,null,null,null,null,null,null,null,null,null,null,null,null,null,null,null,null,null,null,null,null,null,null,null,null,null,null,null,null,null,null,null,null,null,null,null,null,null,null,null,null,null,null,null,null,null,null,null,null,null,null,null,null,null,null,null,null,null,null,null,null,null,null,null,null,null,null,null,null,null,null,null,"Форма по КФД"]
[null,null,null,null,null,null,null,null,null,null,null,null,null,null,null,null,null,null,null,null,null,null,null,null,null,null,null,null,null,null,null,null,null,null,null,null,null,null,null,null,null,null,null,null,null,null,null,null,null,null,null,null,null,null,null,null,null,null,null,null,null,null,null,null,null,null,null,null,null,null,null,null,null,null,null,null,null,null,null,null,null,null,null,null,null,null,null,null,null,null,"Дата"]
[]
[]
["Наименование ",null,null,null,null,null,null,null,null,null,null,null,null,null,null,null,null,null,null,null,null,null,null,null,null,null,null,null,null,null,null,null,null,"государственное бюджетное общеобразовательное учреждение Самарской области средняя общеобразовательная школа имени Героя Советского Союза Василия Степановича Чекмасова с.Большое Микушкино муниципального района Исаклинский Самарской области",null,null,null,null,null,null,null,null,null,null,null,null,null,null,null,null,null,null,null,null,null,null,null,null,null,null,null,null,null,null,null,null,null,null,null,null,null,null,null,null,null,null,null,null,null,null,null,null,null,null,null,null,null,null,null,null,"по ОКПО",null,"48101414"]
["государственного учреждения"]
[]
[]
["ИНН/КПП",null,null,null,null,null,null,null,null,null,null,null,null,null,null,null,null,null,null,null,null,null,null,null,null,null,null,null,null,null,null,null,"6381018855/638101001"]
["Единица измерения: рубли (с точностью до двух знаков после запятой - 0,00)",null,null,null,null,null,null,null,null,null,null,null,null,null,null,null,null,null,null,null,null,null,null,null,null,null,null,null,null,null,null,null,null,null,null,null,null,null,null,null,null,null,null,null,null,null,null,null,null,null,null,null,null,null,null,null,null,null,null,null,null,null,null,null,null,null,null,null,null,null,null,null,null,null,null,null,null,null,null,null,null,null,null,null,null,null,null,null,null,null,"по ОКЕИ",null,"383"]
[]
[]
["Наименование органа, осуществляющего",null,null,null,null,null,null,null,null,null,null,null,null,null,null,null,null,null,null,null,null,null,null,null,null,null,null,null,null,null,null,null,null,null,null,null,null,null,null,null,null,null,null,null,null,"Министерство образования и науки Самарской области"]
["функции и полномочия учредителя"]
[]
["Адрес фактического местонахождения",null,null,null,null,null,null,null,null,null,null,null,null,null,null,null,null,null,null,null,null,null,null,null,null,null,null,null,null,null,null,null,null,null,null,null,null,null,null,null,null,null,null,null,null,"446592, Российская Федерация, Самарская область. Исаклинский район, с.Большое Микушкино, д. 104"]
[" государственного учреждения"]
[]
[]
["I. Сведения о деятельности  государственного учреждения "]
[]
["1.1. Цели деятельности  государственного учреждения :"]
["Представление гражданам Российской Федерации, проживающим на территории Самарской области, образовательных услуг по основным общеобразовательным программам в целях обеспечения государственных гарантий прав граждан на получение общедоступного и бесплатного дошкольного,начального общего,основного общего,среднего (полного) общего образования,а также дополнительного образования, в общеобразовательных учреждениях; формирования общей культуры личности обучающихся на основе усвоения обязательного минимума содержания общеобразовательных программ; адаптация обучающихся к жизни в обществе; созданияе основы для осознанного выбора обучающимися и последующего освоения ими профессиональных образовательных программ,воспитания гражданственности, трудолюбия, уважения к правам и свободам человека, любви к окружающей природе, родному краю, семье, формирования здорового образа жизни."]
["1.2. Виды деятельности  государственного учреждения :"]
["Образование основное общее , образование дошкольное , образование начальное общее ,образование среднее общее"]
["1.3. Перечень услуг (работ), осуществляемых на платной основе:"]
[]
[]
["1.4. Общая балансовая стоимость недвижимого государственного имущества на дату "]
["составления плана:0,00"]
[]
["1.5.Общая балансовая стоимость движимого государственного имущества на дату составления Плана 7118244,86"]
[" в том числе балансовая стоимость особо ценного движимого имущества: 2929600,00"]

{"sheet":"2.1","index":1,"n_rows":130,"n_cols":139,"rows_kept":130,"cut":false,"hidden":false,"merged":[[7,68,7,144],[9,130,9,144],[1,118,2,143],[3,0,3,129],[5,0,9,42],[5,43,9,43],[5,44,8,48],[5,49,8,49],[5,50,5,144],[6,50,6,143],[7,50,9,67],[10,85,10,99],[10,100,10,114],[10,115,10,129],[8,68,9,82],[8,83,9,83],[8,84,9,84],[8,85,9,99],[8,100,9,114],[8,115,8,144],[9,115,9,129],[10,131,10,144],[11,0,11,42],[11,50,11,67],[11,68,11,82],[11,85,11,99],[11,100,11,114],[11,115,11,129],[10,0,10,42],[10,50,10,67],[10,68,10,82],[13,68,13,82],[13,85,13,99],[13,100,13,114],[13,115,13,129],[12,0,12,42],[12,50,12,67],[12,68,12,82],[12,85,12,99],[12,100,12,114],[12,115,12,129],[13,131,13,144],[14,0,14,42],[14,50,14,67],[14,68,14,82],[14,85,14,99],[14,100,14,114],[14,115,14,129],[14,131,14,144],[13,0,13,42],[13,50,13,67],[15,0,15,42],[15,50,15,67],[16,0,16,42],[16,50,16,67],[17,0,17,42],[17,50,17,67],[17,115,17,129],[18,0,18,42],[18,50,18,67],[18,115,18,129],[19,0,19,42],[19,50,19,67],[19,68,19,82],[19,85,19,99],[19,100,19,114],[19,131,19,144],[20,0,20,42],[20,50,20,67],[20,68,20,82],[20,85,20,99],[20,100,20,114],[20,115,20,129],[21,0,21,42],[21,50,21,67],[21,68,21,82],[21,85,21,99],[21,100,21,114],[21,115,21,129],[22,0,22,42],[22,50,22,67],[23,0,23,42],[23,50,23,67],[24,0,24,42],[24,50,24,67],[25,0,25,42],[25,50,25,67],[26,0,26,42],[26,50,26,67],[27,0,27,42],[27,50,27,67],[28,0,28,42],[28,50,28,67],[29,0,29,42],[29,50,29,67],[30,0,30,42],[30,50,30,67],[31,0,31,42],[31,50,31,67],[32,0,32,42],[32,50,32,67],[32,68,32,82],[32,85,32,99],[32,100,32,114],[32,115,32,129],[32,131,32,144],[33,0,33,42],[33,50,33,67],[33,68,33,82],[33,85,33,99],[33,100,33,114],[33,115,33,129],[33,131,33,144],[35,115,35,129],[35,131,35,144],[34,0,34,42],[34,50,34,67],[34,68,34,82],[34,85,34,99],[34,100,34,114],[34,115,34,129],[36,68,36,82],[36,85,36,99],[36,100,36,114],[36,115,36,129],[34,131,34,144],[35,0,35,42],[35,50,35,67],[35,68,35,82],[35,85,35,99],[35,100,35,114],[36,131,36,144],[37,0,37,42],[37,50,37,67],[37,68,37,82],[37,85,37,99],[37,100,37,114],[37,115,37,129],[37,130,37,144],[36,0,36,42],[36,50,36,67],[38,0,38,42],[38,50,38,67],[38,68,38,82],[38,85,38,99],[38,100,38,114],[38,115,38,129],[39,0,39,42],[39,50,39,67],[39,68,39,82],[39,85,39,99],[39,100,39,114],[39,115,39,129],[40,0,40,42],[40,50,40,67],[41,0,41,42],[41,50,41,67],[42,0,42,42],[42,50,42,67],[43,0,43,42],[43,50,43,67],[44,0,44,42],[44,50,44,67],[45,0,45,42],[45,50,45,67],[46,0,46,42],[46,50,46,67],[46,115,46,130],[47,0,47,42],[47,50,47,67],[47,115,47,130],[50,85,50,99],[50,100,50,114],[50,115,50,129],[48,0,48,42],[48,50,48,67],[48,115,48,130],[49,0,49,42],[49,50,49,67],[49,115,49,130],[50,130,50,144],[51,0,51,42],[51,50,51,67],[51,68,51,82],[51,85,51,99],[51,100,51,114],[51,115,51,129],[50,0,50,42],[50,50,50,67],[50,68,50,82],[52,0,52,42],[52,50,52,67],[52,68,52,82],[52,85,52,99],[52,100,52,114],[52,115,52,129],[53,0,53,42],[53,50,53,67],[53,68,53,82],[53,85,53,99],[53,100,53,114],[53,115,53,129],[54,0,54,42],[54,50,54,67],[54,68,54,82],[54,85,54,99],[54,100,54,114],[54,115,54,129],[55,0,55,42],[55,50,55,67],[55,68,55,82],[55,85,55,99],[55,100,55,114],[55,115,55,129],[56,0,56,42],[56,50,56,67],[56,68,56,82],[56,85,56,99],[56,100,56,114],[56,115,56,129],[57,0,57,42],[57,50,57,67],[57,68,57,82],[57,85,57,99],[57,100,57,114],[57,115,57,129],[58,0,58,42],[58,50,58,67],[58,68,58,82],[58,85,58,99],[58,100,58,114],[58,115,58,129],[59,0,59,42],[59,50,59,67],[59,115,59,128],[60,0,60,42],[60,50,60,67],[60,115,60,128],[61,0,61,42],[61,50,61,67],[61,115,61,128],[62,0,62,42],[62,50,62,67],[62,115,62,128],[63,0,63,42],[63,50,63,67],[63,115,63,128],[64,0,64,42],[64,50,64,67],[64,68,64,82],[64,85,64,99],[64,100,64,114],[64,115,64,129],[64,130,64,144],[65,0,65,42],[65,50,65,67],[65,68,65,82],[65,85,65,99],[65,100,65,114],[65,115,65,129],[65,130,65,144],[67,115,67,129],[67,130,67,144],[66,0,66,42],[66,50,66,67],[66,68,66,82],[66,85,66,99],[66,100,66,114],[66,115,66,129],[68,68,68,82],[68,85,68,99],[68,100,68,114],[68,115,68,129],[66,130,66,144],[67,0,67,42],[67,50,67,67],[67,68,67,82],[67,85,67,99],[67,100,67,114],[68,130,68,144],[69,0,69,42],[69,50,69,67],[69,68,69,82],[69,85,69,99],[69,100,69,114],[69,115,69,129],[69,130,69,144],[68,0,68,42],[68,50,68,67],[71,115,71,129],[71,131,71,144],[70,0,70,42],[70,50,70,67],[70,68,70,82],[70,85,70,99],[70,100,70,114],[70,115,70,129],[72,68,72,82],[72,85,72,99],[72,100,72,114],[72,115,72,129],[70,130,70,144],[71,0,71,42],[71,50,71,67],[71,68,71,82],[71,85,71,99],[71,100,71,114],[72,131,72,144],[73,0,73,42],[73,50,73,67],[73,68,73,82],[73,85,73,99],[73,100,73,114],[73,115,73,129],[73,130,73,144],[72,0,72,42],[72,50,72,67],[74,0,74,42],[74,50,74,67],[74,68,74,82],[74,85,74,99],[74,100,74,114],[74,115,74,129],[74,130,74,144],[75,0,75,42],[75,50,75,67],[75,115,75,130],[75,131,75,144],[76,0,76,42],[76,50,76,67],[76,68,76,82],[76,85,76,99],[76,100,76,114],[77,0,77,42],[77,50,77,67],[77,68,77,82],[77,85,77,99],[77,100,77,114],[77,115,77,129],[78,68,78,82],[78,85,78,99],[78,100,78,114],[78,115,78,129],[76,115,76,129],[76,131,76,144],[77,130,77,144],[78,130,78,144],[79,0,79,42],[79,50,79,67],[79,68,79,82],[79,85,79,99],[79,100,79,114],[79,115,79,129],[79,131,79,144],[78,0,78,42],[78,50,78,67],[81,115,81,129],[81,131,81,144],[80,0,80,42],[80,50,80,67],[80,68,80,82],[80,85,80,99],[80,100,80,114],[80,115,80,129],[82,68,82,82],[82,85,82,99],[82,100,82,114],[82,115,82,129],[80,131,80,144],[81,0,81,42],[81,50,81,67],[81,68,81,82],[81,85,81,99],[81,100,81,114],[82,131,82,144],[83,0,83,42],[83,50,83,67],[83,68,83,82],[83,85,83,99],[83,100,83,114],[83,115,83,129],[83,131,83,144],[82,0,82,42],[82,50,82,67],[85,115,85,129],[85,130,85,144],[84,0,84,42],[84,50,84,67],[84,68,84,82],[84,85,84,99],[84,100,84,114],[84,115,84,129],[86,68,86,82],[86,85,86,99],[86,100,86,114],[86,115,86,129],[84,131,84,144],[85,0,85,42],[85,50,85,67],[85,68,85,82],[85,85,85,99],[85,100,85,114],[86,130,86,144],[87,0,87,42],[87,50,87,67],[87,68,87,82],[87,85,87,99],[87,100,87,114],[87,115,87,129],[87,130,87,144],[86,0,86,42],[86,50,86,67],[89,100,89,114],[89,115,89,129],[89,130,89,144],[88,0,88,42],[88,50,88,67],[88,68,88,82],[88,85,88,99],[88,100,88,114],[88,115,88,129],[90,130,90,144],[91,0,91,42],[91,50,91,67],[91,115,91,128],[91,130,91,144],[88,130,88,144],[89,0,89,42],[89,50,89,67],[89,68,89,82],[89,85,89,99],[92,68,92,82],[92,85,92,99],[92,100,92,114],[92,115,92,129],[90,0,90,42],[90,50,90,67],[92,130,92,144],[93,0,93,42],[93,50,93,67],[93,68,93,82],[93,85,93,99],[93,100,93,114],[93,115,93,129],[93,130,93,144],[92,0,92,42],[92,50,92,67],[95,115,95,129],[95,130,95,144],[94,0,94,42],[94,50,94,67],[94,68,94,82],[94,85,94,99],[94,100,94,114],[94,115,94,129],[96,68,96,82],[96,85,96,99],[96,100,96,114],[96,115,96,129],[94,130,94,144],[95,0,95,42],[95,50,95,67],[95,68,95,82],[95,85,95,99],[95,100,95,114],[96,130,96,144],[97,0,97,42],[97,50,97,67],[97,68,97,82],[97,85,97,99],[97,100,97,114],[97,115,97,129],[97,130,97,144],[96,0,96,42],[96,50,96,67],[99,115,99,129],[99,130,99,144],[98,0,98,42],[98,50,98,67],[98,68,98,82],[98,85,98,99],[98,100,98,114],[98,115,98,129],[100,68,100,82],[100,85,100,99],[100,100,100,114],[100,115,100,129],[98,130,98,144],[99,0,99,42],[99,50,99,67],[99,68,99,82],[99,85,99,99],[99,100,99,114],[100,130,100,144],[101,0,101,42],[101,50,101,67],[101,68,101,82],[101,85,101,99],[101,100,101,114],[101,115,101,129],[101,130,101,144],[100,0,100,42],[100,50,100,67],[103,115,103,129],[103,130,103,144],[102,0,102,42],[102,50,102,67],[102,68,102,82],[102,85,102,99],[102,100,102,114],[102,115,102,129],[104,68,104,82],[104,85,104,99],[104,100,104,114],[104,115,104,129],[102,130,102,144],[103,0,103,42],[103,50,103,67],[103,68,103,82],[103,85,103,99],[103,100,103,114],[104,130,104,144],[105,0,105,42],[105,50,105,67],[105,68,105,82],[105,85,105,99],[105,100,105,114],[105,115,105,129],[105,130,105,144],[104,0,104,42],[104,50,104,67],[107,115,107,129],[107,130,107,144],[106,0,106,42],[106,50,106,67],[106,68,106,82],[106,85,106,99],[106,100,106,114],[106,115,106,129],[108,68,108,82],[108,85,108,99],[108,100,108,114],[108,115,108,129],[106,130,106,144],[107,0,107,42],[107,50,107,67],[107,68,107,82],[107,85,107,99],[107,100,107,114],[108,130,108,144],[109,0,109,42],[109,50,109,67],[109,68,109,82],[109,85,109,99],[109,100,109,114],[109,115,109,129],[109,130,109,144],[108,0,108,42],[108,50,108,67],[111,115,111,129],[111,130,111,144],[110,0,110,42],[110,50,110,67],[110,68,110,82],[110,85,110,99],[110,100,110,114],[110,115,110,129],[112,68,112,82],[112,85,112,99],[112,100,112,114],[112,115,112,129],[110,130,110,144],[111,0,111,42],[111,50,111,67],[111,68,111,82],[111,85,111,99],[111,100,111,114],[112,130,112,144],[113,0,113,42],[113,50,113,67],[113,68,113,82],[113,85,113,99],[113,100,113,114],[113,115,113,129],[113,130,113,144],[112,0,112,42],[112,50,112,67],[115,115,115,129],[115,130,115,144],[114,0,114,42],[114,50,114,67],[114,68,114,82],[114,85,114,99],[114,100,114,114],[114,115,114,129],[116,68,116,82],[116,85,116,99],[116,100,116,114],[116,115,116,129],[114,130,114,144],[115,0,115,42],[115,50,115,67],[115,68,115,82],[115,85,115,99],[115,100,115,114],[116,130,116,144],[117,0,117,42],[117,50,117,67],[117,68,117,82],[117,85,117,99],[117,100,117,114],[117,115,117,129],[117,130,117,144],[116,0,116,42],[116,50,116,67],[119,115,119,129],[119,130,119,144],[118,0,118,42],[118,50,118,67],[118,68,118,82],[118,85,118,99],[118,100,118,114],[118,115,118,129],[120,68,120,82],[120,85,120,99],[120,100,120,114],[120,115,120,129],[118,130,118,144],[119,0,119,42],[119,50,119,67],[119,68,119,82],[119,85,119,99],[119,100,119,114],[120,130,120,144],[121,0,121,42],[121,50,121,67],[121,68,121,82],[121,85,121,99],[121,100,121,114],[121,115,121,129],[121,130,121,144],[120,0,120,42],[120,50,120,67],[123,130,123,144],[122,0,122,42],[122,50,122,67],[122,68,122,82],[122,85,122,99],[122,100,122,114],[122,115,122,129],[125,0,125,144],[127,0,127,144],[129,0,129,144],[122,130,122,144],[123,0,123,42],[123,50,123,67],[123,68,123,82],[123,85,123,99],[123,100,123,114],[123,115,123,129]]}
[]
[null,null,null,null,null,null,null,null,null,null,null,null,null,null,null,null,null,null,null,null,null,null,null,null,null,null,null,null,null,null,null,null,null,null,null,null,null,null,null,null,null,null,null,null,null,null,null,null,null,null,null,null,null,null,null,null,null,null,null,null,null,null,null,null,null,null,null,null,null,null,null,null,null,null,null,null,null,null,null,null,null,null,null,null,null,null,null,null,null,null,null,null,null,null,null,null,null,null,null,null,null,null,null,null,null,null,null,null,null,null,null,null,null,null,null,null,null,null,"Таблица 2"]
[]
["III. Показатели по поступлениям и выплатам государственного учреждения "]
[]
["Наименование показателя",null,null,null,null,null,null,null,null,null,null,null,null,null,null,null,null,null,null,null,null,null,null,null,null,null,null,null,null,null,null,null,null,null,null,null,null,null,null,null,null,null,null,"Код строки","Коды бюджетной классификации                                                  Российской федерации",null,null,null,null,"Код дополнительной классификации","Объем финансового обеспечения, руб. (с точностью до двух знаков после запятой - 0,00) "]
[null,null,null,null,null,null,null,null,null,null,null,null,null,null,null,null,null,null,null,null,null,null,null,null,null,null,null,null,null,null,null,null,null,null,null,null,null,null,null,null,null,null,null,null,null,null,null,null,null,null,"2018 год  (очередной финансовый год)"]
[null,null,null,null,null,null,null,null,null,null,null,null,null,null,null,null,null,null,null,null,null,null,null,null,null,null,null,null,null,null,null,null,null,null,null,null,null,null,null,null,null,null,null,null,null,null,null,null,null,null,"Всего",null,null,null,null,null,null,null,null,null,null,null,null,null,null,null,null,null,"в том числе"]
[null,null,null,null,null,null,null,null,null,null,null,null,null,null,null,null,null,null,null,null,null,null,null,null,null,null,null,null,null,null,null,null,null,null,null,null,null,null,null,null,null,null,null,null,null,null,null,null,null,null,null,null,null,null,null,null,null,null,null,null,null,null,null,null,null,null,null,null,"средства областного бюджета, поступающие из федерального бюджета",null,null,null,null,null,null,null,null,null,null,null,null,null,null,"субсидии на финансовое обеспечение выполнения государственного задания","субсидии, предоставляемые в соответствии с абзацем пункта 1 статьи 78.1 Бюджетного кодекса Российской Федерации (целевые субсидии) ","субсидии на осуществление капитальных вложений",null,null,null,null,null,null,null,null,null,null,null,null,null,null,"средства обязательного медицинского страхования",null,null,null,null,null,null,null,null,null,null,null,null,null,null,"поступления от оказания услуг (выполнения работ) на платной основе и от иной приносящей доход деятельности"]
[null,null,null,null,null,null,null,null,null,null,null,null,null,null,null,null,null,null,null,null,null,null,null,null,null,null,null,null,null,null,null,null,null,null,null,null,null,null,null,null,null,null,null,null,"Код раздела","Код подраздела","Код целевой статьи расходов","Код операций сектора государственного управления          (для поступрений)","Код вида расходов                                         (для выплат)","Код\nэкономической классификации расходов",null,null,null,null,null,null,null,null,null,null,null,null,null,null,null,null,null,null,null,null,null,null,null,null,null,null,null,null,null,null,null,null,null,null,null,null,null,null,null,null,null,null,null,null,null,null,null,null,null,null,null,null,null,null,null,null,null,null,null,null,null,null,null,null,null,"всего",null,null,null,null,null,null,null,null,null,null,null,null,null,null,"из них гранты"]
[1,null,null,null,null,null,null,null,null,null,null,null,null,null,null,null,null,null,null,null,null,null,null,null,null,null,null,null,null,null,null,null,null,null,null,null,null,null,null,null,null,null,null,2,3,4,5,6,7,8,9,null,null,null,null,null,null,null,null,null,null,null,null,null,null,null,null,null,10,null,null,null,null,null,null,null,null,null,null,null,null,null,null,11,12,13,null,null,null,null,null,null,null,null,null,null,null,null,null,null,14,null,null,null,null,null,null,null,null,null,null,null,null,null,null,15,null,null,null,null,null,null,null,null,null,null,null,null,null,null,null,16]
["Поступления, всего:",null,null,null,null,null,null,null,null,null,null,null,null,null,null,null,null,null,null,null,null,null,null,null,null,null,null,null,null,null,null,null,null,null,null,null,null,null,null,null,null,null,null,100,"х","х","х","х","х","х",{"$f":"CF12+CG12+DL12","v":26973165.359999999},null,null,null,null,null,null,null,null,null,null,null,null,null,null,null,null,null,null,null,null,null,null,null,null,null,null,null,null,null,null,null,null,{"$f":"CF15","v":22494000},{"$f":"CG21","v":3720817},null,null,null,null,null,null,null,null,null,null,null,null,null,null,null,null,null,null,null,null,null,null,null,null,null,null,null,null,null,null,{"$f":"DL15","v":758348.36}]
["в том числе:",null,null,null,null,null,null,null,null,null,null,null,null,null,null,null,null,null,null,null,null,null,null,null,null,null,null,null,null,null,null,null,null,null,null,null,null,null,null,null,null,null,null,null,null,null,null,null,"х","х",{"$f":"SUM(BQ13:DZ13)","v":0},null,null,null,null,null,null,null,null,null,null,null,null,null,null,null,null,null,null,null,null,null,null,null,null,null,null,null,null,null,null,null,null,null,null,null,null,null,null,null,null,null,null,null,null,null,null,null,null,null,null,null,null,null,null,null,null,null,null,null,null,null,null,null,null," "]
["доходы от собственности (сдача в аренду государственного недвижимого имущества и прочее)",null,null,null,null,null,null,null,null,null,null,null,null,null,null,null,null,null,null,null,null,null,null,null,null,null,null,null,null,null,null,null,null,null,null,null,null,null,null,null,null,null,null,110,null,null,null,null,"х","х",{"$f":"SUM(BQ14:DZ14)","v":0},null,null,null,null,null,null,null,null,null,null,null,null,null,null,null,null,null,"х",null,null,null,null,null,null,null,null,null,null,null,null,null,null,"х","х","х",null,null,null,null,null,null,null,null,null,null,null,null,null,null,"х",null,null,null,null,null,null,null,null,null,null,null,null,null,null,null,null,null,null,null,null,null,null,null,null,null,null,null,null,null,null,"х"]
["доходы от оказания услуг, работ",null,null,null,null,null,null,null,null,null,null,null,null,null,null,null,null,null,null,null,null,null,null,null,null,null,null,null,null,null,null,null,null,null,null,null,null,null,null,null,null,null,null,120,null,null,null,"130","х","х",{"$f":"CF15+DL15","v":23252348.359999999},null,null,null,null,null,null,null,null,null,null,null,null,null,null,null,null,null,null,null,null,null,null,null,null,null,null,null,null,null,null,null,null,{"$f":"CF16+CF17","v":22494000},"х","х",null,null,null,null,null,null,null,null,null,null,null,null,null,null,null,null,null,null,null,null,null,null,null,null,null,null,null,null,null,{"$f":"DL19+DL18","v":758348.36}]
["доходы от оказания услуг, работ",null,null,null,null,null,null,null,null,null,null,null,null,null,null,null,null,null,null,null,null,null,null,null,null,null,null,null,null,null,null,null,null,null,null,null,null,null,null,null,null,null,null,null,"07","02","0210060300","130","х","х",{"$f":"CF16","v":14649000},null,null,null,null,null,null,null,null,null,null,null,null,null,null,null,null,null,null,null,null,null,null,null,null,null,null,null,null,null,null,null,null,14649000]
["доходы от оказания услуг, работ",null,null,null,null,null,null,null,null,null,null,null,null,null,null,null,null,null,null,null,null,null,null,null,null,null,null,null,null,null,null,null,null,null,null,null,null,null,null,null,null,null,null,null,"07","01","0210060350","130","х","х",{"$f":"CF17","v":7845000},null,null,null,null,null,null,null,null,null,null,null,null,null,null,null,null,null,null,null,null,null,null,null,null,null,null,null,null,null,null,null,null,7845000]
["доходы от оказания услуг, работ",null,null,null,null,null,null,null,null,null,null,null,null,null,null,null,null,null,null,null,null,null,null,null,null,null,null,null,null,null,null,null,null,null,null,null,null,null,null,null,null,null,null,null,"00","00","0000000000","130","х","х",{"$f":"DL18","v":722898.36},null,null,null,null,null,null,null,null,null,null,null,null,null,null,null,null,null,null,null,null,null,null,null,null,null,null,null,null,null,null,null,null,null,null,null,null,null,null,null,null,null,null,null,null,null,null,null,null,null,null,null,null,null,null,null,null,null,null,null,null,null,null,null,null,722898.36]
["доходы от оказания услуг, работ",null,null,null,null,null,null,null,null,null,null,null,null,null,null,null,null,null,null,null,null,null,null,null,null,null,null,null,null,null,null,null,null,null,null,null,null,null,null,null,null,null,null,null,"00","00","0000000000","180","х","х",{"$f":"DL19","v":35450},null,null,null,null,null,null,null,null,null,null,null,null,null,null,null,null,null,null,null,null,null,null,null,null,null,null,null,null,null,null,null,null,null,null,null,null,null,null,null,null,null,null,null,null,null,null,null,null,null,null,null,null,null,null,null,null,null,null,null,null,null,null,null,null,35450]
["доходы от штрафов, пеней, иных сумм принудительного изъятия",null,null,null,null,null,null,null,null,null,null,null,null,null,null,null,null,null,null,null,null,null,null,null,null,null,null,null,null,null,null,null,null,null,null,null,null,null,null,null,null,null,null,130,null,null,null,null,"х","х",{"$f":"SUM(BQ20:DZ20)","v":0},null,null,null,null,null,null,null,null,null,null,null,null,null,null,null,null,null,"х",null,null,null,null,null,null,null,null,null,null,null,null,null,null,"х","х","х",null,null,null,null,null,null,null,null,null,null,null,null,null,null,"х",null,null,null,null,null,null,null,null,null,null,null,null,null,null,null,null,null,null,null,null,null,null,null,null,null,null,null,null,null,null,"х"]
["целевые субсидии, предоставленные из бюджета",null,null,null,null,null,null,null,null,null,null,null,null,null,null,null,null,null,null,null,null,null,null,null,null,null,null,null,null,null,null,null,null,null,null,null,null,null,null,null,null,null,null,150,null,null,null,"180","х","х",{"$f":"CG21","v":3720817},null,null,null,null,null,null,null,null,null,null,null,null,null,null,null,null,null,null,null,null,null,null,null,null,null,null,null,null,null,null,null,null,"х",{"$f":"CG22+CG23+CG24+CG25+CG26+CG27+CG28+CG32+CG29+CG30+CG31+CG33+CG34+CG35","v":3720817},null,null,null,null,null,null,null,null,null,null,null,null,null,null,null,"х",null,null,null,null,null,null,null,null,null,null,null,null,null,null,"х",null,null,null,null,null,null,null,null,null,null,null,null,null,null,null,null,null,null,null,null,null,null,"х"]
["целевые субсидии, предоставленные из бюджета",null,null,null,null,null,null,null,null,null,null,null,null,null,null,null,null,null,null,null,null,null,null,null,null,null,null,null,null,null,null,null,null,null,null,null,null,null,null,null,null,null,null,null,"07","09","0210060340","180","х","х",0,null,null,null,null,null,null,null,null,null,null,null,null,null,null,null,null,null,null,null,null,null,null,null,null,null,null,null,null,null,null,null,null,"х",0,null,null,null,null,null,null,null,null,null,null,null,null,null,null,null,"х",null,null,null,null,null,null,null,null,null,null,null,null,null,null,"х",null,null,null,null,null,null,null,null,null,null,null,null,null,null,null,null,null,null,null,null,null,null,"х"]
["целевые субсидии, предоставленные из бюджета",null,null,null,null,null,null,null,null,null,null,null,null,null,null,null,null,null,null,null,null,null,null,null,null,null,null,null,null,null,null,null,null,null,null,null,null,null,null,null,null,null,null,null,"07","09","0210060440","180","х","х",1392000,null,null,null,null,null,null,null,null,null,null,null,null,null,null,null,null,null,null,null,null,null,null,null,null,null,null,null,null,null,null,null,null,null,1392000]
["целевые субсидии, предоставленные из бюджета",null,null,null,null,null,null,null,null,null,null,null,null,null,null,null,null,null,null,null,null,null,null,null,null,null,null,null,null,null,null,null,null,null,null,null,null,null,null,null,null,null,null,null,"07","01","0210060410","180","х","х",195000,null,null,null,null,null,null,null,null,null,null,null,null,null,null,null,null,null,null,null,null,null,null,null,null,null,null,null,null,null,null,null,null,null,195000]
["целевые субсидии, предоставленные из бюджета",null,null,null,null,null,null,null,null,null,null,null,null,null,null,null,null,null,null,null,null,null,null,null,null,null,null,null,null,null,null,null,null,null,null,null,null,null,null,null,null,null,null,null,"07","01","0210060450","180","х","х",20000,null,null,null,null,null,null,null,null,null,null,null,null,null,null,null,null,null,null,null,null,null,null,null,null,null,null,null,null,null,null,null,null,null,20000]
["целевые субсидии, предоставленные из бюджета",null,null,null,null,null,null,null,null,null,null,null,null,null,null,null,null,null,null,null,null,null,null,null,null,null,null,null,null,null,null,null,null,null,null,null,null,null,null,null,null,null,null,null,"07","02","0210060450","180","х","х",48000,null,null,null,null,null,null,null,null,null,null,null,null,null,null,null,null,null,null,null,null,null,null,null,null,null,null,null,null,null,null,null,null,null,48000]
["целевые субсидии, предоставленные из бюджета",null,null,null,null,null,null,null,null,null,null,null,null,null,null,null,null,null,null,null,null,null,null,null,null,null,null,null,null,null,null,null,null,null,null,null,null,null,null,null,null,null,null,null,"07","02","0210060530","180","х","х",478000,null,null,null,null,null,null,null,null,null,null,null,null,null,null,null,null,null,null,null,null,null,null,null,null,null,null,null,null,null,null,null,null,null,478000]
["целевые субсидии, предоставленные из бюджета",null,null,null,null,null,null,null,null,null,null,null,null,null,null,null,null,null,null,null,null,null,null,null,null,null,null,null,null,null,null,null,null,null,null,null,null,null,null,null,null,null,null,null,"07","01","0210062580","180","х","х",818000,null,null,null,null,null,null,null,null,null,null,null,null,null,null,null,null,null,null,null,null,null,null,null,null,null,null,null,null,null,null,null,null,null,818000]
["целевые субсидии, предоставленные из бюджета",null,null,null,null,null,null,null,null,null,null,null,null,null,null,null,null,null,null,null,null,null,null,null,null,null,null,null,null,null,null,null,null,null,null,null,null,null,null,null,null,null,null,null,"07","09","0210060520","180","х","х",162750,null,null,null,null,null,null,null,null,null,null,null,null,null,null,null,null,null,null,null,null,null,null,null,null,null,null,null,null,null,null,null,null,null,162750]
["целевые субсидии, предоставленные из бюджета",null,null,null,null,null,null,null,null,null,null,null,null,null,null,null,null,null,null,null,null,null,null,null,null,null,null,null,null,null,null,null,null,null,null,null,null,null,null,null,null,null,null,null,"07","09","0210060340","180","х","х",79641,null,null,null,null,null,null,null,null,null,null,null,null,null,null,null,null,null,null,null,null,null,null,null,null,null,null,null,null,null,null,null,null,null,79641]
["целевые субсидии, предоставленные из бюджета",null,null,null,null,null,null,null,null,null,null,null,null,null,null,null,null,null,null,null,null,null,null,null,null,null,null,null,null,null,null,null,null,null,null,null,null,null,null,null,null,null,null,null,"07","09","0210060310","180","х","х",45108,null,null,null,null,null,null,null,null,null,null,null,null,null,null,null,null,null,null,null,null,null,null,null,null,null,null,null,null,null,null,null,null,null,45108]
["целевые субсидии, предоставленные из бюджета",null,null,null,null,null,null,null,null,null,null,null,null,null,null,null,null,null,null,null,null,null,null,null,null,null,null,null,null,null,null,null,null,null,null,null,null,null,null,null,null,null,null,null,"07","09","9070065730","180","х","х",296360,null,null,null,null,null,null,null,null,null,null,null,null,null,null,null,null,null,null,null,null,null,null,null,null,null,null,null,null,null,null,null,null,null,296360]
["целевые субсидии, предоставленные из бюджета",null,null,null,null,null,null,null,null,null,null,null,null,null,null,null,null,null,null,null,null,null,null,null,null,null,null,null,null,null,null,null,null,null,null,null,null,null,null,null,null,null,null,null,"07","07","4120065900","180","х","х",{"$f":"SUM(BQ33:DZ33)","v":113697},null,null,null,null,null,null,null,null,null,null,null,null,null,null,null,null,null,"х",null,null,null,null,null,null,null,null,null,null,null,null,null,null,"х",113697,"х",null,null,null,null,null,null,null,null,null,null,null,null,null,null,"х"]
["целевые субсидии, предоставленные из бюджета",null,null,null,null,null,null,null,null,null,null,null,null,null,null,null,null,null,null,null,null,null,null,null,null,null,null,null,null,null,null,null,null,null,null,null,null,null,null,null,null,null,null,null,"07","02","9070066770","180","х","х",{"$f":"SUM(BQ34:DZ34)","v":56637},null,null,null,null,null,null,null,null,null,null,null,null,null,null,null,null,null,"х",null,null,null,null,null,null,null,null,null,null,null,null,null,null,"х",56637,"х",null,null,null,null,null,null,null,null,null,null,null,null,null,null,"х",null,null,null,null,null,null,null,null,null,null,null,null,null,null,null,null,null,null,null,null,null,null,null,null,null,null,null,null,null,"х","х"]
["целевые субсидии, предоставленные из бюджета",null,null,null,null,null,null,null,null,null,null,null,null,null,null,null,null,null,null,null,null,null,null,null,null,null,null,null,null,null,null,null,null,null,null,null,null,null,null,null,null,null,null,null,"07","01","9070066780","180","х","х",{"$f":"SUM(BQ35:DZ35)","v":15624},null,null,null,null,null,null,null,null,null,null,null,null,null,null,null,null,null,"х",null,null,null,null,null,null,null,null,null,null,null,null,null,null,"х",15624,"х",null,null,null,null,null,null,null,null,null,null,null,null,null,null,"х"]
[null,null,null,null,null,null,null,null,null,null,null,null,null,null,null,null,null,null,null,null,null,null,null,null,null,null,null,null,null,null,null,null,null,null,null,null,null,null,null,null,null,null,null,null,null,null,null,null,"х","х",{"$f":"SUM(BQ36:DZ36)","v":0},null,null,null,null,null,null,null,null,null,null,null,null,null,null,null,null,null,"х",null,null,null,null,null,null,null,null,null,null,null,null,null,null,"х","х","х",null,null,null,null,null,null,null,null,null,null,null,null,null,null,"х"]
["Расходы, всего:",null,null,null,null,null,null,null,null,null,null,null,null,null,null,null,null,null,null,null,null,null,null,null,null,null,null,null,null,null,null,null,null,null,null,null,null,null,null,null,null,null,null,200,"х","х","х","х","х","х",{"$f":"CF37+CG37+DL37","v":26975165.359999999},null,null,null,null,null,null,null,null,null,null,null,null,null,null,null,null,null,null,null,null,null,null,null,null,null,null,null,null,null,null,null,null,{"$f":"CF38+CF87+CF62+CF72","v":22494000},{"$f":"CG38+CG72+CG87+CG65","v":3720817},null,null,null,null,null,null,null,null,null,null,null,null,null,null,null,null,null,null,null,null,null,null,null,null,null,null,null,null,null,null,{"$f":"DL38+DL72+DL87","v":760348.36}]
["в том числе на выплаты персоналу, всего:",null,null,null,null,null,null,null,null,null,null,null,null,null,null,null,null,null,null,null,null,null,null,null,null,null,null,null,null,null,null,null,null,null,null,null,null,null,null,null,null,null,null,210,null,null,null,null,null,"210",{"$f":"CF38+CG38+DL38","v":24346011},null,null,null,null,null,null,null,null,null,null,null,null,null,null,null,null,null,null,null,null,null,null,null,null,null,null,null,null,null,null,null,null,{"$f":"CF39","v":21915000},{"$f":"CG39","v":2431011},null,null,null,null,null,null,null,null,null,null,null,null,null,null,null,null,null,null,null,null,null,null,null,null,null,null,null,null,null,null,{"$f":"DL39","v":0}]
["из них: оплата труда и начисления на выплаты по оплате труда ",null,null,null,null,null,null,null,null,null,null,null,null,null,null,null,null,null,null,null,null,null,null,null,null,null,null,null,null,null,null,null,null,null,null,null,null,null,null,null,null,null,null,211,"х","х","х","х","111,119","211,213",{"$f":"CF39+CG39+DL39","v":24346011},null,null,null,null,null,null,null,null,null,null,null,null,null,null,null,null,null,null,null,null,null,null,null,null,null,null,null,null,null,null,null,null,{"$f":"CF40+CF51","v":21915000},{"$f":"CG40+CG51","v":2431011},null,null,null,null,null,null,null,null,null,null,null,null,null,null,null,null,null,null,null,null,null,null,null,null,null,null,null,null,null,null,{"$f":"DL40+DL51+DL64","v":0}]
["Заработная плата",null,null,null,null,null,null,null,null,null,null,null,null,null,null,null,null,null,null,null,null,null,null,null,null,null,null,null,null,null,null,null,null,null,null,null,null,null,null,null,null,null,null,null,"х","х","х","х","111","211",{"$f":"CF40+CG40+DL40","v":18726602.73},null,null,null,null,null,null,null,null,null,null,null,null,null,null,null,null,null,null,null,null,null,null,null,null,null,null,null,null,null,null,null,null,{"$f":"CF41+CF42","v":16842797},{"$f":"CG43+CG44+CG45+CG46+CG48+CG47+CG49+CG50","v":1883805.73},null,null,null,null,null,null,null,null,null,null,null,null,null,null,null,null,null,null,null,null,null,null,null,null,null,null,null,null,null,null,{"$f":"DL50","v":0}]
["Заработная плата",null,null,null,null,null,null,null,null,null,null,null,null,null,null,null,null,null,null,null,null,null,null,null,null,null,null,null,null,null,null,null,null,null,null,null,null,null,null,null,null,null,null,null,"07","02","0210060300",null,"111","211",{"$f":"CF41","v":11070908},null,null,null,null,null,null,null,null,null,null,null,null,null,null,null,null,null,null,null,null,null,null,null,null,null,null,null,null,null,null,null,null,11070908]
["Заработная плата",null,null,null,null,null,null,null,null,null,null,null,null,null,null,null,null,null,null,null,null,null,null,null,null,null,null,null,null,null,null,null,null,null,null,null,null,null,null,null,null,null,null,null,"07","01","0210060350",null,"111","211",{"$f":"CF42","v":5771889},null,null,null,null,null,null,null,null,null,null,null,null,null,null,null,null,null,null,null,null,null,null,null,null,null,null,null,null,null,null,null,null,5771889]
["Заработная плата",null,null,null,null,null,null,null,null,null,null,null,null,null,null,null,null,null,null,null,null,null,null,null,null,null,null,null,null,null,null,null,null,null,null,null,null,null,null,null,null,null,null,null,"07","09","0210060440",null,"111","211",{"$f":"CG43","v":639017},null,null,null,null,null,null,null,null,null,null,null,null,null,null,null,null,null,null,null,null,null,null,null,null,null,null,null,null,null,null,null,null,null,639017]
["Заработная плата",null,null,null,null,null,null,null,null,null,null,null,null,null,null,null,null,null,null,null,null,null,null,null,null,null,null,null,null,null,null,null,null,null,null,null,null,null,null,null,null,null,null,null,"07","01","0210060450",null,"111","211",14889,null,null,null,null,null,null,null,null,null,null,null,null,null,null,null,null,null,null,null,null,null,null,null,null,null,null,null,null,null,null,null,null,null,14889]
["Заработная плата",null,null,null,null,null,null,null,null,null,null,null,null,null,null,null,null,null,null,null,null,null,null,null,null,null,null,null,null,null,null,null,null,null,null,null,null,null,null,null,null,null,null,null,"07","02","0210060450",null,"111","211",36922,null,null,null,null,null,null,null,null,null,null,null,null,null,null,null,null,null,null,null,null,null,null,null,null,null,null,null,null,null,null,null,null,null,36922]
["Заработная плата",null,null,null,null,null,null,null,null,null,null,null,null,null,null,null,null,null,null,null,null,null,null,null,null,null,null,null,null,null,null,null,null,null,null,null,null,null,null,null,null,null,null,null,"07","02","0210060530",null,"111","211",367268,null,null,null,null,null,null,null,null,null,null,null,null,null,null,null,null,null,null,null,null,null,null,null,null,null,null,null,null,null,null,null,null,null,367268]
["Заработная плата",null,null,null,null,null,null,null,null,null,null,null,null,null,null,null,null,null,null,null,null,null,null,null,null,null,null,null,null,null,null,null,null,null,null,null,null,null,null,null,null,null,null,null,"07","01","0210062580",null,"111","211",645209.93999999994,null,null,null,null,null,null,null,null,null,null,null,null,null,null,null,null,null,null,null,null,null,null,null,null,null,null,null,null,null,null,null,null,null,645209.93999999994]
["Заработная плата",null,null,null,null,null,null,null,null,null,null,null,null,null,null,null,null,null,null,null,null,null,null,null,null,null,null,null,null,null,null,null,null,null,null,null,null,null,null,null,null,null,null,null,"07","09","0210060520",null,"111","211",124999.79,null,null,null,null,null,null,null,null,null,null,null,null,null,null,null,null,null,null,null,null,null,null,null,null,null,null,null,null,null,null,null,null,null,124999.79]
["Заработная плата",null,null,null,null,null,null,null,null,null,null,null,null,null,null,null,null,null,null,null,null,null,null,null,null,null,null,null,null,null,null,null,null,null,null,null,null,null,null,null,null,null,null,null,"07","02","9070066770",null,"111","211",{"$f":"DL49","v":0},null,null,null,null,null,null,null,null,null,null,null,null,null,null,null,null,null,null,null,null,null,null,null,null,null,null,null,null,null,null,null,null,null,43500,null,null,null,null,null,null,null,null,null,null,null,null,null,null,null,null,null,null,null,null,null,null,null,null,null,null,null,null,null,null,0]
["Заработная плата",null,null,null,null,null,null,null,null,null,null,null,null,null,null,null,null,null,null,null,null,null,null,null,null,null,null,null,null,null,null,null,null,null,null,null,null,null,null,null,null,null,null,null,"07","01","9070066780",null,"111","211",{"$f":"DL50","v":0},null,null,null,null,null,null,null,null,null,null,null,null,null,null,null,null,null,null,null,null,null,null,null,null,null,null,null,null,null,null,null,null,null,12000,null,null,null,null,null,null,null,null,null,null,null,null,null,null,null,null,null,null,null,null,null,null,null,null,null,null,null,null,null,null,0]
["Начисления на выплаты по оплате труда\n",null,null,null,null,null,null,null,null,null,null,null,null,null,null,null,null,null,null,null,null,null,null,null,null,null,null,null,null,null,null,null,null,null,null,null,null,null,null,null,null,null,null,null,"х","х","х","х","119","213",{"$f":"CF51+CG51+DL51","v":5619408.2699999996},null,null,null,null,null,null,null,null,null,null,null,null,null,null,null,null,null,null,null,null,null,null,null,null,null,null,null,null,null,null,null,null,{"$f":"CF52+CF53","v":5072203},{"$f":"CG54+CG55+CG56+CG57+CG58+CG59+CG60+CG61","v":547205.27},null,null,null,null,null,null,null,null,null,null,null,null,null,null,null,null,null,null,null,null,null,null,null,null,null,null,null,null,null,null,{"$f":"DL61","v":0}]
["Начисления на выплаты по оплате труда\n",null,null,null,null,null,null,null,null,null,null,null,null,null,null,null,null,null,null,null,null,null,null,null,null,null,null,null,null,null,null,null,null,null,null,null,null,null,null,null,null,null,null,null,"07","02","0210060300",null,"119","213",{"$f":"CF52","v":3329092},null,null,null,null,null,null,null,null,null,null,null,null,null,null,null,null,null,null,null,null,null,null,null,null,null,null,null,null,null,null,null,null,3329092]
["Начисления на выплаты по оплате труда\n",null,null,null,null,null,null,null,null,null,null,null,null,null,null,null,null,null,null,null,null,null,null,null,null,null,null,null,null,null,null,null,null,null,null,null,null,null,null,null,null,null,null,null,"07","01","0210060350",null,"119","213",{"$f":"CF53","v":1743111},null,null,null,null,null,null,null,null,null,null,null,null,null,null,null,null,null,null,null,null,null,null,null,null,null,null,null,null,null,null,null,null,1743111]
["Начисления на выплаты по оплате труда\n",null,null,null,null,null,null,null,null,null,null,null,null,null,null,null,null,null,null,null,null,null,null,null,null,null,null,null,null,null,null,null,null,null,null,null,null,null,null,null,null,null,null,null,"07","09","0210060440",null,"119","213",{"$f":"CG54","v":192983},null,null,null,null,null,null,null,null,null,null,null,null,null,null,null,null,null,null,null,null,null,null,null,null,null,null,null,null,null,null,null,null,null,192983]
["Начисления на выплаты по оплате труда\n",null,null,null,null,null,null,null,null,null,null,null,null,null,null,null,null,null,null,null,null,null,null,null,null,null,null,null,null,null,null,null,null,null,null,null,null,null,null,null,null,null,null,null,"07","01","0210060450",null,"119","213",5111,null,null,null,null,null,null,null,null,null,null,null,null,null,null,null,null,null,null,null,null,null,null,null,null,null,null,null,null,null,null,null,null,null,5111]
["Начисления на выплаты по оплате труда\n",null,null,null,null,null,null,null,null,null,null,null,null,null,null,null,null,null,null,null,null,null,null,null,null,null,null,null,null,null,null,null,null,null,null,null,null,null,null,null,null,null,null,null,"07","02","0210060450",null,"119","213",11078,null,null,null,null,null,null,null,null,null,null,null,null,null,null,null,null,null,null,null,null,null,null,null,null,null,null,null,null,null,null,null,null,null,11078]
["Начисления на выплаты по оплате труда\n",null,null,null,null,null,null,null,null,null,null,null,null,null,null,null,null,null,null,null,null,null,null,null,null,null,null,null,null,null,null,null,null,null,null,null,null,null,null,null,null,null,null,null,"07","02","0210060530",null,"119","213",110732,null,null,null,null,null,null,null,null,null,null,null,null,null,null,null,null,null,null,null,null,null,null,null,null,null,null,null,null,null,null,null,null,null,110732]
["Начисления на выплаты по оплате труда\n",null,null,null,null,null,null,null,null,null,null,null,null,null,null,null,null,null,null,null,null,null,null,null,null,null,null,null,null,null,null,null,null,null,null,null,null,null,null,null,null,null,null,null,"07","01","0210062580",null,"119","213",172790.06,null,null,null,null,null,null,null,null,null,null,null,null,null,null,null,null,null,null,null,null,null,null,null,null,null,null,null,null,null,null,null,null,null,172790.06]
["Начисления на выплаты по оплате труда\n",null,null,null,null,null,null,null,null,null,null,null,null,null,null,null,null,null,null,null,null,null,null,null,null,null,null,null,null,null,null,null,null,null,null,null,null,null,null,null,null,null,null,null,"07","09","0210060520",null,"119","213",37750.21,null,null,null,null,null,null,null,null,null,null,null,null,null,null,null,null,null,null,null,null,null,null,null,null,null,null,null,null,null,null,null,null,null,37750.21]
["Начисления на выплаты по оплате труда\n",null,null,null,null,null,null,null,null,null,null,null,null,null,null,null,null,null,null,null,null,null,null,null,null,null,null,null,null,null,null,null,null,null,null,null,null,null,null,null,null,null,null,null,"07","01","9070066780",null,"119","213",{"$f":"DL60","v":0},null,null,null,null,null,null,null,null,null,null,null,null,null,null,null,null,null,null,null,null,null,null,null,null,null,null,null,null,null,null,null,null,null,3624,null,null,null,null,null,null,null,null,null,null,null,null,null,null,null,null,null,null,null,null,null,null,null,null,null,null,null,null,null,null,0]
["Начисления на выплаты по оплате труда\n",null,null,null,null,null,null,null,null,null,null,null,null,null,null,null,null,null,null,null,null,null,null,null,null,null,null,null,null,null,null,null,null,null,null,null,null,null,null,null,null,null,null,null,"07","02","9070066770",null,"119","213",{"$f":"DL61","v":0},null,null,null,null,null,null,null,null,null,null,null,null,null,null,null,null,null,null,null,null,null,null,null,null,null,null,null,null,null,null,null,null,null,13137,null,null,null,null,null,null,null,null,null,null,null,null,null,null,null,null,null,null,null,null,null,null,null,null,null,null,null,null,null,null,0]
["Прочие выплаты",null,null,null,null,null,null,null,null,null,null,null,null,null,null,null,null,null,null,null,null,null,null,null,null,null,null,null,null,null,null,null,null,null,null,null,null,null,null,null,null,null,null,212,"х","х","х","х","112","212",{"$f":"AY63+AY64","v":0},null,null,null,null,null,null,null,null,null,null,null,null,null,null,null,null,null,null,null,null,null,null,null,null,null,null,null,null,null,null,null,null,{"$f":"CF63+CF64","v":0},null,null,null,null,null,null,null,null,null,null,null,null,null,null,null,null,null,null,null,null,null,null,null,null,null,null,null,null,null,null,null,0]
["Прочие выплаты",null,null,null,null,null,null,null,null,null,null,null,null,null,null,null,null,null,null,null,null,null,null,null,null,null,null,null,null,null,null,null,null,null,null,null,null,null,null,null,null,null,null,null,"07","02","0210060300",null,"112","212",{"$f":"CF63","v":0},null,null,null,null,null,null,null,null,null,null,null,null,null,null,null,null,null,null,null,null,null,null,null,null,null,null,null,null,null,null,null,null,null,null,null,null,null,null,null,null,null,null,null,null,null,null,null,null,null,null,null,null,null,null,null,null,null,null,null,null,null,null,null,null,0]
["Прочие выплаты",null,null,null,null,null,null,null,null,null,null,null,null,null,null,null,null,null,null,null,null,null,null,null,null,null,null,null,null,null,null,null,null,null,null,null,null,null,null,null,null,null,null,null,"07","01","0210060350",null,"112","212",{"$f":"CF64","v":0},null,null,null,null,null,null,null,null,null,null,null,null,null,null,null,null,null,null,null,null,null,null,null,null,null,null,null,null,null,null,null,null,null,null,null,null,null,null,null,null,null,null,null,null,null,null,null,null,null,null,null,null,null,null,null,null,null,null,null,null,null,null,null,null,0]
["Социальные и иные выплаты населению, всего",null,null,null,null,null,null,null,null,null,null,null,null,null,null,null,null,null,null,null,null,null,null,null,null,null,null,null,null,null,null,null,null,null,null,null,null,null,null,null,null,null,null,220,null,null,null,null,null,null,{"$f":"SUM(BQ65:DZ65)","v":45108},null,null,null,null,null,null,null,null,null,null,null,null,null,null,null,null,null,null,null,null,null,null,null,null,null,null,null,null,null,null,null,null,null,{"$f":"CG67","v":45108}]
["из них: ",null,null,null,null,null,null,null,null,null,null,null,null,null,null,null,null,null,null,null,null,null,null,null,null,null,null,null,null,null,null,null,null,null,null,null,null,null,null,null,null,null,null,null,null,null,null,null,null,null,0]
["Пособия по социальной помощи населению",null,null,null,null,null,null,null,null,null,null,null,null,null,null,null,null,null,null,null,null,null,null,null,null,null,null,null,null,null,null,null,null,null,null,null,null,null,null,null,null,null,null,262,"07","09","0210060310",null,"360","262",45108,null,null,null,null,null,null,null,null,null,null,null,null,null,null,null,null,null,null,null,null,null,null,null,null,null,null,null,null,null,null,null,null,null,45108]
["Начисления на пособие",null,null,null,null,null,null,null,null,null,null,null,null,null,null,null,null,null,null,null,null,null,null,null,null,null,null,null,null,null,null,null,null,null,null,null,null,null,null,null,null,null,null,null,null,null,null,null,null,null,0]
["Пенсии, пособия, выплачиваемые организациями",null,null,null,null,null,null,null,null,null,null,null,null,null,null,null,null,null,null,null,null,null,null,null,null,null,null,null,null,null,null,null,null,null,null,null,null,null,null,null,null,null,null,null,null,null,null,null,null,null,0]
["Прочие расходы",null,null,null,null,null,null,null,null,null,null,null,null,null,null,null,null,null,null,null,null,null,null,null,null,null,null,null,null,null,null,null,null,null,null,null,null,null,null,null,null,null,null,null,null,null,null,null,null,null,0]
["Прочие расходы",null,null,null,null,null,null,null,null,null,null,null,null,null,null,null,null,null,null,null,null,null,null,null,null,null,null,null,null,null,null,null,null,null,null,null,null,null,null,null,null,null,null,null,null,null,null,null,null,null,0]
["Уплата налогов, сборов и иных платежей, всего",null,null,null,null,null,null,null,null,null,null,null,null,null,null,null,null,null,null,null,null,null,null,null,null,null,null,null,null,null,null,null,null,null,null,null,null,null,null,null,null,null,null,230,"х","х","х","х","х","х",{"$f":"CG72+DL72+CF72","v":65776},null,null,null,null,null,null,null,null,null,null,null,null,null,null,null,null,null,null,null,null,null,null,null,null,null,null,null,null,null,null,null,null,{"$f":"CF74+CF75+CF76+CF77+CF79","v":0},{"$f":"CG77+CG75","v":23326},null,null,null,null,null,null,null,null,null,null,null,null,null,null,null,null,null,null,null,null,null,null,null,null,null,null,null,null,null,null,{"$f":"DL75+DL76+DL79+DL78","v":42450}]
["из них",null,null,null,null,null,null,null,null,null,null,null,null,null,null,null,null,null,null,null,null,null,null,null,null,null,null,null,null,null,null,null,null,null,null,null,null,null,null,null,null,null,null,null,null,null,null,null,null,null,{"$f":"SUM(BQ73:DZ73)","v":0}]
["на уплату сборов по исполнению судебных актов и соглашений по возмещению аренды и т.д.",null,null,null,null,null,null,null,null,null,null,null,null,null,null,null,null,null,null,null,null,null,null,null,null,null,null,null,null,null,null,null,null,null,null,null,null,null,null,null,null,null,null,null,null,null,null,null,null,null,{"$f":"SUM(BQ74:DZ74)","v":0}]
["уплата налогов на имущество организаций и земельного налога",null,null,null,null,null,null,null,null,null,null,null,null,null,null,null,null,null,null,null,null,null,null,null,null,null,null,null,null,null,null,null,null,null,null,null,null,null,null,null,null,null,null,null,"07","02","0210060300",null,"851","291",{"$f":"SUM(BQ75:DZ75)","v":16326},null,null,null,null,null,null,null,null,null,null,null,null,null,null,null,null,null,null,null,null,null,null,null,null,null,null,null,null,null,null,null,null,0,16326,null,null,null,null,null,null,null,null,null,null,null,null,null,null,null,null,null,null,null,null,null,null,null,null,null,null,null,null,null,null,0]
["уплата прочих налогов, сборов",null,null,null,null,null,null,null,null,null,null,null,null,null,null,null,null,null,null,null,null,null,null,null,null,null,null,null,null,null,null,null,null,null,null,null,null,null,null,null,null,null,null,null,"00","00","0000000000",null,"852","291",{"$f":"DL76","v":1941},null,null,null,null,null,null,null,null,null,null,null,null,null,null,null,null,null,null,null,null,null,null,null,null,null,null,null,null,null,null,null,null,null,0,null,null,null,null,null,null,null,null,null,null,null,null,null,null,null,null,null,null,null,null,null,null,null,null,null,null,null,null,null,null,1941]
["уплата прочих налогов, сборов",null,null,null,null,null,null,null,null,null,null,null,null,null,null,null,null,null,null,null,null,null,null,null,null,null,null,null,null,null,null,null,null,null,null,null,null,null,null,null,null,null,null,null,"07","09","0210060440",null,"852","291",{"$f":"CG77","v":7000},null,null,null,null,null,null,null,null,null,null,null,null,null,null,null,null,null,null,null,null,null,null,null,null,null,null,null,null,null,null,null,null,null,7000]
["уплата иных платежей",null,null,null,null,null,null,null,null,null,null,null,null,null,null,null,null,null,null,null,null,null,null,null,null,null,null,null,null,null,null,null,null,null,null,null,null,null,null,null,null,null,null,null,"00","00","0000000000",null,"853","292",{"$f":"DL78","v":40509},null,null,null,null,null,null,null,null,null,null,null,null,null,null,null,null,null,null,null,null,null,null,null,null,null,null,null,null,null,null,null,null,null,0,null,null,null,null,null,null,null,null,null,null,null,null,null,null,null,null,null,null,null,null,null,null,null,null,null,null,null,null,null,null,40509]
["уплата иных платежей",null,null,null,null,null,null,null,null,null,null,null,null,null,null,null,null,null,null,null,null,null,null,null,null,null,null,null,null,null,null,null,null,null,null,null,null,null,null,null,null,null,null,null,"00","00","0000000000",null,"853","295",{"$f":"DL79","v":0},null,null,null,null,null,null,null,null,null,null,null,null,null,null,null,null,null,null,null,null,null,null,null,null,null,null,null,null,null,null,null,null,null,0,null,null,null,null,null,null,null,null,null,null,null,null,null,null,null,null,null,null,null,null,null,null,null,null,null,null,null,null,null,null,0]
["Безвозмездные перечисления организациям, всего",null,null,null,null,null,null,null,null,null,null,null,null,null,null,null,null,null,null,null,null,null,null,null,null,null,null,null,null,null,null,null,null,null,null,null,null,null,null,null,null,null,null,240,null,null,null,null,null,null,{"$f":"SUM(BQ80:DZ80)","v":0}]
["из них",null,null,null,null,null,null,null,null,null,null,null,null,null,null,null,null,null,null,null,null,null,null,null,null,null,null,null,null,null,null,null,null,null,null,null,null,null,null,null,null,null,null,null,null,null,null,null,null,null,0]
["Безвозмездные перечисления государственным и муниципальным организациям",null,null,null,null,null,null,null,null,null,null,null,null,null,null,null,null,null,null,null,null,null,null,null,null,null,null,null,null,null,null,null,null,null,null,null,null,null,null,null,null,null,null,null,null,null,null,null,null,null,0]
["Безвозмездные перечисления организациям, за исключением государственных и муниципальных организаций",null,null,null,null,null,null,null,null,null,null,null,null,null,null,null,null,null,null,null,null,null,null,null,null,null,null,null,null,null,null,null,null,null,null,null,null,null,null,null,null,null,null,null,null,null,null,null,null,null,0]
["Прочие расходы (кроме расходов на закупку товаров, работ, услуг)",null,null,null,null,null,null,null,null,null,null,null,null,null,null,null,null,null,null,null,null,null,null,null,null,null,null,null,null,null,null,null,null,null,null,null,null,null,null,null,null,null,null,250,null,null,null,null,null,null,0]
["из них",null,null,null,null,null,null,null,null,null,null,null,null,null,null,null,null,null,null,null,null,null,null,null,null,null,null,null,null,null,null,null,null,null,null,null,null,null,null,null,null,null,null,null,null,null,null,null,null,null,0]
["Прочие расходы",null,null,null,null,null,null,null,null,null,null,null,null,null,null,null,null,null,null,null,null,null,null,null,null,null,null,null,null,null,null,null,null,null,null,null,null,null,null,null,null,null,null,null,null,null,null,null,null,null,0]
["Расходы на закупку товаров, работ, услуг, всего",null,null,null,null,null,null,null,null,null,null,null,null,null,null,null,null,null,null,null,null,null,null,null,null,null,null,null,null,null,null,null,null,null,null,null,null,null,null,null,null,null,null,260,"х","х","х","х","х","х",{"$f":"CF87+CG87+DL87","v":2518270.36},null,null,null,null,null,null,null,null,null,null,null,null,null,null,null,null,null,null,null,null,null,null,null,null,null,null,null,null,null,null,null,null,{"$f":"CF89+CF97+CF99+CF108","v":579000},{"$f":"CG89+CG97+CG99+CG108+CG96","v":1221372},null,null,null,null,null,null,null,null,null,null,null,null,null,null,null,null,null,null,null,null,null,null,null,null,null,null,null,null,null,null,{"$f":"DL89+DL97+DL99+DL108","v":717898.36}]
["из них",null,null,null,null,null,null,null,null,null,null,null,null,null,null,null,null,null,null,null,null,null,null,null,null,null,null,null,null,null,null,null,null,null,null,null,null,null,null,null,null,null,null,null,null,null,null,null,null,null,{"$f":"SUM(BQ88:DZ88)","v":0}]
["Услуги связи",null,null,null,null,null,null,null,null,null,null,null,null,null,null,null,null,null,null,null,null,null,null,null,null,null,null,null,null,null,null,null,null,null,null,null,null,null,null,null,null,null,null,null,"х","х","х","х","244","221",{"$f":"CF89+CG89+DL89","v":107122.17},null,null,null,null,null,null,null,null,null,null,null,null,null,null,null,null,null,null,null,null,null,null,null,null,null,null,null,null,null,null,null,null,{"$f":"CF90+CF91","v":29795.37},{"$f":"CG92","v":76641},null,null,null,null,null,null,null,null,null,null,null,null,null,null,null,null,null,null,null,null,null,null,null,null,null,null,null,null,null,null,{"$f":"DL93","v":685.8}]
["Услуги связи",null,null,null,null,null,null,null,null,null,null,null,null,null,null,null,null,null,null,null,null,null,null,null,null,null,null,null,null,null,null,null,null,null,null,null,null,null,null,null,null,null,null,null,"07","02","0210060300",null,"244","221",{"$f":"CF90","v":27795.37},null,null,null,null,null,null,null,null,null,null,null,null,null,null,null,null,null,null,null,null,null,null,null,null,null,null,null,null,null,null,null,null,27795.37]
["Услуги связи",null,null,null,null,null,null,null,null,null,null,null,null,null,null,null,null,null,null,null,null,null,null,null,null,null,null,null,null,null,null,null,null,null,null,null,null,null,null,null,null,null,null,null,"07","01","0210060350",null,"244","221",{"$f":"CF91","v":2000},null,null,null,null,null,null,null,null,null,null,null,null,null,null,null,null,null,null,null,null,null,null,null,null,null,null,null,null,null,null,null,null,2000]
["Услуги связи",null,null,null,null,null,null,null,null,null,null,null,null,null,null,null,null,null,null,null,null,null,null,null,null,null,null,null,null,null,null,null,null,null,null,null,null,null,null,null,null,null,null,null,"07","09","0210060340",null,"244","221",{"$f":"CG92","v":76641},null,null,null,null,null,null,null,null,null,null,null,null,null,null,null,null,null,null,null,null,null,null,null,null,null,null,null,null,null,null,null,null,null,76641]
["Услуги связи",null,null,null,null,null,null,null,null,null,null,null,null,null,null,null,null,null,null,null,null,null,null,null,null,null,null,null,null,null,null,null,null,null,null,null,null,null,null,null,null,null,null,null,"00","00","0000000000",null,"244","221",{"$f":"DL93","v":685.8},null,null,null,null,null,null,null,null,null,null,null,null,null,null,null,null,null,null,null,null,null,null,null,null,null,null,null,null,null,null,null,null,null,null,null,null,null,null,null,null,null,null,null,null,null,null,null,null,null,null,null,null,null,null,null,null,null,null,null,null,null,null,null,null,685.8]
["Транспортные услуги",null,null,null,null,null,null,null,null,null,null,null,null,null,null,null,null,null,null,null,null,null,null,null,null,null,null,null,null,null,null,null,null,null,null,null,null,null,null,null,null,null,null,null,null,null,null,null,null,null,{"$f":"SUM(BQ94:DZ94)","v":0}]
["Коммунальные услуги",null,null,null,null,null,null,null,null,null,null,null,null,null,null,null,null,null,null,null,null,null,null,null,null,null,null,null,null,null,null,null,null,null,null,null,null,null,null,null,null,null,null,null,null,null,null,null,null,null,{"$f":"SUM(BQ95:DZ95)","v":0}]
["Арендная плата за пользование имуществом",null,null,null,null,null,null,null,null,null,null,null,null,null,null,null,null,null,null,null,null,null,null,null,null,null,null,null,null,null,null,null,null,null,null,null,null,null,null,null,null,null,null,null,"07","09","0210060440",null,"244","224",{"$f":"SUM(BQ96:DZ96)","v":39600},null,null,null,null,null,null,null,null,null,null,null,null,null,null,null,null,null,null,null,null,null,null,null,null,null,null,null,null,null,null,null,null,null,39600]
["Услуги по содержанию имущества",null,null,null,null,null,null,null,null,null,null,null,null,null,null,null,null,null,null,null,null,null,null,null,null,null,null,null,null,null,null,null,null,null,null,null,null,null,null,null,null,null,null,null,"х","х","х","х","244","225",{"$f":"CF97+CG97+DL97","v":80000},null,null,null,null,null,null,null,null,null,null,null,null,null,null,null,null,null,null,null,null,null,null,null,null,null,null,null,null,null,null,null,null,null,{"$f":"CG98","v":80000}]
["Услуги по содержанию имущества",null,null,null,null,null,null,null,null,null,null,null,null,null,null,null,null,null,null,null,null,null,null,null,null,null,null,null,null,null,null,null,null,null,null,null,null,null,null,null,null,null,null,null,"07","09","0210060440",null,"244","225",{"$f":"CG98","v":80000},null,null,null,null,null,null,null,null,null,null,null,null,null,null,null,null,null,null,null,null,null,null,null,null,null,null,null,null,null,null,null,null,null,80000]
["Прочие работы, услуги",null,null,null,null,null,null,null,null,null,null,null,null,null,null,null,null,null,null,null,null,null,null,null,null,null,null,null,null,null,null,null,null,null,null,null,null,null,null,null,null,null,null,null,"х","х","х","х","244","226",{"$f":"CF99+CG99+DL99","v":717148.67999999993},null,null,null,null,null,null,null,null,null,null,null,null,null,null,null,null,null,null,null,null,null,null,null,null,null,null,null,null,null,null,null,null,{"$f":"CF102+CF107+CF105","v":131789.08000000002},{"$f":"CG100+CG101+CG102+CG104+CG107+CG103+CG106","v":492045.4},null,null,null,null,null,null,null,null,null,null,null,null,null,null,null,null,null,null,null,null,null,null,null,null,null,null,null,null,null,null,{"$f":"DL101","v":93314.2}]
["Прочие работы, услуги",null,null,null,null,null,null,null,null,null,null,null,null,null,null,null,null,null,null,null,null,null,null,null,null,null,null,null,null,null,null,null,null,null,null,null,null,null,null,null,null,null,null,null,"07","09","0210060440",null,"244","226",{"$f":"CG100","v":78988.399999999994},null,null,null,null,null,null,null,null,null,null,null,null,null,null,null,null,null,null,null,null,null,null,null,null,null,null,null,null,null,null,null,null,null,78988.399999999994]
["Прочие работы, услуги",null,null,null,null,null,null,null,null,null,null,null,null,null,null,null,null,null,null,null,null,null,null,null,null,null,null,null,null,null,null,null,null,null,null,null,null,null,null,null,null,null,null,null,null,null,"0000000000",null,"244","226",{"$f":"DL101","v":93314.2},null,null,null,null,null,null,null,null,null,null,null,null,null,null,null,null,null,null,null,null,null,null,null,null,null,null,null,null,null,null,null,null,null,0,null,null,null,null,null,null,null,null,null,null,null,null,null,null,null,null,null,null,null,null,null,null,null,null,null,null,null,null,null,null,93314.2]
["Прочие работы, услуги",null,null,null,null,null,null,null,null,null,null,null,null,null,null,null,null,null,null,null,null,null,null,null,null,null,null,null,null,null,null,null,null,null,null,null,null,null,null,null,null,null,null,null,"07","02","0210060300",null,"244","226",{"$f":"CF102","v":100789.08},null,null,null,null,null,null,null,null,null,null,null,null,null,null,null,null,null,null,null,null,null,null,null,null,null,null,null,null,null,null,null,null,100789.08,0]
["Прочие работы, услуги",null,null,null,null,null,null,null,null,null,null,null,null,null,null,null,null,null,null,null,null,null,null,null,null,null,null,null,null,null,null,null,null,null,null,null,null,null,null,null,null,null,null,null,"07","09","9070065730",null,"244","226",{"$f":"CG103","v":296360},null,null,null,null,null,null,null,null,null,null,null,null,null,null,null,null,null,null,null,null,null,null,null,null,null,null,null,null,null,null,null,null,null,296360]
["Прочие работы, услуги",null,null,null,null,null,null,null,null,null,null,null,null,null,null,null,null,null,null,null,null,null,null,null,null,null,null,null,null,null,null,null,null,null,null,null,null,null,null,null,null,null,null,null,"07","09","0210060340",null,"244","226",{"$f":"CG104","v":3000},null,null,null,null,null,null,null,null,null,null,null,null,null,null,null,null,null,null,null,null,null,null,null,null,null,null,null,null,null,null,null,null,null,3000]
["Прочие расходы,услуги",null,null,null,null,null,null,null,null,null,null,null,null,null,null,null,null,null,null,null,null,null,null,null,null,null,null,null,null,null,null,null,null,null,null,null,null,null,null,null,null,null,null,null,"07","01","0210060350",null,"244","226",{"$f":"CF105","v":31000},null,null,null,null,null,null,null,null,null,null,null,null,null,null,null,null,null,null,null,null,null,null,null,null,null,null,null,null,null,null,null,null,31000,0]
["Прочие расходы,услуги",null,null,null,null,null,null,null,null,null,null,null,null,null,null,null,null,null,null,null,null,null,null,null,null,null,null,null,null,null,null,null,null,null,null,null,null,null,null,null,null,null,null,null,"07","07","4120065900",null,"244","226",{"$f":"CF106","v":0},null,null,null,null,null,null,null,null,null,null,null,null,null,null,null,null,null,null,null,null,null,null,null,null,null,null,null,null,null,null,null,null,null,113697]
["Прочие расходы,услуги",null,null,null,null,null,null,null,null,null,null,null,null,null,null,null,null,null,null,null,null,null,null,null,null,null,null,null,null,null,null,null,null,null,null,null,null,null,null,null,null,null,null,null,"07","09",230065610,null,"244","226",{"$f":"CF107","v":0},null,null,null,null,null,null,null,null,null,null,null,null,null,null,null,null,null,null,null,null,null,null,null,null,null,null,null,null,null,null,null,null,null,0]
["Увеличение стоимости материальных запасов",null,null,null,null,null,null,null,null,null,null,null,null,null,null,null,null,null,null,null,null,null,null,null,null,null,null,null,null,null,null,null,null,null,null,null,null,null,null,null,null,null,null,null,"х","х","х","х","244","340",{"$f":"CF108+CG108+DL108","v":1574399.5099999998},null,null,null,null,null,null,null,null,null,null,null,null,null,null,null,null,null,null,null,null,null,null,null,null,null,null,null,null,null,null,null,null,{"$f":"CF110+CF111","v":417415.55},{"$f":"CG109+CG113+CG112","v":533085.6},null,null,null,null,null,null,null,null,null,null,null,null,null,null,null,null,null,null,null,null,null,null,null,null,null,null,null,null,null,null,{"$f":"DL114","v":623898.36}]
["Увеличение стоимости материальных запасов",null,null,null,null,null,null,null,null,null,null,null,null,null,null,null,null,null,null,null,null,null,null,null,null,null,null,null,null,null,null,null,null,null,null,null,null,null,null,null,null,null,null,null,"07","09","0210060440",null,"244","340",{"$f":"CG109","v":338085.6},null,null,null,null,null,null,null,null,null,null,null,null,null,null,null,null,null,null,null,null,null,null,null,null,null,null,null,null,null,null,null,null,null,338085.6]
["Увеличение стоимости материальных запасов",null,null,null,null,null,null,null,null,null,null,null,null,null,null,null,null,null,null,null,null,null,null,null,null,null,null,null,null,null,null,null,null,null,null,null,null,null,null,null,null,null,null,null,"07","02","0210060300",null,"244","340",{"$f":"CF110","v":120415.55},null,null,null,null,null,null,null,null,null,null,null,null,null,null,null,null,null,null,null,null,null,null,null,null,null,null,null,null,null,null,null,null,120415.55]
["Увеличение стоимости материальных запасов",null,null,null,null,null,null,null,null,null,null,null,null,null,null,null,null,null,null,null,null,null,null,null,null,null,null,null,null,null,null,null,null,null,null,null,null,null,null,null,null,null,null,null,"07","01","0210060350",null,"244","340",{"$f":"CF111","v":297000},null,null,null,null,null,null,null,null,null,null,null,null,null,null,null,null,null,null,null,null,null,null,null,null,null,null,null,null,null,null,null,null,297000]
["Увеличение стоимости материальных запасов",null,null,null,null,null,null,null,null,null,null,null,null,null,null,null,null,null,null,null,null,null,null,null,null,null,null,null,null,null,null,null,null,null,null,null,null,null,null,null,null,null,null,null,"07","01","0210060410",null,"244","340",{"$f":"CG112","v":195000},null,null,null,null,null,null,null,null,null,null,null,null,null,null,null,null,null,null,null,null,null,null,null,null,null,null,null,null,null,null,null,null,null,195000]
["Увеличение стоимости материальных запасов",null,null,null,null,null,null,null,null,null,null,null,null,null,null,null,null,null,null,null,null,null,null,null,null,null,null,null,null,null,null,null,null,null,null,null,null,null,null,null,null,null,null,null,"07","01","0210060310",null,"244","340",{"$f":"CG113","v":0}]
["Увеличение стоимости материальных запасов",null,null,null,null,null,null,null,null,null,null,null,null,null,null,null,null,null,null,null,null,null,null,null,null,null,null,null,null,null,null,null,null,null,null,null,null,null,null,null,null,null,null,null,"00","00","0000000000",null,"244","340",{"$f":"DL114","v":623898.36},null,null,null,null,null,null,null,null,null,null,null,null,null,null,null,null,null,null,null,null,null,null,null,null,null,null,null,null,null,null,null,null,null,null,null,null,null,null,null,null,null,null,null,null,null,null,null,null,null,null,null,null,null,null,null,null,null,null,null,null,null,null,null,null,623898.36]
["Поступление финансовых активов, всего",null,null,null,null,null,null,null,null,null,null,null,null,null,null,null,null,null,null,null,null,null,null,null,null,null,null,null,null,null,null,null,null,null,null,null,null,null,null,null,null,null,null,300,"х","х","х","х","х","х",{"$f":"CF115+CG115+DL115","v":26973165.359999999},null,null,null,null,null,null,null,null,null,null,null,null,null,null,null,null,null,null,null,null,null,null,null,null,null,null,null,null,null,null,null,null,22494000,3720817,null,null,null,null,null,null,null,null,null,null,null,null,null,null,null,null,null,null,null,null,null,null,null,null,null,null,null,null,null,null,758348.36]
["из них:",null,null,null,null,null,null,null,null,null,null,null,null,null,null,null,null,null,null,null,null,null,null,null,null,null,null,null,null,null,null,null,null,null,null,null,null,null,null,null,null,null,null,null,"х","х","х",null,null,null,{"$f":"SUM(BQ116:DZ116)","v":0},null,null,null,null,null,null,null,null,null,null,null,null,null,null,null,null,null,null,null,null,null,null,null,null,null,null,null,null,null,null,null,null,"0,00","0,00",null,null,null,null,null,null,null,null,null,null,null,null,null,null,null,null,null,null,null,null,null,null,null,null,null,null,null,null,null,null,"0,00"]
["увеличение остатков средств ",null,null,null,null,null,null,null,null,null,null,null,null,null,null,null,null,null,null,null,null,null,null,null,null,null,null,null,null,null,null,null,null,null,null,null,null,null,null,null,null,null,null,310,"х","х","х",null,null,"х",{"$f":"CF117+CG117+DL117","v":26973165.359999999},null,null,null,null,null,null,null,null,null,null,null,null,null,null,null,null,null,null,null,null,null,null,null,null,null,null,null,null,null,null,null,null,22494000,3720817,null,null,null,null,null,null,null,null,null,null,null,null,null,null,null,null,null,null,null,null,null,null,null,null,null,null,null,null,null,null,758348.36]
["прочие поступления",null,null,null,null,null,null,null,null,null,null,null,null,null,null,null,null,null,null,null,null,null,null,null,null,null,null,null,null,null,null,null,null,null,null,null,null,null,null,null,null,null,null,320,"х","х","х",null,null,null,{"$f":"SUM(BQ118:DZ118)","v":0},null,null,null,null,null,null,null,null,null,null,null,null,null,null,null,null,null,null,null,null,null,null,null,null,null,null,null,null,null,null,null,null,0,0,null,null,null,null,null,null,null,null,null,null,null,null,null,null,null,null,null,null,null,null,null,null,null,null,null,null,null,null,null,null,"0,00"]
["Выбытие финансовых активов, всего",null,null,null,null,null,null,null,null,null,null,null,null,null,null,null,null,null,null,null,null,null,null,null,null,null,null,null,null,null,null,null,null,null,null,null,null,null,null,null,null,null,null,400,"х","х","х","х","х","х",{"$f":"CF119+CG119+DL119","v":26975165.359999999},null,null,null,null,null,null,null,null,null,null,null,null,null,null,null,null,null,null,null,null,null,null,null,null,null,null,null,null,null,null,null,null,22494000,3720817,null,null,null,null,null,null,null,null,null,null,null,null,null,null,null,null,null,null,null,null,null,null,null,null,null,null,null,null,null,null,760348.36]
["из них:",null,null,null,null,null,null,null,null,null,null,null,null,null,null,null,null,null,null,null,null,null,null,null,null,null,null,null,null,null,null,null,null,null,null,null,null,null,null,null,null,null,null,null,"х","х","х",null,null,null,{"$f":"SUM(BQ120:DZ120)","v":0},null,null,null,null,null,null,null,null,null,null,null,null,null,null,null,null,null,null,null,null,null,null,null,null,null,null,null,null,null,null,null,null,0,0,null,null,null,null,null,null,null,null,null,null,null,null,null,null,null,null,null,null,null,null,null,null,null,null,null,null,null,null,null,null,"0,00"]
["уменьшение остатков средств ",null,null,null,null,null,null,null,null,null,null,null,null,null,null,null,null,null,null,null,null,null,null,null,null,null,null,null,null,null,null,null,null,null,null,null,null,null,null,null,null,null,null,410,"х","х","х",null,null,"х",{"$f":"CF121+CG121+DL121","v":26975165.359999999},null,null,null,null,null,null,null,null,null,null,null,null,null,null,null,null,null,null,null,null,null,null,null,null,null,null,null,null,null,null,null,null,22494000,3720817,null,null,null,null,null,null,null,null,null,null,null,null,null,null,null,null,null,null,null,null,null,null,null,null,null,null,null,null,null,null,760348.36]
["прочие выбытие",null,null,null,null,null,null,null,null,null,null,null,null,null,null,null,null,null,null,null,null,null,null,null,null,null,null,null,null,null,null,null,null,null,null,null,null,null,null,null,null,null,null,420,"х","х","х"]
["Остаток средств на начало года",null,null,null,null,null,null,null,null,null,null,null,null,null,null,null,null,null,null,null,null,null,null,null,null,null,null,null,null,null,null,null,null,null,null,null,null,null,null,null,null,null,null,500,"х","х","х","х","х","х",2000,null,null,null,null,null,null,null,null,null,null,null,null,null,null,null,null,null,null,null,null,null,null,null,null,null,null,null,null,null,null,null,null,"х","х",null,null,null,null,null,null,null,null,null,null,null,null,null,null,null,null,null,null,null,null,null,null,null,null,null,null,null,null,null,null,2000]
["Остаток средств на конец года",null,null,null,null,null,null,null,null,null,null,null,null,null,null,null,null,null,null,null,null,null,null,null,null,null,null,null,null,null,null,null,null,null,null,null,null,null,null,null,null,null,null,600,"х","х","х","х","х","х",{"$f":"CF124+CG124+DL124","v":0},null,null,null,null,null,null,null,null,null,null,null,null,null,null,null,null,null,null,null,null,null,null,null,null,null,null,null,null,null,null,null,null,null,null,null,null,null,null,null,null,null,null,null,null,null,null,null,null,null,null,null,null,null,null,null,null,null,null,null,null,null,null,null,null,0]
[]
["По строкам 500, 600 в графах 5 - 12 указываются планируемые суммы остатков средств на начало и на конец планируемого года либо указываются фактические остатки средств при внесении изменений в утвержденный план после завершения отчетного финансового года;"]
[]
["в графе 3 по строкам 110 - 180, 300 - 420 указываются коды классификации сектора государственного управления, по строкам 210 - 280 указываются коды видов расходов бюджетов;"]
[]
["по строке 120 в графе 12 указываются плановые показатели по доходам от грантов, предоставление которых из соответствующего бюджета бюджетной системы Российской Федерации осуществляется по кодам 613 \"Гранты в Форме субсидии бюджетным учреждениям\" или 623 \"Гранты в Форме субсидии автономным учреждениям\" видов расходов бюджетов."]

{"sheet":"2","index":2,"n_rows":30,"n_cols":140,"rows_kept":30,"cut":false,"hidden":false,"merged":[[1,83,1,107],[2,0,2,107],[4,0,4,71],[4,72,4,107],[5,1,5,71],[5,72,5,107],[6,1,6,71],[6,72,6,107],[7,1,7,71],[7,72,7,107],[8,1,8,71],[8,72,8,107],[9,1,9,71],[9,72,9,107],[10,1,10,71],[10,72,10,107],[11,1,11,71],[11,72,11,107],[12,1,12,71],[12,72,12,107],[13,1,13,71],[13,72,13,107],[14,1,14,71],[14,72,14,107],[15,1,15,71],[15,72,15,107],[16,1,16,71],[16,72,16,107],[17,1,17,71],[17,72,17,107],[18,1,18,71],[18,72,18,107],[19,1,19,71],[19,72,19,107],[20,1,20,71],[20,72,20,107],[21,1,21,71],[21,72,21,107],[22,1,22,71],[22,72,22,107],[23,1,23,71],[23,72,23,107],[24,1,24,71],[24,72,24,107],[25,1,25,71],[25,72,25,107],[26,1,26,71],[26,72,26,107],[27,1,27,71],[27,72,27,107],[28,1,28,71],[28,72,28,107],[29,1,29,71],[29,72,29,107]]}
[]
[null,null,null,null,null,null,null,null,null,null,null,null,null,null,null,null,null,null,null,null,null,null,null,null,null,null,null,null,null,null,null,null,null,null,null,null,null,null,null,null,null,null,null,null,null,null,null,null,null,null,null,null,null,null,null,null,null,null,null,null,null,null,null,null,null,null,null,null,null,null,null,null,null,null,null,null,null,null,null,null,null,null,null,"Таблица 1"]
["II. Показатели финансового состояния  государственного учреждения"]
[]
["Наименование показателя",null,null,null,null,null,null,null,null,null,null,null,null,null,null,null,null,null,null,null,null,null,null,null,null,null,null,null,null,null,null,null,null,null,null,null,null,null,null,null,null,null,null,null,null,null,null,null,null,null,null,null,null,null,null,null,null,null,null,null,null,null,null,null,null,null,null,null,null,null,null,null,"Сумма"]
[null,"I. Нефинансовые активы, всего:",null,null,null,null,null,null,null,null,null,null,null,null,null,null,null,null,null,null,null,null,null,null,null,null,null,null,null,null,null,null,null,null,null,null,null,null,null,null,null,null,null,null,null,null,null,null,null,null,null,null,null,null,null,null,null,null,null,null,null,null,null,null,null,null,null,null,null,null,null,null,7118244.8600000003]
[null,"из них:",null,null,null,null,null,null,null,null,null,null,null,null,null,null,null,null,null,null,null,null,null,null,null,null,null,null,null,null,null,null,null,null,null,null,null,null,null,null,null,null,null,null,null,null,null,null,null,null,null,null,null,null,null,null,null,null,null,null,null,null,null,null,null,null,null,null,null,null,null,null,0]
[null," Общая балансовая стоимость недвижимого государственного имущества, всего",null,null,null,null,null,null,null,null,null,null,null,null,null,null,null,null,null,null,null,null,null,null,null,null,null,null,null,null,null,null,null,null,null,null,null,null,null,null,null,null,null,null,null,null,null,null,null,null,null,null,null,null,null,null,null,null,null,null,null,null,null,null,null,null,null,null,null,null,null,null,0]
[null,"в том числе:",null,null,null,null,null,null,null,null,null,null,null,null,null,null,null,null,null,null,null,null,null,null,null,null,null,null,null,null,null,null,null,null,null,null,null,null,null,null,null,null,null,null,null,null,null,null,null,null,null,null,null,null,null,null,null,null,null,null,null,null,null,null,null,null,null,null,null,null,null,null,0]
[null,"недвижимого имущество, всего",null,null,null,null,null,null,null,null,null,null,null,null,null,null,null,null,null,null,null,null,null,null,null,null,null,null,null,null,null,null,null,null,null,null,null,null,null,null,null,null,null,null,null,null,null,null,null,null,null,null,null,null,null,null,null,null,null,null,null,null,null,null,null,null,null,null,null,null,null,null,0]
[null,"в том числе:",null,null,null,null,null,null,null,null,null,null,null,null,null,null,null,null,null,null,null,null,null,null,null,null,null,null,null,null,null,null,null,null,null,null,null,null,null,null,null,null,null,null,null,null,null,null,null,null,null,null,null,null,null,null,null,null,null,null,null,null,null,null,null,null,null,null,null,null,null,null,0]
[null,"остаточная стоимость",null,null,null,null,null,null,null,null,null,null,null,null,null,null,null,null,null,null,null,null,null,null,null,null,null,null,null,null,null,null,null,null,null,null,null,null,null,null,null,null,null,null,null,null,null,null,null,null,null,null,null,null,null,null,null,null,null,null,null,null,null,null,null,null,null,null,null,null,null,null,0]
[null,"особо ценное движимое имущество, всего",null,null,null,null,null,null,null,null,null,null,null,null,null,null,null,null,null,null,null,null,null,null,null,null,null,null,null,null,null,null,null,null,null,null,null,null,null,null,null,null,null,null,null,null,null,null,null,null,null,null,null,null,null,null,null,null,null,null,null,null,null,null,null,null,null,null,null,null,null,null,2929600]
[null,"в том числе:",null,null,null,null,null,null,null,null,null,null,null,null,null,null,null,null,null,null,null,null,null,null,null,null,null,null,null,null,null,null,null,null,null,null,null,null,null,null,null,null,null,null,null,null,null,null,null,null,null,null,null,null,null,null,null,null,null,null,null,null,null,null,null,null,null,null,null,null,null,null,0,null,null,null,null,null,null,null,null,null,null,null,null,null,null,null,null,null,null,null,null,null,null,null,null,null,null,null,null,null,null,null,null,null,null,null,null,null,null,null,null,null,null,null,null,null,null,null,null,null,null,null,null,null,null,null,null,null,null,null,null,null,null,null,null,null,null,69]
[null,"остаточная стоимость",null,null,null,null,null,null,null,null,null,null,null,null,null,null,null,null,null,null,null,null,null,null,null,null,null,null,null,null,null,null,null,null,null,null,null,null,null,null,null,null,null,null,null,null,null,null,null,null,null,null,null,null,null,null,null,null,null,null,null,null,null,null,null,null,null,null,null,null,null,null,0]
[null,"II. Финансовые активы, всего",null,null,null,null,null,null,null,null,null,null,null,null,null,null,null,null,null,null,null,null,null,null,null,null,null,null,null,null,null,null,null,null,null,null,null,null,null,null,null,null,null,null,null,null,null,null,null,null,null,null,null,null,null,null,null,null,null,null,null,null,null,null,null,null,null,null,null,null,null,null,2000]
[null,"из них:",null,null,null,null,null,null,null,null,null,null,null,null,null,null,null,null,null,null,null,null,null,null,null,null,null,null,null,null,null,null,null,null,null,null,null,null,null,null,null,null,null,null,null,null,null,null,null,null,null,null,null,null,null,null,null,null,null,null,null,null,null,null,null,null,null,null,null,null,null,null,0]
[null,"денежные средства учреждения, всего",null,null,null,null,null,null,null,null,null,null,null,null,null,null,null,null,null,null,null,null,null,null,null,null,null,null,null,null,null,null,null,null,null,null,null,null,null,null,null,null,null,null,null,null,null,null,null,null,null,null,null,null,null,null,null,null,null,null,null,null,null,null,null,null,null,null,null,null,null,null,2000]
[null,"в том числе:",null,null,null,null,null,null,null,null,null,null,null,null,null,null,null,null,null,null,null,null,null,null,null,null,null,null,null,null,null,null,null,null,null,null,null,null,null,null,null,null,null,null,null,null,null,null,null,null,null,null,null,null,null,null,null,null,null,null,null,null,null,null,null,null,null,null,null,null,null,null,0]
[null," денежные средства учреждения на счетах",null,null,null,null,null,null,null,null,null,null,null,null,null,null,null,null,null,null,null,null,null,null,null,null,null,null,null,null,null,null,null,null,null,null,null,null,null,null,null,null,null,null,null,null,null,null,null,null,null,null,null,null,null,null,null,null,null,null,null,null,null,null,null,null,null,null,null,null,null,null,2000]
[null,"денежные средства учреждения, размещенные на депозиты в кредитной организации",null,null,null,null,null,null,null,null,null,null,null,null,null,null,null,null,null,null,null,null,null,null,null,null,null,null,null,null,null,null,null,null,null,null,null,null,null,null,null,null,null,null,null,null,null,null,null,null,null,null,null,null,null,null,null,null,null,null,null,null,null,null,null,null,null,null,null,null,null,null,0]
[null,"в том числе:",null,null,null,null,null,null,null,null,null,null,null,null,null,null,null,null,null,null,null,null,null,null,null,null,null,null,null,null,null,null,null,null,null,null,null,null,null,null,null,null,null,null,null,null,null,null,null,null,null,null,null,null,null,null,null,null,null,null,null,null,null,null,null,null,null,null,null,null,null,null,0]
[null,"дебиторская задолженность по доходам",null,null,null,null,null,null,null,null,null,null,null,null,null,null,null,null,null,null,null,null,null,null,null,null,null,null,null,null,null,null,null,null,null,null,null,null,null,null,null,null,null,null,null,null,null,null,null,null,null,null,null,null,null,null,null,null,null,null,null,null,null,null,null,null,null,null,null,null,null,null,0]
[null,"дебиторская задолженность по расходам ",null,null,null,null,null,null,null,null,null,null,null,null,null,null,null,null,null,null,null,null,null,null,null,null,null,null,null,null,null,null,null,null,null,null,null,null,null,null,null,null,null,null,null,null,null,null,null,null,null,null,null,null,null,null,null,null,null,null,null,null,null,null,null,null,null,null,null,null,null,null,0]
[null,"III. Обязательства, всего",null,null,null,null,null,null,null,null,null,null,null,null,null,null,null,null,null,null,null,null,null,null,null,null,null,null,null,null,null,null,null,null,null,null,null,null,null,null,null,null,null,null,null,null,null,null,null,null,null,null,null,null,null,null,null,null,null,null,null,null,null,null,null,null,null,null,null,null,null,null,0]
[null,"из них:",null,null,null,null,null,null,null,null,null,null,null,null,null,null,null,null,null,null,null,null,null,null,null,null,null,null,null,null,null,null,null,null,null,null,null,null,null,null,null,null,null,null,null,null,null,null,null,null,null,null,null,null,null,null,null,null,null,null,null,null,null,null,null,null,null,null,null,null,null,null,0]
[null,"долговые обязательства",null,null,null,null,null,null,null,null,null,null,null,null,null,null,null,null,null,null,null,null,null,null,null,null,null,null,null,null,null,null,null,null,null,null,null,null,null,null,null,null,null,null,null,null,null,null,null,null,null,null,null,null,null,null,null,null,null,null,null,null,null,null,null,null,null,null,null,null,null,null,0]
[null,"кредиторская задолженность",null,null,null,null,null,null,null,null,null,null,null,null,null,null,null,null,null,null,null,null,null,null,null,null,null,null,null,null,null,null,null,null,null,null,null,null,null,null,null,null,null,null,null,null,null,null,null,null,null,null,null,null,null,null,null,null,null,null,null,null,null,null,null,null,null,null,null,null,null,null,0]
[null,"в том числе:",null,null,null,null,null,null,null,null,null,null,null,null,null,null,null,null,null,null,null,null,null,null,null,null,null,null,null,null,null,null,null,null,null,null,null,null,null,null,null,null,null,null,null,null,null,null,null,null,null,null,null,null,null,null,null,null,null,null,null,null,null,null,null,null,null,null,null,null,null,null,0]
[null,"просроченная кредиторская задолженность",null,null,null,null,null,null,null,null,null,null,null,null,null,null,null,null,null,null,null,null,null,null,null,null,null,null,null,null,null,null,null,null,null,null,null,null,null,null,null,null,null,null,null,null,null,null,null,null,null,null,null,null,null,null,null,null,null,null,null,null,null,null,null,null,null,null,null,null,null,null,0]

{"sheet":"2.1_2","index":3,"n_rows":123,"n_cols":139,"rows_kept":123,"cut":false,"hidden":false,"merged":[[7,68,7,144],[9,130,9,144],[1,118,2,143],[3,0,3,129],[5,0,9,42],[5,43,9,43],[5,44,8,48],[5,49,8,49],[5,50,5,144],[6,50,6,143],[7,50,9,67],[10,85,10,99],[10,100,10,114],[10,115,10,129],[8,68,9,82],[8,83,9,83],[8,84,9,84],[8,85,9,99],[8,100,9,114],[8,115,8,144],[9,115,9,129],[10,131,10,144],[11,0,11,42],[11,50,11,67],[11,68,11,82],[11,85,11,99],[11,100,11,114],[11,115,11,129],[10,0,10,42],[10,50,10,67],[10,68,10,82],[13,68,13,82],[13,85,13,99],[13,100,13,114],[13,115,13,129],[12,0,12,42],[12,50,12,67],[12,68,12,82],[12,85,12,99],[12,100,12,114],[12,115,12,129],[13,131,13,144],[14,0,14,42],[14,50,14,67],[14,68,14,82],[14,85,14,99],[14,100,14,114],[14,115,14,129],[14,131,14,144],[13,0,13,42],[13,50,13,67],[15,0,15,42],[15,50,15,67],[16,0,16,42],[16,50,16,67],[17,0,17,42],[17,50,17,67],[17,115,17,129],[18,0,18,42],[18,50,18,67],[18,115,18,129],[19,0,19,42],[19,50,19,67],[19,68,19,82],[19,85,19,99],[19,100,19,114],[19,131,19,144],[20,0,20,42],[20,50,20,67],[20,68,20,82],[20,85,20,99],[20,100,20,114],[20,115,20,129],[21,0,21,42],[21,50,21,67],[21,68,21,82],[21,85,21,99],[21,100,21,114],[21,115,21,129],[22,0,22,42],[22,50,22,67],[23,0,23,42],[23,50,23,67],[24,0,24,42],[24,50,24,67],[25,0,25,42],[25,50,25,67],[26,0,26,42],[26,50,26,67],[27,0,27,42],[27,50,27,67],[31,68,31,82],[31,85,31,99],[31,100,31,114],[31,115,31,129],[28,0,28,42],[28,50,28,67],[29,0,29,42],[29,50,29,67],[30,0,30,42],[30,50,30,67],[31,131,31,144],[32,0,32,42],[32,50,32,67],[32,68,32,82],[32,85,32,99],[32,100,32,114],[32,115,32,129],[32,131,32,144],[31,0,31,42],[31,50,31,67],[34,115,34,129],[34,131,34,144],[33,0,33,42],[33,50,33,67],[33,68,33,82],[33,85,33,99],[33,100,33,114],[33,115,33,129],[35,68,35,82],[35,85,35,99],[35,100,35,114],[35,115,35,129],[33,131,33,144],[34,0,34,42],[34,50,34,67],[34,68,34,82],[34,85,34,99],[34,100,34,114],[35,131,35,144],[36,0,36,42],[36,50,36,67],[36,68,36,82],[36,85,36,99],[36,100,36,114],[36,115,36,129],[36,130,36,144],[35,0,35,42],[35,50,35,67],[37,0,37,42],[37,50,37,67],[37,68,37,82],[37,85,37,99],[37,100,37,114],[37,115,37,129],[38,0,38,42],[38,50,38,67],[38,68,38,82],[38,85,38,99],[38,100,38,114],[38,115,38,129],[39,0,39,42],[39,50,39,67],[40,0,40,42],[40,50,40,67],[41,0,41,42],[41,50,41,67],[42,0,42,42],[42,50,42,67],[43,0,43,42],[43,50,43,67],[44,0,44,42],[44,50,44,67],[45,0,45,42],[45,50,45,67],[45,115,45,130],[46,0,46,42],[46,50,46,67],[46,115,46,130],[47,0,47,42],[47,50,47,67],[47,115,47,130],[48,0,48,42],[48,50,48,67],[48,68,48,82],[48,85,48,99],[48,100,48,114],[48,115,48,129],[48,130,48,144],[49,0,49,42],[49,50,49,67],[49,68,49,82],[49,85,49,99],[49,100,49,114],[49,115,49,129],[50,0,50,42],[50,50,50,67],[50,68,50,82],[50,85,50,99],[50,100,50,114],[50,115,50,129],[51,0,51,42],[51,50,51,67],[51,68,51,82],[51,85,51,99],[51,100,51,114],[51,115,51,129],[52,0,52,42],[52,50,52,67],[52,68,52,82],[52,85,52,99],[52,100,52,114],[52,115,52,129],[53,0,53,42],[53,50,53,67],[53,68,53,82],[53,85,53,99],[53,100,53,114],[53,115,53,129],[54,0,54,42],[54,50,54,67],[54,68,54,82],[54,85,54,99],[54,100,54,114],[54,115,54,129],[55,0,55,42],[55,50,55,67],[55,68,55,82],[55,85,55,99],[55,100,55,114],[55,115,55,129],[56,0,56,42],[56,50,56,67],[56,68,56,82],[56,85,56,99],[56,100,56,114],[56,115,56,129],[57,0,57,42],[57,50,57,67],[57,115,57,128],[58,0,58,42],[58,50,58,67],[58,115,58,128],[61,68,61,82],[61,85,61,99],[61,100,61,114],[61,115,61,129],[59,0,59,42],[59,50,59,67],[59,115,59,128],[60,0,60,42],[60,50,60,67],[60,115,60,128],[61,130,61,144],[62,0,62,42],[62,50,62,67],[62,68,62,82],[62,85,62,99],[62,100,62,114],[62,115,62,129],[62,130,62,144],[61,0,61,42],[61,50,61,67],[64,115,64,129],[64,130,64,144],[63,0,63,42],[63,50,63,67],[63,68,63,82],[63,85,63,99],[63,100,63,114],[63,115,63,129],[65,68,65,82],[65,85,65,99],[65,100,65,114],[65,115,65,129],[63,130,63,144],[64,0,64,42],[64,50,64,67],[64,68,64,82],[64,85,64,99],[64,100,64,114],[65,130,65,144],[66,0,66,42],[66,50,66,67],[66,68,66,82],[66,85,66,99],[66,100,66,114],[66,115,66,129],[66,130,66,144],[65,0,65,42],[65,50,65,67],[68,115,68,129],[68,131,68,144],[67,0,67,42],[67,50,67,67],[67,68,67,82],[67,85,67,99],[67,100,67,114],[67,115,67,129],[69,68,69,82],[69,85,69,99],[69,100,69,114],[69,115,69,129],[67,130,67,144],[68,0,68,42],[68,50,68,67],[68,68,68,82],[68,85,68,99],[68,100,68,114],[69,131,69,144],[70,0,70,42],[70,50,70,67],[70,68,70,82],[70,85,70,99],[70,100,70,114],[70,115,70,129],[70,130,70,144],[69,0,69,42],[69,50,69,67],[71,0,71,42],[71,50,71,67],[71,68,71,82],[71,85,71,99],[71,100,71,114],[71,115,71,129],[71,130,71,144],[72,0,72,42],[72,50,72,67],[72,115,72,130],[72,131,72,144],[73,0,73,42],[73,50,73,67],[73,68,73,82],[73,85,73,99],[73,100,73,114],[73,115,73,129],[73,131,73,144],[74,0,74,42],[74,50,74,67],[74,68,74,82],[74,85,74,99],[74,100,74,114],[74,115,74,129],[74,130,74,144],[76,115,76,129],[76,131,76,144],[75,0,75,42],[75,50,75,67],[75,68,75,82],[75,85,75,99],[75,100,75,114],[75,115,75,129],[77,68,77,82],[77,85,77,99],[77,100,77,114],[77,115,77,129],[75,131,75,144],[76,0,76,42],[76,50,76,67],[76,68,76,82],[76,85,76,99],[76,100,76,114],[77,131,77,144],[78,0,78,42],[78,50,78,67],[78,68,78,82],[78,85,78,99],[78,100,78,114],[78,115,78,129],[78,131,78,144],[77,0,77,42],[77,50,77,67],[80,115,80,129],[80,131,80,144],[79,0,79,42],[79,50,79,67],[79,68,79,82],[79,85,79,99],[79,100,79,114],[79,115,79,129],[81,68,81,82],[81,85,81,99],[81,100,81,114],[81,115,81,129],[79,131,79,144],[80,0,80,42],[80,50,80,67],[80,68,80,82],[80,85,80,99],[80,100,80,114],[81,130,81,144],[82,0,82,42],[82,50,82,67],[82,68,82,82],[82,85,82,99],[82,100,82,114],[82,115,82,129],[82,130,82,144],[81,0,81,42],[81,50,81,67],[84,115,84,129],[84,130,84,144],[83,0,83,42],[83,50,83,67],[83,68,83,82],[83,85,83,99],[83,100,83,114],[83,115,83,129],[85,68,85,82],[85,85,85,99],[85,100,85,114],[85,115,85,129],[83,130,83,144],[84,0,84,42],[84,50,84,67],[84,68,84,82],[84,85,84,99],[84,100,84,114],[85,130,85,144],[86,0,86,42],[86,50,86,67],[86,130,86,144],[87,0,87,42],[87,50,87,67],[87,115,87,128],[87,130,87,144],[85,0,85,42],[85,50,85,67],[89,115,89,129],[89,130,89,144],[88,0,88,42],[88,50,88,67],[88,68,88,82],[88,85,88,99],[88,100,88,114],[88,115,88,129],[90,68,90,82],[90,85,90,99],[90,100,90,114],[90,115,90,129],[88,130,88,144],[89,0,89,42],[89,50,89,67],[89,68,89,82],[89,85,89,99],[89,100,89,114],[90,130,90,144],[91,0,91,42],[91,50,91,67],[91,68,91,82],[91,85,91,99],[91,100,91,114],[91,115,91,129],[91,130,91,144],[90,0,90,42],[90,50,90,67],[93,115,93,129],[93,130,93,144],[92,0,92,42],[92,50,92,67],[92,68,92,82],[92,85,92,99],[92,100,92,114],[92,115,92,129],[94,68,94,82],[94,85,94,99],[94,100,94,114],[94,115,94,129],[92,130,92,144],[93,0,93,42],[93,50,93,67],[93,68,93,82],[93,85,93,99],[93,100,93,114],[94,130,94,144],[95,0,95,42],[95,50,95,67],[95,68,95,82],[95,85,95,99],[95,100,95,114],[95,115,95,129],[95,130,95,144],[94,0,94,42],[94,50,94,67],[97,115,97,129],[97,130,97,144],[96,0,96,42],[96,50,96,67],[96,68,96,82],[96,85,96,99],[96,100,96,114],[96,115,96,129],[98,68,98,82],[98,85,98,99],[98,100,98,114],[98,115,98,129],[96,130,96,144],[97,0,97,42],[97,50,97,67],[97,68,97,82],[97,85,97,99],[97,100,97,114],[98,130,98,144],[99,0,99,42],[99,50,99,67],[99,68,99,82],[99,85,99,99],[99,100,99,114],[99,115,99,129],[99,130,99,144],[98,0,98,42],[98,50,98,67],[101,115,101,129],[101,130,101,144],[100,0,100,42],[100,50,100,67],[100,68,100,82],[100,85,100,99],[100,100,100,114],[100,115,100,129],[102,68,102,82],[102,85,102,99],[102,100,102,114],[102,115,102,129],[100,130,100,144],[101,0,101,42],[101,50,101,67],[101,68,101,82],[101,85,101,99],[101,100,101,114],[102,130,102,144],[103,0,103,42],[103,50,103,67],[103,68,103,82],[103,85,103,99],[103,100,103,114],[103,115,103,129],[103,130,103,144],[102,0,102,42],[102,50,102,67],[105,115,105,129],[105,130,105,144],[104,0,104,42],[104,50,104,67],[104,68,104,82],[104,85,104,99],[104,100,104,114],[104,115,104,129],[106,68,106,82],[106,85,106,99],[106,100,106,114],[106,115,106,129],[104,130,104,144],[105,0,105,42],[105,50,105,67],[105,68,105,82],[105,85,105,99],[105,100,105,114],[106,130,106,144],[107,0,107,42],[107,50,107,67],[107,68,107,82],[107,85,107,99],[107,100,107,114],[107,115,107,129],[107,130,107,144],[106,0,106,42],[106,50,106,67],[109,115,109,129],[109,130,109,144],[108,0,108,42],[108,50,108,67],[108,68,108,82],[108,85,108,99],[108,100,108,114],[108,115,108,129],[110,68,110,82],[110,85,110,99],[110,100,110,114],[110,115,110,129],[108,130,108,144],[109,0,109,42],[109,50,109,67],[109,68,109,82],[109,85,109,99],[109,100,109,114],[110,130,110,144],[111,0,111,42],[111,50,111,67],[111,68,111,82],[111,85,111,99],[111,100,111,114],[111,115,111,129],[111,130,111,144],[110,0,110,42],[110,50,110,67],[113,115,113,129],[113,130,113,144],[112,0,112,42],[112,50,112,67],[112,68,112,82],[112,85,112,99],[112,100,112,114],[112,115,112,129],[114,68,114,82],[114,85,114,99],[114,100,114,114],[114,115,114,129],[112,130,112,144],[113,0,113,42],[113,50,113,67],[113,68,113,82],[113,85,113,99],[113,100,113,114],[114,130,114,144],[115,0,115,42],[115,50,115,67],[115,68,115,82],[115,85,115,99],[115,100,115,114],[115,115,115,129],[115,130,115,144],[114,0,114,42],[114,50,114,67],[116,130,116,144],[118,0,118,144],[120,0,120,144],[122,0,122,144],[116,0,116,42],[116,50,116,67],[116,68,116,82],[116,85,116,99],[116,100,116,114],[116,115,116,129]]}
[]
[null,null,null,null,null,null,null,null,null,null,null,null,null,null,null,null,null,null,null,null,null,null,null,null,null,null,null,null,null,null,null,null,null,null,null,null,null,null,null,null,null,null,null,null,null,null,null,null,null,null,null,null,null,null,null,null,null,null,null,null,null,null,null,null,null,null,null,null,null,null,null,null,null,null,null,null,null,null,null,null,null,null,null,null,null,null,null,null,null,null,null,null,null,null,null,null,null,null,null,null,null,null,null,null,null,null,null,null,null,null,null,null,null,null,null,null,null,null,"Таблица 2"]
[]
["III. Показатели по поступлениям и выплатам государственного учреждения "]
[]
["Наименование показателя",null,null,null,null,null,null,null,null,null,null,null,null,null,null,null,null,null,null,null,null,null,null,null,null,null,null,null,null,null,null,null,null,null,null,null,null,null,null,null,null,null,null,"Код строки","Коды бюджетной классификации                                                  Российской федерации",null,null,null,null,"Код дополнительной классификации","Объем финансового обеспечения, руб. (с точностью до двух знаков после запятой - 0,00) "]
[null,null,null,null,null,null,null,null,null,null,null,null,null,null,null,null,null,null,null,null,null,null,null,null,null,null,null,null,null,null,null,null,null,null,null,null,null,null,null,null,null,null,null,null,null,null,null,null,null,null,"2019 год  (1 год планового периода)"]
[null,null,null,null,null,null,null,null,null,null,null,null,null,null,null,null,null,null,null,null,null,null,null,null,null,null,null,null,null,null,null,null,null,null,null,null,null,null,null,null,null,null,null,null,null,null,null,null,null,null,"Всего",null,null,null,null,null,null,null,null,null,null,null,null,null,null,null,null,null,"в том числе"]
[null,null,null,null,null,null,null,null,null,null,null,null,null,null,null,null,null,null,null,null,null,null,null,null,null,null,null,null,null,null,null,null,null,null,null,null,null,null,null,null,null,null,null,null,null,null,null,null,null,null,null,null,null,null,null,null,null,null,null,null,null,null,null,null,null,null,null,null,"средства областного бюджета, поступающие из федерального бюджета",null,null,null,null,null,null,null,null,null,null,null,null,null,null,"субсидии на финансовое обеспечение выполнения государственного задания","субсидии, предоставляемые в соответствии с абзацем пункта 1 статьи 78.1 Бюджетного кодекса Российской Федерации (целевые субсидии) ","субсидии на осуществление капитальных вложений",null,null,null,null,null,null,null,null,null,null,null,null,null,null,"средства обязательного медицинского страхования",null,null,null,null,null,null,null,null,null,null,null,null,null,null,"поступления от оказания услуг (выполнения работ) на платной основе и от иной приносящей доход деятельности"]
[null,null,null,null,null,null,null,null,null,null,null,null,null,null,null,null,null,null,null,null,null,null,null,null,null,null,null,null,null,null,null,null,null,null,null,null,null,null,null,null,null,null,null,null,"Код раздела","Код подраздела","Код целевой статьи расходов","Код операций сектора государственного управления          (для поступрений)","Код вида расходов                                         (для выплат)","Код\nэкономической классификации расходов",null,null,null,null,null,null,null,null,null,null,null,null,null,null,null,null,null,null,null,null,null,null,null,null,null,null,null,null,null,null,null,null,null,null,null,null,null,null,null,null,null,null,null,null,null,null,null,null,null,null,null,null,null,null,null,null,null,null,null,null,null,null,null,null,null,"всего",null,null,null,null,null,null,null,null,null,null,null,null,null,null,"из них гранты"]
[1,null,null,null,null,null,null,null,null,null,null,null,null,null,null,null,null,null,null,null,null,null,null,null,null,null,null,null,null,null,null,null,null,null,null,null,null,null,null,null,null,null,null,2,3,4,5,6,7,8,9,null,null,null,null,null,null,null,null,null,null,null,null,null,null,null,null,null,10,null,null,null,null,null,null,null,null,null,null,null,null,null,null,11,12,13,null,null,null,null,null,null,null,null,null,null,null,null,null,null,14,null,null,null,null,null,null,null,null,null,null,null,null,null,null,15,null,null,null,null,null,null,null,null,null,null,null,null,null,null,null,16]
["Поступления, всего:",null,null,null,null,null,null,null,null,null,null,null,null,null,null,null,null,null,null,null,null,null,null,null,null,null,null,null,null,null,null,null,null,null,null,null,null,null,null,null,null,null,null,100,"х","х","х","х","х","х",{"$f":"CF12+CG12+DL12","v":25410898.359999999},null,null,null,null,null,null,null,null,null,null,null,null,null,null,null,null,null,null,null,null,null,null,null,null,null,null,null,null,null,null,null,null,{"$f":"CF15","v":21631000},{"$f":"CG21","v":3057000},null,null,null,null,null,null,null,null,null,null,null,null,null,null,null,null,null,null,null,null,null,null,null,null,null,null,null,null,null,null,{"$f":"DL15","v":722898.36}]
["в том числе:",null,null,null,null,null,null,null,null,null,null,null,null,null,null,null,null,null,null,null,null,null,null,null,null,null,null,null,null,null,null,null,null,null,null,null,null,null,null,null,null,null,null,null,null,null,null,null,"х","х",{"$f":"SUM(BQ13:DZ13)","v":0},null,null,null,null,null,null,null,null,null,null,null,null,null,null,null,null,null,null,null,null,null,null,null,null,null,null,null,null,null,null,null,null,null,null,null,null,null,null,null,null,null,null,null,null,null,null,null,null,null,null,null,null,null,null,null,null,null,null,null,null,null,null,null,null," "]
["доходы от собственности (сдача в аренду государственного недвижимого имущества и прочее)",null,null,null,null,null,null,null,null,null,null,null,null,null,null,null,null,null,null,null,null,null,null,null,null,null,null,null,null,null,null,null,null,null,null,null,null,null,null,null,null,null,null,110,null,null,null,null,"х","х",{"$f":"SUM(BQ14:DZ14)","v":0},null,null,null,null,null,null,null,null,null,null,null,null,null,null,null,null,null,"х",null,null,null,null,null,null,null,null,null,null,null,null,null,null,"х","х","х",null,null,null,null,null,null,null,null,null,null,null,null,null,null,"х",null,null,null,null,null,null,null,null,null,null,null,null,null,null,null,null,null,null,null,null,null,null,null,null,null,null,null,null,null,null,"х"]
["доходы от оказания услуг, работ",null,null,null,null,null,null,null,null,null,null,null,null,null,null,null,null,null,null,null,null,null,null,null,null,null,null,null,null,null,null,null,null,null,null,null,null,null,null,null,null,null,null,120,null,null,null,"130","х","х",{"$f":"CF15+DL15","v":22353898.359999999},null,null,null,null,null,null,null,null,null,null,null,null,null,null,null,null,null,null,null,null,null,null,null,null,null,null,null,null,null,null,null,null,{"$f":"CF16+CF17","v":21631000},"х","х",null,null,null,null,null,null,null,null,null,null,null,null,null,null,null,null,null,null,null,null,null,null,null,null,null,null,null,null,null,{"$f":"DL19+DL18","v":722898.36}]
["доходы от оказания услуг, работ",null,null,null,null,null,null,null,null,null,null,null,null,null,null,null,null,null,null,null,null,null,null,null,null,null,null,null,null,null,null,null,null,null,null,null,null,null,null,null,null,null,null,null,"07","02","0210060300","130","х","х",{"$f":"CF16","v":14499000},null,null,null,null,null,null,null,null,null,null,null,null,null,null,null,null,null,null,null,null,null,null,null,null,null,null,null,null,null,null,null,null,14499000]
["доходы от оказания услуг, работ",null,null,null,null,null,null,null,null,null,null,null,null,null,null,null,null,null,null,null,null,null,null,null,null,null,null,null,null,null,null,null,null,null,null,null,null,null,null,null,null,null,null,null,"07","01","0210060350","130","х","х",{"$f":"CF17","v":7132000},null,null,null,null,null,null,null,null,null,null,null,null,null,null,null,null,null,null,null,null,null,null,null,null,null,null,null,null,null,null,null,null,7132000]
["доходы от оказания услуг, работ",null,null,null,null,null,null,null,null,null,null,null,null,null,null,null,null,null,null,null,null,null,null,null,null,null,null,null,null,null,null,null,null,null,null,null,null,null,null,null,null,null,null,null,"00","00","0000000000","130","х","х",{"$f":"DL18","v":722898.36},null,null,null,null,null,null,null,null,null,null,null,null,null,null,null,null,null,null,null,null,null,null,null,null,null,null,null,null,null,null,null,null,null,null,null,null,null,null,null,null,null,null,null,null,null,null,null,null,null,null,null,null,null,null,null,null,null,null,null,null,null,null,null,null,722898.36]
["доходы от оказания услуг, работ",null,null,null,null,null,null,null,null,null,null,null,null,null,null,null,null,null,null,null,null,null,null,null,null,null,null,null,null,null,null,null,null,null,null,null,null,null,null,null,null,null,null,null,"00","00","0000000000","180","х","х",{"$f":"DL19","v":0}]
["доходы от штрафов, пеней, иных сумм принудительного изъятия",null,null,null,null,null,null,null,null,null,null,null,null,null,null,null,null,null,null,null,null,null,null,null,null,null,null,null,null,null,null,null,null,null,null,null,null,null,null,null,null,null,null,130,null,null,null,null,"х","х",{"$f":"SUM(BQ20:DZ20)","v":0},null,null,null,null,null,null,null,null,null,null,null,null,null,null,null,null,null,"х",null,null,null,null,null,null,null,null,null,null,null,null,null,null,"х","х","х",null,null,null,null,null,null,null,null,null,null,null,null,null,null,"х",null,null,null,null,null,null,null,null,null,null,null,null,null,null,null,null,null,null,null,null,null,null,null,null,null,null,null,null,null,null,"х"]
["целевые субсидии, предоставленные из бюджета",null,null,null,null,null,null,null,null,null,null,null,null,null,null,null,null,null,null,null,null,null,null,null,null,null,null,null,null,null,null,null,null,null,null,null,null,null,null,null,null,null,null,150,null,null,null,"180","х","х",{"$f":"CG21","v":3057000},null,null,null,null,null,null,null,null,null,null,null,null,null,null,null,null,null,null,null,null,null,null,null,null,null,null,null,null,null,null,null,null,"х",{"$f":"CG22+CG23+CG24+CG25+CG26+CG27+CG28+CG31+CG29","v":3057000},null,null,null,null,null,null,null,null,null,null,null,null,null,null,null,"х",null,null,null,null,null,null,null,null,null,null,null,null,null,null,"х",null,null,null,null,null,null,null,null,null,null,null,null,null,null,null,null,null,null,null,null,null,null,"х"]
["целевые субсидии, предоставленные из бюджета",null,null,null,null,null,null,null,null,null,null,null,null,null,null,null,null,null,null,null,null,null,null,null,null,null,null,null,null,null,null,null,null,null,null,null,null,null,null,null,null,null,null,null,"07","09","0210060340","180","х","х",0,null,null,null,null,null,null,null,null,null,null,null,null,null,null,null,null,null,null,null,null,null,null,null,null,null,null,null,null,null,null,null,null,"х",0,null,null,null,null,null,null,null,null,null,null,null,null,null,null,null,"х",null,null,null,null,null,null,null,null,null,null,null,null,null,null,"х",null,null,null,null,null,null,null,null,null,null,null,null,null,null,null,null,null,null,null,null,null,null,"х"]
["целевые субсидии, предоставленные из бюджета",null,null,null,null,null,null,null,null,null,null,null,null,null,null,null,null,null,null,null,null,null,null,null,null,null,null,null,null,null,null,null,null,null,null,null,null,null,null,null,null,null,null,null,"07","09","0210060440","180","х","х",1384000,null,null,null,null,null,null,null,null,null,null,null,null,null,null,null,null,null,null,null,null,null,null,null,null,null,null,null,null,null,null,null,null,null,1384000]
["целевые субсидии, предоставленные из бюджета",null,null,null,null,null,null,null,null,null,null,null,null,null,null,null,null,null,null,null,null,null,null,null,null,null,null,null,null,null,null,null,null,null,null,null,null,null,null,null,null,null,null,null,"07","01","0210060410","180","х","х",194000,null,null,null,null,null,null,null,null,null,null,null,null,null,null,null,null,null,null,null,null,null,null,null,null,null,null,null,null,null,null,null,null,null,194000]
["целевые субсидии, предоставленные из бюджета",null,null,null,null,null,null,null,null,null,null,null,null,null,null,null,null,null,null,null,null,null,null,null,null,null,null,null,null,null,null,null,null,null,null,null,null,null,null,null,null,null,null,null,"07","01","0210060450","180","х","х",22000,null,null,null,null,null,null,null,null,null,null,null,null,null,null,null,null,null,null,null,null,null,null,null,null,null,null,null,null,null,null,null,null,null,22000]
["целевые субсидии, предоставленные из бюджета",null,null,null,null,null,null,null,null,null,null,null,null,null,null,null,null,null,null,null,null,null,null,null,null,null,null,null,null,null,null,null,null,null,null,null,null,null,null,null,null,null,null,null,"07","02","0210060450","180","х","х",48000,null,null,null,null,null,null,null,null,null,null,null,null,null,null,null,null,null,null,null,null,null,null,null,null,null,null,null,null,null,null,null,null,null,48000]
["целевые субсидии, предоставленные из бюджета",null,null,null,null,null,null,null,null,null,null,null,null,null,null,null,null,null,null,null,null,null,null,null,null,null,null,null,null,null,null,null,null,null,null,null,null,null,null,null,null,null,null,null,"07","02","210060530","180","х","х",487000,null,null,null,null,null,null,null,null,null,null,null,null,null,null,null,null,null,null,null,null,null,null,null,null,null,null,null,null,null,null,null,null,null,487000]
["целевые субсидии, предоставленные из бюджета",null,null,null,null,null,null,null,null,null,null,null,null,null,null,null,null,null,null,null,null,null,null,null,null,null,null,null,null,null,null,null,null,null,null,null,null,null,null,null,null,null,null,null,"07","01","210062580","180","х","х",876000,null,null,null,null,null,null,null,null,null,null,null,null,null,null,null,null,null,null,null,null,null,null,null,null,null,null,null,null,null,null,null,null,null,876000]
["целевые субсидии, предоставленные из бюджета",null,null,null,null,null,null,null,null,null,null,null,null,null,null,null,null,null,null,null,null,null,null,null,null,null,null,null,null,null,null,null,null,null,null,null,null,null,null,null,null,null,null,null,"07","09","210060520","180","х","х",0]
["целевые субсидии, предоставленные из бюджета",null,null,null,null,null,null,null,null,null,null,null,null,null,null,null,null,null,null,null,null,null,null,null,null,null,null,null,null,null,null,null,null,null,null,null,null,null,null,null,null,null,null,null,"07","09","210060340","180","х","х",0]
["целевые субсидии, предоставленные из бюджета",null,null,null,null,null,null,null,null,null,null,null,null,null,null,null,null,null,null,null,null,null,null,null,null,null,null,null,null,null,null,null,null,null,null,null,null,null,null,null,null,null,null,null,"07","09","210060310","180","х","х",46000,null,null,null,null,null,null,null,null,null,null,null,null,null,null,null,null,null,null,null,null,null,null,null,null,null,null,null,null,null,null,null,null,null,46000]
["прочие доходы",null,null,null,null,null,null,null,null,null,null,null,null,null,null,null,null,null,null,null,null,null,null,null,null,null,null,null,null,null,null,null,null,null,null,null,null,null,null,null,null,null,null,160,null,null,null,null,"х","х",{"$f":"SUM(BQ32:DZ32)","v":0},null,null,null,null,null,null,null,null,null,null,null,null,null,null,null,null,null,"х",null,null,null,null,null,null,null,null,null,null,null,null,null,null,"х","х","х",null,null,null,null,null,null,null,null,null,null,null,null,null,null,"х"]
["доходы от операций с активами, в том числе",null,null,null,null,null,null,null,null,null,null,null,null,null,null,null,null,null,null,null,null,null,null,null,null,null,null,null,null,null,null,null,null,null,null,null,null,null,null,null,null,null,null,180,null,null,null,null,"х","х",{"$f":"SUM(BQ33:DZ33)","v":0},null,null,null,null,null,null,null,null,null,null,null,null,null,null,null,null,null,"х",null,null,null,null,null,null,null,null,null,null,null,null,null,null,"х","х","х",null,null,null,null,null,null,null,null,null,null,null,null,null,null,"х",null,null,null,null,null,null,null,null,null,null,null,null,null,null,null,null,null,null,null,null,null,null,null,null,null,null,null,null,null,"х","х"]
["от реализации основных средств",null,null,null,null,null,null,null,null,null,null,null,null,null,null,null,null,null,null,null,null,null,null,null,null,null,null,null,null,null,null,null,null,null,null,null,null,null,null,null,null,null,null,null,null,null,null,null,"х","х",{"$f":"SUM(BQ34:DZ34)","v":0},null,null,null,null,null,null,null,null,null,null,null,null,null,null,null,null,null,"х",null,null,null,null,null,null,null,null,null,null,null,null,null,null,"х","х","х",null,null,null,null,null,null,null,null,null,null,null,null,null,null,"х"]
["от реализации материальных запасов",null,null,null,null,null,null,null,null,null,null,null,null,null,null,null,null,null,null,null,null,null,null,null,null,null,null,null,null,null,null,null,null,null,null,null,null,null,null,null,null,null,null,null,null,null,null,null,"х","х",{"$f":"SUM(BQ35:DZ35)","v":0},null,null,null,null,null,null,null,null,null,null,null,null,null,null,null,null,null,"х",null,null,null,null,null,null,null,null,null,null,null,null,null,null,"х","х","х",null,null,null,null,null,null,null,null,null,null,null,null,null,null,"х"]
["Расходы, всего:",null,null,null,null,null,null,null,null,null,null,null,null,null,null,null,null,null,null,null,null,null,null,null,null,null,null,null,null,null,null,null,null,null,null,null,null,null,null,null,null,null,null,200,"х","х","х","х","х","х",{"$f":"CF36+CG36+DL36","v":25410898.359999999},null,null,null,null,null,null,null,null,null,null,null,null,null,null,null,null,null,null,null,null,null,null,null,null,null,null,null,null,null,null,null,null,{"$f":"CF37+CF83+CF59+CF69","v":21631000},{"$f":"CG37+CG69+CG83+CG62","v":3057000},null,null,null,null,null,null,null,null,null,null,null,null,null,null,null,null,null,null,null,null,null,null,null,null,null,null,null,null,null,null,{"$f":"DL37+DL69+DL83","v":722898.36}]
["в том числе на выплаты персоналу, всего:",null,null,null,null,null,null,null,null,null,null,null,null,null,null,null,null,null,null,null,null,null,null,null,null,null,null,null,null,null,null,null,null,null,null,null,null,null,null,null,null,null,null,210,null,null,null,null,null,"210",{"$f":"CF37+CG37+DL37","v":23314000},null,null,null,null,null,null,null,null,null,null,null,null,null,null,null,null,null,null,null,null,null,null,null,null,null,null,null,null,null,null,null,null,{"$f":"CF38","v":21057000},{"$f":"CG38","v":2257000},null,null,null,null,null,null,null,null,null,null,null,null,null,null,null,null,null,null,null,null,null,null,null,null,null,null,null,null,null,null,{"$f":"DL38","v":0}]
["из них: оплата труда и начисления на выплаты по оплате труда ",null,null,null,null,null,null,null,null,null,null,null,null,null,null,null,null,null,null,null,null,null,null,null,null,null,null,null,null,null,null,null,null,null,null,null,null,null,null,null,null,null,null,211,"х","х","х","х","111,119","211,213",{"$f":"CF38+CG38+DL38","v":23314000},null,null,null,null,null,null,null,null,null,null,null,null,null,null,null,null,null,null,null,null,null,null,null,null,null,null,null,null,null,null,null,null,{"$f":"CF39+CF49","v":21057000},{"$f":"CG39+CG49","v":2257000},null,null,null,null,null,null,null,null,null,null,null,null,null,null,null,null,null,null,null,null,null,null,null,null,null,null,null,null,null,null,{"$f":"DL39+DL49+DL61","v":0}]
["Заработная плата",null,null,null,null,null,null,null,null,null,null,null,null,null,null,null,null,null,null,null,null,null,null,null,null,null,null,null,null,null,null,null,null,null,null,null,null,null,null,null,null,null,null,null,"х","х","х","х","111","211",{"$f":"CF39+CG39+DL39","v":17906300},null,null,null,null,null,null,null,null,null,null,null,null,null,null,null,null,null,null,null,null,null,null,null,null,null,null,null,null,null,null,null,null,{"$f":"CF40+CF41","v":16172813},{"$f":"CG42+CG43+CG44+CG45+CG47+CG46","v":1733487},null,null,null,null,null,null,null,null,null,null,null,null,null,null,null,null,null,null,null,null,null,null,null,null,null,null,null,null,null,null,{"$f":"DL48","v":0}]
["Заработная плата",null,null,null,null,null,null,null,null,null,null,null,null,null,null,null,null,null,null,null,null,null,null,null,null,null,null,null,null,null,null,null,null,null,null,null,null,null,null,null,null,null,null,null,"07","02","0210060300",null,"111","211",{"$f":"CF40","v":10945470},null,null,null,null,null,null,null,null,null,null,null,null,null,null,null,null,null,null,null,null,null,null,null,null,null,null,null,null,null,null,null,null,10945470]
["Заработная плата",null,null,null,null,null,null,null,null,null,null,null,null,null,null,null,null,null,null,null,null,null,null,null,null,null,null,null,null,null,null,null,null,null,null,null,null,null,null,null,null,null,null,null,"07","01","0210060350",null,"111","211",{"$f":"CF41","v":5227343},null,null,null,null,null,null,null,null,null,null,null,null,null,null,null,null,null,null,null,null,null,null,null,null,null,null,null,null,null,null,null,null,5227343]
["Заработная плата",null,null,null,null,null,null,null,null,null,null,null,null,null,null,null,null,null,null,null,null,null,null,null,null,null,null,null,null,null,null,null,null,null,null,null,null,null,null,null,null,null,null,null,"07","09","0210060440",null,"111","211",{"$f":"CG42","v":632873},null,null,null,null,null,null,null,null,null,null,null,null,null,null,null,null,null,null,null,null,null,null,null,null,null,null,null,null,null,null,null,null,null,632873]
["Заработная плата",null,null,null,null,null,null,null,null,null,null,null,null,null,null,null,null,null,null,null,null,null,null,null,null,null,null,null,null,null,null,null,null,null,null,null,null,null,null,null,null,null,null,null,"07","01","0210060450",null,"111","211",16897,null,null,null,null,null,null,null,null,null,null,null,null,null,null,null,null,null,null,null,null,null,null,null,null,null,null,null,null,null,null,null,null,null,16897]
["Заработная плата",null,null,null,null,null,null,null,null,null,null,null,null,null,null,null,null,null,null,null,null,null,null,null,null,null,null,null,null,null,null,null,null,null,null,null,null,null,null,null,null,null,null,null,"07","02","0210060450",null,"111","211",36866,null,null,null,null,null,null,null,null,null,null,null,null,null,null,null,null,null,null,null,null,null,null,null,null,null,null,null,null,null,null,null,null,null,36866]
["Заработная плата",null,null,null,null,null,null,null,null,null,null,null,null,null,null,null,null,null,null,null,null,null,null,null,null,null,null,null,null,null,null,null,null,null,null,null,null,null,null,null,null,null,null,null,"07","02","0210060530",null,"111","211",374040,null,null,null,null,null,null,null,null,null,null,null,null,null,null,null,null,null,null,null,null,null,null,null,null,null,null,null,null,null,null,null,null,null,374040]
["Заработная плата",null,null,null,null,null,null,null,null,null,null,null,null,null,null,null,null,null,null,null,null,null,null,null,null,null,null,null,null,null,null,null,null,null,null,null,null,null,null,null,null,null,null,null,"07","01","0210062580",null,"111","211",672811,null,null,null,null,null,null,null,null,null,null,null,null,null,null,null,null,null,null,null,null,null,null,null,null,null,null,null,null,null,null,null,null,null,672811]
["Заработная плата",null,null,null,null,null,null,null,null,null,null,null,null,null,null,null,null,null,null,null,null,null,null,null,null,null,null,null,null,null,null,null,null,null,null,null,null,null,null,null,null,null,null,null,"07","09","0210060520",null,"111","211",0]
["Заработная плата",null,null,null,null,null,null,null,null,null,null,null,null,null,null,null,null,null,null,null,null,null,null,null,null,null,null,null,null,null,null,null,null,null,null,null,null,null,null,null,null,null,null,null,"00","00","0000000000",null,"111","211",{"$f":"DL48","v":0},null,null,null,null,null,null,null,null,null,null,null,null,null,null,null,null,null,null,null,null,null,null,null,null,null,null,null,null,null,null,null,null,null,null,null,null,null,null,null,null,null,null,null,null,null,null,null,null,null,null,null,null,null,null,null,null,null,null,null,null,null,null,null,null,0]
["Начисления на выплаты по оплате труда\n",null,null,null,null,null,null,null,null,null,null,null,null,null,null,null,null,null,null,null,null,null,null,null,null,null,null,null,null,null,null,null,null,null,null,null,null,null,null,null,null,null,null,null,"х","х","х","х","119","213",{"$f":"CF49+CG49+DL49","v":5407700},null,null,null,null,null,null,null,null,null,null,null,null,null,null,null,null,null,null,null,null,null,null,null,null,null,null,null,null,null,null,null,null,{"$f":"CF50+CF51","v":4884187},{"$f":"CG52+CG53+CG54+CG55+CG56+CG57","v":523513},null,null,null,null,null,null,null,null,null,null,null,null,null,null,null,null,null,null,null,null,null,null,null,null,null,null,null,null,null,null,{"$f":"DL58","v":0}]
["Начисления на выплаты по оплате труда\n",null,null,null,null,null,null,null,null,null,null,null,null,null,null,null,null,null,null,null,null,null,null,null,null,null,null,null,null,null,null,null,null,null,null,null,null,null,null,null,null,null,null,null,"07","02","0210060300",null,"119","213",{"$f":"CF50","v":3305530},null,null,null,null,null,null,null,null,null,null,null,null,null,null,null,null,null,null,null,null,null,null,null,null,null,null,null,null,null,null,null,null,3305530]
["Начисления на выплаты по оплате труда\n",null,null,null,null,null,null,null,null,null,null,null,null,null,null,null,null,null,null,null,null,null,null,null,null,null,null,null,null,null,null,null,null,null,null,null,null,null,null,null,null,null,null,null,"07","01","0210060350",null,"119","213",{"$f":"CF51","v":1578657},null,null,null,null,null,null,null,null,null,null,null,null,null,null,null,null,null,null,null,null,null,null,null,null,null,null,null,null,null,null,null,null,1578657]
["Начисления на выплаты по оплате труда\n",null,null,null,null,null,null,null,null,null,null,null,null,null,null,null,null,null,null,null,null,null,null,null,null,null,null,null,null,null,null,null,null,null,null,null,null,null,null,null,null,null,null,null,"07","09","0210060440",null,"119","213",{"$f":"CG52","v":191127},null,null,null,null,null,null,null,null,null,null,null,null,null,null,null,null,null,null,null,null,null,null,null,null,null,null,null,null,null,null,null,null,null,191127]
["Начисления на выплаты по оплате труда\n",null,null,null,null,null,null,null,null,null,null,null,null,null,null,null,null,null,null,null,null,null,null,null,null,null,null,null,null,null,null,null,null,null,null,null,null,null,null,null,null,null,null,null,"07","01","0210060450",null,"119","213",5103,null,null,null,null,null,null,null,null,null,null,null,null,null,null,null,null,null,null,null,null,null,null,null,null,null,null,null,null,null,null,null,null,null,5103]
["Начисления на выплаты по оплате труда\n",null,null,null,null,null,null,null,null,null,null,null,null,null,null,null,null,null,null,null,null,null,null,null,null,null,null,null,null,null,null,null,null,null,null,null,null,null,null,null,null,null,null,null,"07","02","0210060450",null,"119","213",11134,null,null,null,null,null,null,null,null,null,null,null,null,null,null,null,null,null,null,null,null,null,null,null,null,null,null,null,null,null,null,null,null,null,11134]
["Начисления на выплаты по оплате труда\n",null,null,null,null,null,null,null,null,null,null,null,null,null,null,null,null,null,null,null,null,null,null,null,null,null,null,null,null,null,null,null,null,null,null,null,null,null,null,null,null,null,null,null,"07","02","0210060530",null,"119","213",112960,null,null,null,null,null,null,null,null,null,null,null,null,null,null,null,null,null,null,null,null,null,null,null,null,null,null,null,null,null,null,null,null,null,112960]
["Начисления на выплаты по оплате труда\n",null,null,null,null,null,null,null,null,null,null,null,null,null,null,null,null,null,null,null,null,null,null,null,null,null,null,null,null,null,null,null,null,null,null,null,null,null,null,null,null,null,null,null,"07","01","0210062580",null,"119","213",203189,null,null,null,null,null,null,null,null,null,null,null,null,null,null,null,null,null,null,null,null,null,null,null,null,null,null,null,null,null,null,null,null,null,203189]
["Начисления на выплаты по оплате труда\n",null,null,null,null,null,null,null,null,null,null,null,null,null,null,null,null,null,null,null,null,null,null,null,null,null,null,null,null,null,null,null,null,null,null,null,null,null,null,null,null,null,null,null,"07","09","0210060520",null,"119","213",0]
["Начисления на выплаты по оплате труда\n",null,null,null,null,null,null,null,null,null,null,null,null,null,null,null,null,null,null,null,null,null,null,null,null,null,null,null,null,null,null,null,null,null,null,null,null,null,null,null,null,null,null,null,"00","00","0000000000",null,"119","213",{"$f":"DL58","v":0},null,null,null,null,null,null,null,null,null,null,null,null,null,null,null,null,null,null,null,null,null,null,null,null,null,null,null,null,null,null,null,null,null,null,null,null,null,null,null,null,null,null,null,null,null,null,null,null,null,null,null,null,null,null,null,null,null,null,null,null,null,null,null,null,0]
["Прочие выплаты",null,null,null,null,null,null,null,null,null,null,null,null,null,null,null,null,null,null,null,null,null,null,null,null,null,null,null,null,null,null,null,null,null,null,null,null,null,null,null,null,null,null,212,"х","х","х","х","112","212",{"$f":"AY60+AY61","v":0},null,null,null,null,null,null,null,null,null,null,null,null,null,null,null,null,null,null,null,null,null,null,null,null,null,null,null,null,null,null,null,null,{"$f":"CF60+CF61","v":0},null,null,null,null,null,null,null,null,null,null,null,null,null,null,null,null,null,null,null,null,null,null,null,null,null,null,null,null,null,null,null,0]
["Прочие выплаты",null,null,null,null,null,null,null,null,null,null,null,null,null,null,null,null,null,null,null,null,null,null,null,null,null,null,null,null,null,null,null,null,null,null,null,null,null,null,null,null,null,null,null,"07","02","0210060300",null,"112","212",{"$f":"CF60","v":0},null,null,null,null,null,null,null,null,null,null,null,null,null,null,null,null,null,null,null,null,null,null,null,null,null,null,null,null,null,null,null,null,null,null,null,null,null,null,null,null,null,null,null,null,null,null,null,null,null,null,null,null,null,null,null,null,null,null,null,null,null,null,null,null,0]
["Прочие выплаты",null,null,null,null,null,null,null,null,null,null,null,null,null,null,null,null,null,null,null,null,null,null,null,null,null,null,null,null,null,null,null,null,null,null,null,null,null,null,null,null,null,null,null,"07","01","0210060350",null,"112","212",{"$f":"CF61","v":0},null,null,null,null,null,null,null,null,null,null,null,null,null,null,null,null,null,null,null,null,null,null,null,null,null,null,null,null,null,null,null,null,null,null,null,null,null,null,null,null,null,null,null,null,null,null,null,null,null,null,null,null,null,null,null,null,null,null,null,null,null,null,null,null,0]
["Социальные и иные выплаты населению, всего",null,null,null,null,null,null,null,null,null,null,null,null,null,null,null,null,null,null,null,null,null,null,null,null,null,null,null,null,null,null,null,null,null,null,null,null,null,null,null,null,null,null,220,null,null,null,null,null,null,{"$f":"SUM(BQ62:DZ62)","v":46000},null,null,null,null,null,null,null,null,null,null,null,null,null,null,null,null,null,null,null,null,null,null,null,null,null,null,null,null,null,null,null,null,null,{"$f":"CG64","v":46000}]
["из них: ",null,null,null,null,null,null,null,null,null,null,null,null,null,null,null,null,null,null,null,null,null,null,null,null,null,null,null,null,null,null,null,null,null,null,null,null,null,null,null,null,null,null,null,null,null,null,null,null,null,0]
["Пособия по социальной помощи населению",null,null,null,null,null,null,null,null,null,null,null,null,null,null,null,null,null,null,null,null,null,null,null,null,null,null,null,null,null,null,null,null,null,null,null,null,null,null,null,null,null,null,262,"07","09","0210060310",null,"360","262",46000,null,null,null,null,null,null,null,null,null,null,null,null,null,null,null,null,null,null,null,null,null,null,null,null,null,null,null,null,null,null,null,null,null,46000]
["Начисления на пособие",null,null,null,null,null,null,null,null,null,null,null,null,null,null,null,null,null,null,null,null,null,null,null,null,null,null,null,null,null,null,null,null,null,null,null,null,null,null,null,null,null,null,null,null,null,null,null,null,null,0]
["Пенсии, пособия, выплачиваемые организациями",null,null,null,null,null,null,null,null,null,null,null,null,null,null,null,null,null,null,null,null,null,null,null,null,null,null,null,null,null,null,null,null,null,null,null,null,null,null,null,null,null,null,null,null,null,null,null,null,null,0]
["Прочие расходы",null,null,null,null,null,null,null,null,null,null,null,null,null,null,null,null,null,null,null,null,null,null,null,null,null,null,null,null,null,null,null,null,null,null,null,null,null,null,null,null,null,null,null,null,null,null,null,null,null,0]
["Прочие расходы",null,null,null,null,null,null,null,null,null,null,null,null,null,null,null,null,null,null,null,null,null,null,null,null,null,null,null,null,null,null,null,null,null,null,null,null,null,null,null,null,null,null,null,null,null,null,null,null,null,0]
["Уплата налогов, сборов и иных платежей, всего",null,null,null,null,null,null,null,null,null,null,null,null,null,null,null,null,null,null,null,null,null,null,null,null,null,null,null,null,null,null,null,null,null,null,null,null,null,null,null,null,null,null,230,"х","х","х","х","х","х",{"$f":"CG69+DL69+CF69","v":36000},null,null,null,null,null,null,null,null,null,null,null,null,null,null,null,null,null,null,null,null,null,null,null,null,null,null,null,null,null,null,null,null,{"$f":"CF71+CF72+CF73+CF74+CF75","v":0},{"$f":"CG74+CG72","v":29000},null,null,null,null,null,null,null,null,null,null,null,null,null,null,null,null,null,null,null,null,null,null,null,null,null,null,null,null,null,null,{"$f":"DL72+DL73+DL75","v":7000}]
["из них",null,null,null,null,null,null,null,null,null,null,null,null,null,null,null,null,null,null,null,null,null,null,null,null,null,null,null,null,null,null,null,null,null,null,null,null,null,null,null,null,null,null,null,null,null,null,null,null,null,{"$f":"SUM(BQ70:DZ70)","v":0}]
["на уплату сборов по исполнению судебных актов и соглашений по возмещению аренды и т.д.",null,null,null,null,null,null,null,null,null,null,null,null,null,null,null,null,null,null,null,null,null,null,null,null,null,null,null,null,null,null,null,null,null,null,null,null,null,null,null,null,null,null,null,null,null,null,null,null,null,{"$f":"SUM(BQ71:DZ71)","v":0}]
["уплата налогов на имущество организаций и земельного налога",null,null,null,null,null,null,null,null,null,null,null,null,null,null,null,null,null,null,null,null,null,null,null,null,null,null,null,null,null,null,null,null,null,null,null,null,null,null,null,null,null,null,null,"07","02","0210060300",null,"851","290",{"$f":"SUM(BQ72:DZ72)","v":22000},null,null,null,null,null,null,null,null,null,null,null,null,null,null,null,null,null,null,null,null,null,null,null,null,null,null,null,null,null,null,null,null,null,22000,null,null,null,null,null,null,null,null,null,null,null,null,null,null,null,null,null,null,null,null,null,null,null,null,null,null,null,null,null,null,0]
["уплата прочих налогов, сборов",null,null,null,null,null,null,null,null,null,null,null,null,null,null,null,null,null,null,null,null,null,null,null,null,null,null,null,null,null,null,null,null,null,null,null,null,null,null,null,null,null,null,null,"00","00","0000000000",null,"852","290",{"$f":"DL73","v":500},null,null,null,null,null,null,null,null,null,null,null,null,null,null,null,null,null,null,null,null,null,null,null,null,null,null,null,null,null,null,null,null,null,0,null,null,null,null,null,null,null,null,null,null,null,null,null,null,null,null,null,null,null,null,null,null,null,null,null,null,null,null,null,null,500]
["уплата прочих налогов, сборов",null,null,null,null,null,null,null,null,null,null,null,null,null,null,null,null,null,null,null,null,null,null,null,null,null,null,null,null,null,null,null,null,null,null,null,null,null,null,null,null,null,null,null,"07","09","0210060440",null,"852","290",{"$f":"CG74","v":7000},null,null,null,null,null,null,null,null,null,null,null,null,null,null,null,null,null,null,null,null,null,null,null,null,null,null,null,null,null,null,null,null,null,7000]
["уплата иных платежей",null,null,null,null,null,null,null,null,null,null,null,null,null,null,null,null,null,null,null,null,null,null,null,null,null,null,null,null,null,null,null,null,null,null,null,null,null,null,null,null,null,null,null,"00","00","0000000000",null,"853","290",{"$f":"DL75","v":6500},null,null,null,null,null,null,null,null,null,null,null,null,null,null,null,null,null,null,null,null,null,null,null,null,null,null,null,null,null,null,null,null,null,0,null,null,null,null,null,null,null,null,null,null,null,null,null,null,null,null,null,null,null,null,null,null,null,null,null,null,null,null,null,null,6500]
["Безвозмездные перечисления организациям, всего",null,null,null,null,null,null,null,null,null,null,null,null,null,null,null,null,null,null,null,null,null,null,null,null,null,null,null,null,null,null,null,null,null,null,null,null,null,null,null,null,null,null,240,null,null,null,null,null,null,{"$f":"SUM(BQ76:DZ76)","v":0}]
["из них",null,null,null,null,null,null,null,null,null,null,null,null,null,null,null,null,null,null,null,null,null,null,null,null,null,null,null,null,null,null,null,null,null,null,null,null,null,null,null,null,null,null,null,null,null,null,null,null,null,0]
["Безвозмездные перечисления государственным и муниципальным организациям",null,null,null,null,null,null,null,null,null,null,null,null,null,null,null,null,null,null,null,null,null,null,null,null,null,null,null,null,null,null,null,null,null,null,null,null,null,null,null,null,null,null,null,null,null,null,null,null,null,0]
["Безвозмездные перечисления организациям, за исключением государственных и муниципальных организаций",null,null,null,null,null,null,null,null,null,null,null,null,null,null,null,null,null,null,null,null,null,null,null,null,null,null,null,null,null,null,null,null,null,null,null,null,null,null,null,null,null,null,null,null,null,null,null,null,null,0]
["Прочие расходы (кроме расходов на закупку товаров, работ, услуг)",null,null,null,null,null,null,null,null,null,null,null,null,null,null,null,null,null,null,null,null,null,null,null,null,null,null,null,null,null,null,null,null,null,null,null,null,null,null,null,null,null,null,250,null,null,null,null,null,null,0]
["из них",null,null,null,null,null,null,null,null,null,null,null,null,null,null,null,null,null,null,null,null,null,null,null,null,null,null,null,null,null,null,null,null,null,null,null,null,null,null,null,null,null,null,null,null,null,null,null,null,null,0]
["Прочие расходы",null,null,null,null,null,null,null,null,null,null,null,null,null,null,null,null,null,null,null,null,null,null,null,null,null,null,null,null,null,null,null,null,null,null,null,null,null,null,null,null,null,null,null,null,null,null,null,null,null,0]
["Расходы на закупку товаров, работ, услуг, всего",null,null,null,null,null,null,null,null,null,null,null,null,null,null,null,null,null,null,null,null,null,null,null,null,null,null,null,null,null,null,null,null,null,null,null,null,null,null,null,null,null,null,260,"х","х","х","х","х","х",{"$f":"CF83+CG83+DL83","v":2014898.3599999999},null,null,null,null,null,null,null,null,null,null,null,null,null,null,null,null,null,null,null,null,null,null,null,null,null,null,null,null,null,null,null,null,{"$f":"CF85+CF93+CF95+CF101","v":574000},{"$f":"CG85+CG93+CG95+CG101+CG92","v":725000},null,null,null,null,null,null,null,null,null,null,null,null,null,null,null,null,null,null,null,null,null,null,null,null,null,null,null,null,null,null,{"$f":"DL85+DL93+DL95+DL101","v":715898.36}]
["из них",null,null,null,null,null,null,null,null,null,null,null,null,null,null,null,null,null,null,null,null,null,null,null,null,null,null,null,null,null,null,null,null,null,null,null,null,null,null,null,null,null,null,null,null,null,null,null,null,null,{"$f":"SUM(BQ84:DZ84)","v":0}]
["Услуги связи",null,null,null,null,null,null,null,null,null,null,null,null,null,null,null,null,null,null,null,null,null,null,null,null,null,null,null,null,null,null,null,null,null,null,null,null,null,null,null,null,null,null,null,"х","х","х","х","244","221",{"$f":"CF85+CG85+DL85","v":38000},null,null,null,null,null,null,null,null,null,null,null,null,null,null,null,null,null,null,null,null,null,null,null,null,null,null,null,null,null,null,null,null,{"$f":"CF86+CF87","v":38000},{"$f":"CG88","v":0},null,null,null,null,null,null,null,null,null,null,null,null,null,null,null,null,null,null,null,null,null,null,null,null,null,null,null,null,null,null,{"$f":"DL89","v":0}]
["Услуги связи",null,null,null,null,null,null,null,null,null,null,null,null,null,null,null,null,null,null,null,null,null,null,null,null,null,null,null,null,null,null,null,null,null,null,null,null,null,null,null,null,null,null,null,"07","02","0210060300",null,"244","221",{"$f":"CF86","v":35000},null,null,null,null,null,null,null,null,null,null,null,null,null,null,null,null,null,null,null,null,null,null,null,null,null,null,null,null,null,null,null,null,35000]
["Услуги связи",null,null,null,null,null,null,null,null,null,null,null,null,null,null,null,null,null,null,null,null,null,null,null,null,null,null,null,null,null,null,null,null,null,null,null,null,null,null,null,null,null,null,null,"07","01","0210060350",null,"244","221",{"$f":"CF87","v":3000},null,null,null,null,null,null,null,null,null,null,null,null,null,null,null,null,null,null,null,null,null,null,null,null,null,null,null,null,null,null,null,null,3000]
["Услуги связи",null,null,null,null,null,null,null,null,null,null,null,null,null,null,null,null,null,null,null,null,null,null,null,null,null,null,null,null,null,null,null,null,null,null,null,null,null,null,null,null,null,null,null,"07","09","0210060340",null,"244","221",{"$f":"CG88","v":0}]
["Услуги связи",null,null,null,null,null,null,null,null,null,null,null,null,null,null,null,null,null,null,null,null,null,null,null,null,null,null,null,null,null,null,null,null,null,null,null,null,null,null,null,null,null,null,null,"00","00","0000000000",null,"244","221",{"$f":"DL89","v":0}]
["Транспортные услуги",null,null,null,null,null,null,null,null,null,null,null,null,null,null,null,null,null,null,null,null,null,null,null,null,null,null,null,null,null,null,null,null,null,null,null,null,null,null,null,null,null,null,null,null,null,null,null,null,null,{"$f":"SUM(BQ90:DZ90)","v":0}]
["Коммунальные услуги",null,null,null,null,null,null,null,null,null,null,null,null,null,null,null,null,null,null,null,null,null,null,null,null,null,null,null,null,null,null,null,null,null,null,null,null,null,null,null,null,null,null,null,null,null,null,null,null,null,{"$f":"SUM(BQ91:DZ91)","v":0}]
["Арендная плата за пользование имуществом",null,null,null,null,null,null,null,null,null,null,null,null,null,null,null,null,null,null,null,null,null,null,null,null,null,null,null,null,null,null,null,null,null,null,null,null,null,null,null,null,null,null,null,"07","09","0210060440",null,"244","224",{"$f":"SUM(BQ92:DZ92)","v":39600},null,null,null,null,null,null,null,null,null,null,null,null,null,null,null,null,null,null,null,null,null,null,null,null,null,null,null,null,null,null,null,null,null,39600]
["Услуги по содержанию имущества",null,null,null,null,null,null,null,null,null,null,null,null,null,null,null,null,null,null,null,null,null,null,null,null,null,null,null,null,null,null,null,null,null,null,null,null,null,null,null,null,null,null,null,"х","х","х","х","244","225",{"$f":"CF93+CG93+DL93","v":80000},null,null,null,null,null,null,null,null,null,null,null,null,null,null,null,null,null,null,null,null,null,null,null,null,null,null,null,null,null,null,null,null,null,{"$f":"CG94","v":80000}]
["Услуги по содержанию имущества",null,null,null,null,null,null,null,null,null,null,null,null,null,null,null,null,null,null,null,null,null,null,null,null,null,null,null,null,null,null,null,null,null,null,null,null,null,null,null,null,null,null,null,"07","09","0210060440",null,"244","225",{"$f":"CG94","v":80000},null,null,null,null,null,null,null,null,null,null,null,null,null,null,null,null,null,null,null,null,null,null,null,null,null,null,null,null,null,null,null,null,null,80000]
["Прочие работы, услуги",null,null,null,null,null,null,null,null,null,null,null,null,null,null,null,null,null,null,null,null,null,null,null,null,null,null,null,null,null,null,null,null,null,null,null,null,null,null,null,null,null,null,null,"х","х","х","х","244","226",{"$f":"CF95+CG95+DL95","v":289000},null,null,null,null,null,null,null,null,null,null,null,null,null,null,null,null,null,null,null,null,null,null,null,null,null,null,null,null,null,null,null,null,{"$f":"CF98+CF100","v":119000},{"$f":"CG96+CG97+CG98+CG99+CG100","v":76000},null,null,null,null,null,null,null,null,null,null,null,null,null,null,null,null,null,null,null,null,null,null,null,null,null,null,null,null,null,null,{"$f":"DL97","v":94000}]
["Прочие работы, услуги",null,null,null,null,null,null,null,null,null,null,null,null,null,null,null,null,null,null,null,null,null,null,null,null,null,null,null,null,null,null,null,null,null,null,null,null,null,null,null,null,null,null,null,"07","09","0210060440",null,"244","226",{"$f":"CG96","v":76000},null,null,null,null,null,null,null,null,null,null,null,null,null,null,null,null,null,null,null,null,null,null,null,null,null,null,null,null,null,null,null,null,null,76000]
["Прочие работы, услуги",null,null,null,null,null,null,null,null,null,null,null,null,null,null,null,null,null,null,null,null,null,null,null,null,null,null,null,null,null,null,null,null,null,null,null,null,null,null,null,null,null,null,null,null,null,"0000000000",null,"244","226",{"$f":"DL97","v":94000},null,null,null,null,null,null,null,null,null,null,null,null,null,null,null,null,null,null,null,null,null,null,null,null,null,null,null,null,null,null,null,null,null,0,null,null,null,null,null,null,null,null,null,null,null,null,null,null,null,null,null,null,null,null,null,null,null,null,null,null,null,null,null,null,94000]
["Прочие работы, услуги",null,null,null,null,null,null,null,null,null,null,null,null,null,null,null,null,null,null,null,null,null,null,null,null,null,null,null,null,null,null,null,null,null,null,null,null,null,null,null,null,null,null,null,"07","02","0210060300",null,"244","226",{"$f":"CF98","v":90000},null,null,null,null,null,null,null,null,null,null,null,null,null,null,null,null,null,null,null,null,null,null,null,null,null,null,null,null,null,null,null,null,90000,0]
["Прочие работы, услуги",null,null,null,null,null,null,null,null,null,null,null,null,null,null,null,null,null,null,null,null,null,null,null,null,null,null,null,null,null,null,null,null,null,null,null,null,null,null,null,null,null,null,null,"07","09","0210060340",null,"244","226",{"$f":"CG99","v":0}]
["Прочие расходы,услуги",null,null,null,null,null,null,null,null,null,null,null,null,null,null,null,null,null,null,null,null,null,null,null,null,null,null,null,null,null,null,null,null,null,null,null,null,null,null,null,null,null,null,null,"07","01","0210060350",null,"244","226",{"$f":"CF100","v":29000},null,null,null,null,null,null,null,null,null,null,null,null,null,null,null,null,null,null,null,null,null,null,null,null,null,null,null,null,null,null,null,null,29000,0]
["Увеличение стоимости материальных запасов",null,null,null,null,null,null,null,null,null,null,null,null,null,null,null,null,null,null,null,null,null,null,null,null,null,null,null,null,null,null,null,null,null,null,null,null,null,null,null,null,null,null,null,"х","х","х","х","244","340",{"$f":"CF101+CG101+DL101","v":1568298.3599999999},null,null,null,null,null,null,null,null,null,null,null,null,null,null,null,null,null,null,null,null,null,null,null,null,null,null,null,null,null,null,null,null,{"$f":"CF103+CF104","v":417000},{"$f":"CG102+CG106+CG105","v":529400},null,null,null,null,null,null,null,null,null,null,null,null,null,null,null,null,null,null,null,null,null,null,null,null,null,null,null,null,null,null,{"$f":"DL107","v":621898.36}]
["Увеличение стоимости материальных запасов",null,null,null,null,null,null,null,null,null,null,null,null,null,null,null,null,null,null,null,null,null,null,null,null,null,null,null,null,null,null,null,null,null,null,null,null,null,null,null,null,null,null,null,"07","09","0210060440",null,"244","340",{"$f":"CG102","v":335400},null,null,null,null,null,null,null,null,null,null,null,null,null,null,null,null,null,null,null,null,null,null,null,null,null,null,null,null,null,null,null,null,null,335400]
["Увеличение стоимости материальных запасов",null,null,null,null,null,null,null,null,null,null,null,null,null,null,null,null,null,null,null,null,null,null,null,null,null,null,null,null,null,null,null,null,null,null,null,null,null,null,null,null,null,null,null,"07","02","0210060300",null,"244","340",{"$f":"CF103","v":123000},null,null,null,null,null,null,null,null,null,null,null,null,null,null,null,null,null,null,null,null,null,null,null,null,null,null,null,null,null,null,null,null,123000]
["Увеличение стоимости материальных запасов",null,null,null,null,null,null,null,null,null,null,null,null,null,null,null,null,null,null,null,null,null,null,null,null,null,null,null,null,null,null,null,null,null,null,null,null,null,null,null,null,null,null,null,"07","01","0210060350",null,"244","340",{"$f":"CF104","v":294000},null,null,null,null,null,null,null,null,null,null,null,null,null,null,null,null,null,null,null,null,null,null,null,null,null,null,null,null,null,null,null,null,294000]
["Увеличение стоимости материальных запасов",null,null,null,null,null,null,null,null,null,null,null,null,null,null,null,null,null,null,null,null,null,null,null,null,null,null,null,null,null,null,null,null,null,null,null,null,null,null,null,null,null,null,null,null,null,null,null,"244","340",{"$f":"CG105","v":0}]
["Увеличение стоимости материальных запасов",null,null,null,null,null,null,null,null,null,null,null,null,null,null,null,null,null,null,null,null,null,null,null,null,null,null,null,null,null,null,null,null,null,null,null,null,null,null,null,null,null,null,null,"07","01","0210060410",null,"244","340",{"$f":"CG106","v":194000},null,null,null,null,null,null,null,null,null,null,null,null,null,null,null,null,null,null,null,null,null,null,null,null,null,null,null,null,null,null,null,null,null,194000]
["Увеличение стоимости материальных запасов",null,null,null,null,null,null,null,null,null,null,null,null,null,null,null,null,null,null,null,null,null,null,null,null,null,null,null,null,null,null,null,null,null,null,null,null,null,null,null,null,null,null,null,"00","00","0000000000",null,"244","340",{"$f":"DL107","v":621898.36},null,null,null,null,null,null,null,null,null,null,null,null,null,null,null,null,null,null,null,null,null,null,null,null,null,null,null,null,null,null,null,null,null,null,null,null,null,null,null,null,null,null,null,null,null,null,null,null,null,null,null,null,null,null,null,null,null,null,null,null,null,null,null,null,621898.36]
["Поступление финансовых активов, всего",null,null,null,null,null,null,null,null,null,null,null,null,null,null,null,null,null,null,null,null,null,null,null,null,null,null,null,null,null,null,null,null,null,null,null,null,null,null,null,null,null,null,300,"х","х","х","х","х","х",{"$f":"CF108+CG108+DL108","v":25410898.359999999},null,null,null,null,null,null,null,null,null,null,null,null,null,null,null,null,null,null,null,null,null,null,null,null,null,null,null,null,null,null,null,null,21631000,3057000,null,null,null,null,null,null,null,null,null,null,null,null,null,null,null,null,null,null,null,null,null,null,null,null,null,null,null,null,null,null,722898.36]
["из них:",null,null,null,null,null,null,null,null,null,null,null,null,null,null,null,null,null,null,null,null,null,null,null,null,null,null,null,null,null,null,null,null,null,null,null,null,null,null,null,null,null,null,null,"х","х","х",null,null,null,{"$f":"SUM(BQ109:DZ109)","v":0},null,null,null,null,null,null,null,null,null,null,null,null,null,null,null,null,null,null,null,null,null,null,null,null,null,null,null,null,null,null,null,null,"0,00","0,00",null,null,null,null,null,null,null,null,null,null,null,null,null,null,null,null,null,null,null,null,null,null,null,null,null,null,null,null,null,null,"0,00"]
["увеличение остатков средств ",null,null,null,null,null,null,null,null,null,null,null,null,null,null,null,null,null,null,null,null,null,null,null,null,null,null,null,null,null,null,null,null,null,null,null,null,null,null,null,null,null,null,310,"х","х","х",null,null,"х",{"$f":"CF110+CG110+DL110","v":25410898.359999999},null,null,null,null,null,null,null,null,null,null,null,null,null,null,null,null,null,null,null,null,null,null,null,null,null,null,null,null,null,null,null,null,21631000,3057000,null,null,null,null,null,null,null,null,null,null,null,null,null,null,null,null,null,null,null,null,null,null,null,null,null,null,null,null,null,null,722898.36]
["прочие поступления",null,null,null,null,null,null,null,null,null,null,null,null,null,null,null,null,null,null,null,null,null,null,null,null,null,null,null,null,null,null,null,null,null,null,null,null,null,null,null,null,null,null,320,"х","х","х",null,null,null,{"$f":"SUM(BQ111:DZ111)","v":0},null,null,null,null,null,null,null,null,null,null,null,null,null,null,null,null,null,null,null,null,null,null,null,null,null,null,null,null,null,null,null,null,0,0,null,null,null,null,null,null,null,null,null,null,null,null,null,null,null,null,null,null,null,null,null,null,null,null,null,null,null,null,null,null,"0,00"]
["Выбытие финансовых активов, всего",null,null,null,null,null,null,null,null,null,null,null,null,null,null,null,null,null,null,null,null,null,null,null,null,null,null,null,null,null,null,null,null,null,null,null,null,null,null,null,null,null,null,400,"х","х","х","х","х","х",{"$f":"CF112+CG112+DL112","v":25410898.359999999},null,null,null,null,null,null,null,null,null,null,null,null,null,null,null,null,null,null,null,null,null,null,null,null,null,null,null,null,null,null,null,null,21631000,3057000,null,null,null,null,null,null,null,null,null,null,null,null,null,null,null,null,null,null,null,null,null,null,null,null,null,null,null,null,null,null,722898.36]
["из них:",null,null,null,null,null,null,null,null,null,null,null,null,null,null,null,null,null,null,null,null,null,null,null,null,null,null,null,null,null,null,null,null,null,null,null,null,null,null,null,null,null,null,null,"х","х","х",null,null,null,{"$f":"SUM(BQ113:DZ113)","v":0},null,null,null,null,null,null,null,null,null,null,null,null,null,null,null,null,null,null,null,null,null,null,null,null,null,null,null,null,null,null,null,null,0,0,null,null,null,null,null,null,null,null,null,null,null,null,null,null,null,null,null,null,null,null,null,null,null,null,null,null,null,null,null,null,"0,00"]
["уменьшение остатков средств ",null,null,null,null,null,null,null,null,null,null,null,null,null,null,null,null,null,null,null,null,null,null,null,null,null,null,null,null,null,null,null,null,null,null,null,null,null,null,null,null,null,null,410,"х","х","х",null,null,"х",{"$f":"CF114+CG114+DL114","v":25410898.359999999},null,null,null,null,null,null,null,null,null,null,null,null,null,null,null,null,null,null,null,null,null,null,null,null,null,null,null,null,null,null,null,null,21631000,3057000,null,null,null,null,null,null,null,null,null,null,null,null,null,null,null,null,null,null,null,null,null,null,null,null,null,null,null,null,null,null,722898.36]
["прочие выбытие",null,null,null,null,null,null,null,null,null,null,null,null,null,null,null,null,null,null,null,null,null,null,null,null,null,null,null,null,null,null,null,null,null,null,null,null,null,null,null,null,null,null,420,"х","х","х"]
["Остаток средств на начало года",null,null,null,null,null,null,null,null,null,null,null,null,null,null,null,null,null,null,null,null,null,null,null,null,null,null,null,null,null,null,null,null,null,null,null,null,null,null,null,null,null,null,500,"х","х","х","х","х","х",null,null,null,null,null,null,null,null,null,null,null,null,null,null,null,null,null,null,null,null,null,null,null,null,null,null,null,null,null,null,null,null,null,"х","х"]
["Остаток средств на конец года",null,null,null,null,null,null,null,null,null,null,null,null,null,null,null,null,null,null,null,null,null,null,null,null,null,null,null,null,null,null,null,null,null,null,null,null,null,null,null,null,null,null,600,"х","х","х","х","х","х",{"$f":"CF117+CG117+DL117","v":0},null,null,null,null,null,null,null,null,null,null,null,null,null,null,null,null,null,null,null,null,null,null,null,null,null,null,null,null,null,null,null,null,null,null,null,null,null,null,null,null,null,null,null,null,null,null,null,null,null,null,null,null,null,null,null,null,null,null,null,null,null,null,null,null,0]
[]
["По строкам 500, 600 в графах 5 - 12 указываются планируемые суммы остатков средств на начало и на конец планируемого года либо указываются фактические остатки средств при внесении изменений в утвержденный план после завершения отчетного финансового года;"]
[]
["в графе 3 по строкам 110 - 180, 300 - 420 указываются коды классификации сектора государственного управления, по строкам 210 - 280 указываются коды видов расходов бюджетов;"]
[]
["по строке 120 в графе 12 указываются плановые показатели по доходам от грантов, предоставление которых из соответствующего бюджета бюджетной системы Российской Федерации осуществляется по кодам 613 \"Гранты в Форме субсидии бюджетным учреждениям\" или 623 \"Гранты в Форме субсидии автономным учреждениям\" видов расходов бюджетов."]

{"sheet":"2.1_2_2","index":4,"n_rows":123,"n_cols":139,"rows_kept":123,"cut":false,"hidden":false,"merged":[[7,68,7,144],[9,130,9,144],[1,118,2,143],[3,0,3,129],[5,0,9,42],[5,43,9,43],[5,44,8,48],[5,49,8,49],[5,50,5,144],[6,50,6,143],[7,50,9,67],[10,85,10,99],[10,100,10,114],[10,115,10,129],[8,68,9,82],[8,83,9,83],[8,84,9,84],[8,85,9,99],[8,100,9,114],[8,115,8,144],[9,115,9,129],[10,131,10,144],[11,0,11,42],[11,50,11,67],[11,68,11,82],[11,85,11,99],[11,100,11,114],[11,115,11,129],[10,0,10,42],[10,50,10,67],[10,68,10,82],[13,68,13,82],[13,85,13,99],[13,100,13,114],[13,115,13,129],[12,0,12,42],[12,50,12,67],[12,68,12,82],[12,85,12,99],[12,100,12,114],[12,115,12,129],[13,131,13,144],[14,0,14,42],[14,50,14,67],[14,68,14,82],[14,85,14,99],[14,100,14,114],[14,115,14,129],[14,131,14,144],[13,0,13,42],[13,50,13,67],[15,0,15,42],[15,50,15,67],[16,0,16,42],[16,50,16,67],[17,0,17,42],[17,50,17,67],[17,115,17,129],[18,0,18,42],[18,50,18,67],[18,115,18,129],[19,0,19,42],[19,50,19,67],[19,68,19,82],[19,85,19,99],[19,100,19,114],[19,131,19,144],[20,0,20,42],[20,50,20,67],[20,68,20,82],[20,85,20,99],[20,100,20,114],[20,115,20,129],[21,0,21,42],[21,50,21,67],[21,68,21,82],[21,85,21,99],[21,100,21,114],[21,115,21,129],[22,0,22,42],[22,50,22,67],[23,0,23,42],[23,50,23,67],[24,0,24,42],[24,50,24,67],[25,0,25,42],[25,50,25,67],[26,0,26,42],[26,50,26,67],[27,0,27,42],[27,50,27,67],[31,68,31,82],[31,85,31,99],[31,100,31,114],[31,115,31,129],[28,0,28,42],[28,50,28,67],[29,0,29,42],[29,50,29,67],[30,0,30,42],[30,50,30,67],[31,131,31,144],[32,0,32,42],[32,50,32,67],[32,68,32,82],[32,85,32,99],[32,100,32,114],[32,115,32,129],[32,131,32,144],[31,0,31,42],[31,50,31,67],[34,115,34,129],[34,131,34,144],[33,0,33,42],[33,50,33,67],[33,68,33,82],[33,85,33,99],[33,100,33,114],[33,115,33,129],[35,68,35,82],[35,85,35,99],[35,100,35,114],[35,115,35,129],[33,131,33,144],[34,0,34,42],[34,50,34,67],[34,68,34,82],[34,85,34,99],[34,100,34,114],[35,131,35,144],[36,0,36,42],[36,50,36,67],[36,68,36,82],[36,85,36,99],[36,100,36,114],[36,115,36,129],[36,130,36,144],[35,0,35,42],[35,50,35,67],[37,0,37,42],[37,50,37,67],[37,68,37,82],[37,85,37,99],[37,100,37,114],[37,115,37,129],[38,0,38,42],[38,50,38,67],[38,68,38,82],[38,85,38,99],[38,100,38,114],[38,115,38,129],[39,0,39,42],[39,50,39,67],[40,0,40,42],[40,50,40,67],[41,0,41,42],[41,50,41,67],[42,0,42,42],[42,50,42,67],[43,0,43,42],[43,50,43,67],[44,0,44,42],[44,50,44,67],[45,0,45,42],[45,50,45,67],[45,115,45,130],[46,0,46,42],[46,50,46,67],[46,115,46,130],[47,0,47,42],[47,50,47,67],[47,115,47,130],[48,0,48,42],[48,50,48,67],[48,68,48,82],[48,85,48,99],[48,100,48,114],[48,115,48,129],[48,130,48,144],[49,0,49,42],[49,50,49,67],[49,68,49,82],[49,85,49,99],[49,100,49,114],[49,115,49,129],[50,0,50,42],[50,50,50,67],[50,68,50,82],[50,85,50,99],[50,100,50,114],[50,115,50,129],[51,0,51,42],[51,50,51,67],[51,68,51,82],[51,85,51,99],[51,100,51,114],[51,115,51,129],[52,0,52,42],[52,50,52,67],[52,68,52,82],[52,85,52,99],[52,100,52,114],[52,115,52,129],[53,0,53,42],[53,50,53,67],[53,68,53,82],[53,85,53,99],[53,100,53,114],[53,115,53,129],[54,0,54,42],[54,50,54,67],[54,68,54,82],[54,85,54,99],[54,100,54,114],[54,115,54,129],[55,0,55,42],[55,50,55,67],[55,68,55,82],[55,85,55,99],[55,100,55,114],[55,115,55,129],[56,0,56,42],[56,50,56,67],[56,68,56,82],[56,85,56,99],[56,100,56,114],[56,115,56,129],[57,0,57,42],[57,50,57,67],[57,115,57,128],[58,0,58,42],[58,50,58,67],[58,115,58,128],[61,68,61,82],[61,85,61,99],[61,100,61,114],[61,115,61,129],[59,0,59,42],[59,50,59,67],[59,115,59,128],[60,0,60,42],[60,50,60,67],[60,115,60,128],[61,130,61,144],[62,0,62,42],[62,50,62,67],[62,68,62,82],[62,85,62,99],[62,100,62,114],[62,115,62,129],[62,130,62,144],[61,0,61,42],[61,50,61,67],[64,115,64,129],[64,130,64,144],[63,0,63,42],[63,50,63,67],[63,68,63,82],[63,85,63,99],[63,100,63,114],[63,115,63,129],[65,68,65,82],[65,85,65,99],[65,100,65,114],[65,115,65,129],[63,130,63,144],[64,0,64,42],[64,50,64,67],[64,68,64,82],[64,85,64,99],[64,100,64,114],[65,130,65,144],[66,0,66,42],[66,50,66,67],[66,68,66,82],[66,85,66,99],[66,100,66,114],[66,115,66,129],[66,130,66,144],[65,0,65,42],[65,50,65,67],[68,115,68,129],[68,131,68,144],[67,0,67,42],[67,50,67,67],[67,68,67,82],[67,85,67,99],[67,100,67,114],[67,115,67,129],[69,68,69,82],[69,85,69,99],[69,100,69,114],[69,115,69,129],[67,130,67,144],[68,0,68,42],[68,50,68,67],[68,68,68,82],[68,85,68,99],[68,100,68,114],[69,131,69,144],[70,0,70,42],[70,50,70,67],[70,68,70,82],[70,85,70,99],[70,100,70,114],[70,115,70,129],[70,130,70,144],[69,0,69,42],[69,50,69,67],[71,0,71,42],[71,50,71,67],[71,68,71,82],[71,85,71,99],[71,100,71,114],[71,115,71,129],[71,130,71,144],[72,0,72,42],[72,50,72,67],[72,115,72,130],[72,131,72,144],[73,0,73,42],[73,50,73,67],[73,68,73,82],[73,85,73,99],[73,100,73,114],[73,115,73,129],[73,131,73,144],[74,0,74,42],[74,50,74,67],[74,68,74,82],[74,85,74,99],[74,100,74,114],[74,115,74,129],[74,130,74,144],[76,115,76,129],[76,131,76,144],[75,0,75,42],[75,50,75,67],[75,68,75,82],[75,85,75,99],[75,100,75,114],[75,115,75,129],[77,68,77,82],[77,85,77,99],[77,100,77,114],[77,115,77,129],[75,131,75,144],[76,0,76,42],[76,50,76,67],[76,68,76,82],[76,85,76,99],[76,100,76,114],[77,131,77,144],[78,0,78,42],[78,50,78,67],[78,68,78,82],[78,85,78,99],[78,100,78,114],[78,115,78,129],[78,131,78,144],[77,0,77,42],[77,50,77,67],[80,115,80,129],[80,131,80,144],[79,0,79,42],[79,50,79,67],[79,68,79,82],[79,85,79,99],[79,100,79,114],[79,115,79,129],[81,68,81,82],[81,85,81,99],[81,100,81,114],[81,115,81,129],[79,131,79,144],[80,0,80,42],[80,50,80,67],[80,68,80,82],[80,85,80,99],[80,100,80,114],[81,130,81,144],[82,0,82,42],[82,50,82,67],[82,68,82,82],[82,85,82,99],[82,100,82,114],[82,115,82,129],[82,130,82,144],[81,0,81,42],[81,50,81,67],[84,115,84,129],[84,130,84,144],[83,0,83,42],[83,50,83,67],[83,68,83,82],[83,85,83,99],[83,100,83,114],[83,115,83,129],[85,68,85,82],[85,85,85,99],[85,100,85,114],[85,115,85,129],[83,130,83,144],[84,0,84,42],[84,50,84,67],[84,68,84,82],[84,85,84,99],[84,100,84,114],[85,130,85,144],[86,0,86,42],[86,50,86,67],[86,130,86,144],[87,0,87,42],[87,50,87,67],[87,115,87,128],[87,130,87,144],[85,0,85,42],[85,50,85,67],[89,115,89,129],[89,130,89,144],[88,0,88,42],[88,50,88,67],[88,68,88,82],[88,85,88,99],[88,100,88,114],[88,115,88,129],[90,68,90,82],[90,85,90,99],[90,100,90,114],[90,115,90,129],[88,130,88,144],[89,0,89,42],[89,50,89,67],[89,68,89,82],[89,85,89,99],[89,100,89,114],[90,130,90,144],[91,0,91,42],[91,50,91,67],[91,68,91,82],[91,85,91,99],[91,100,91,114],[91,115,91,129],[91,130,91,144],[90,0,90,42],[90,50,90,67],[93,115,93,129],[93,130,93,144],[92,0,92,42],[92,50,92,67],[92,68,92,82],[92,85,92,99],[92,100,92,114],[92,115,92,129],[94,68,94,82],[94,85,94,99],[94,100,94,114],[94,115,94,129],[92,130,92,144],[93,0,93,42],[93,50,93,67],[93,68,93,82],[93,85,93,99],[93,100,93,114],[94,130,94,144],[95,0,95,42],[95,50,95,67],[95,68,95,82],[95,85,95,99],[95,100,95,114],[95,115,95,129],[95,130,95,144],[94,0,94,42],[94,50,94,67],[97,115,97,129],[97,130,97,144],[96,0,96,42],[96,50,96,67],[96,68,96,82],[96,85,96,99],[96,100,96,114],[96,115,96,129],[98,68,98,82],[98,85,98,99],[98,100,98,114],[98,115,98,129],[96,130,96,144],[97,0,97,42],[97,50,97,67],[97,68,97,82],[97,85,97,99],[97,100,97,114],[98,130,98,144],[99,0,99,42],[99,50,99,67],[99,68,99,82],[99,85,99,99],[99,100,99,114],[99,115,99,129],[99,130,99,144],[98,0,98,42],[98,50,98,67],[101,115,101,129],[101,130,101,144],[100,0,100,42],[100,50,100,67],[100,68,100,82],[100,85,100,99],[100,100,100,114],[100,115,100,129],[102,68,102,82],[102,85,102,99],[102,100,102,114],[102,115,102,129],[100,130,100,144],[101,0,101,42],[101,50,101,67],[101,68,101,82],[101,85,101,99],[101,100,101,114],[102,130,102,144],[103,0,103,42],[103,50,103,67],[103,68,103,82],[103,85,103,99],[103,100,103,114],[103,115,103,129],[103,130,103,144],[102,0,102,42],[102,50,102,67],[105,115,105,129],[105,130,105,144],[104,0,104,42],[104,50,104,67],[104,68,104,82],[104,85,104,99],[104,100,104,114],[104,115,104,129],[106,68,106,82],[106,85,106,99],[106,100,106,114],[106,115,106,129],[104,130,104,144],[105,0,105,42],[105,50,105,67],[105,68,105,82],[105,85,105,99],[105,100,105,114],[106,130,106,144],[107,0,107,42],[107,50,107,67],[107,68,107,82],[107,85,107,99],[107,100,107,114],[107,115,107,129],[107,130,107,144],[106,0,106,42],[106,50,106,67],[109,115,109,129],[109,130,109,144],[108,0,108,42],[108,50,108,67],[108,68,108,82],[108,85,108,99],[108,100,108,114],[108,115,108,129],[110,68,110,82],[110,85,110,99],[110,100,110,114],[110,115,110,129],[108,130,108,144],[109,0,109,42],[109,50,109,67],[109,68,109,82],[109,85,109,99],[109,100,109,114],[110,130,110,144],[111,0,111,42],[111,50,111,67],[111,68,111,82],[111,85,111,99],[111,100,111,114],[111,115,111,129],[111,130,111,144],[110,0,110,42],[110,50,110,67],[113,115,113,129],[113,130,113,144],[112,0,112,42],[112,50,112,67],[112,68,112,82],[112,85,112,99],[112,100,112,114],[112,115,112,129],[114,68,114,82],[114,85,114,99],[114,100,114,114],[114,115,114,129],[112,130,112,144],[113,0,113,42],[113,50,113,67],[113,68,113,82],[113,85,113,99],[113,100,113,114],[114,130,114,144],[115,0,115,42],[115,50,115,67],[115,68,115,82],[115,85,115,99],[115,100,115,114],[115,115,115,129],[115,130,115,144],[114,0,114,42],[114,50,114,67],[116,130,116,144],[118,0,118,144],[120,0,120,144],[122,0,122,144],[116,0,116,42],[116,50,116,67],[116,68,116,82],[116,85,116,99],[116,100,116,114],[116,115,116,129]]}
[]
[null,null,null,null,null,null,null,null,null,null,null,null,null,null,null,null,null,null,null,null,null,null,null,null,null,null,null,null,null,null,null,null,null,null,null,null,null,null,null,null,null,null,null,null,null,null,null,null,null,null,null,null,null,null,null,null,null,null,null,null,null,null,null,null,null,null,null,null,null,null,null,null,null,null,null,null,null,null,null,null,null,null,null,null,null,null,null,null,null,null,null,null,null,null,null,null,null,null,null,null,null,null,null,null,null,null,null,null,null,null,null,null,null,null,null,null,null,null,"Таблица 2"]
[]
["III. Показатели по поступлениям и выплатам государственного учреждения "]
[]
["Наименование показателя",null,null,null,null,null,null,null,null,null,null,null,null,null,null,null,null,null,null,null,null,null,null,null,null,null,null,null,null,null,null,null,null,null,null,null,null,null,null,null,null,null,null,"Код строки","Коды бюджетной классификации                                                  Российской федерации",null,null,null,null,"Код дополнительной классификации","Объем финансового обеспечения, руб. (с точностью до двух знаков после запятой - 0,00) "]
[null,null,null,null,null,null,null,null,null,null,null,null,null,null,null,null,null,null,null,null,null,null,null,null,null,null,null,null,null,null,null,null,null,null,null,null,null,null,null,null,null,null,null,null,null,null,null,null,null,null,"2020 год  (2 год планового периода)"]
[null,null,null,null,null,null,null,null,null,null,null,null,null,null,null,null,null,null,null,null,null,null,null,null,null,null,null,null,null,null,null,null,null,null,null,null,null,null,null,null,null,null,null,null,null,null,null,null,null,null,"Всего",null,null,null,null,null,null,null,null,null,null,null,null,null,null,null,null,null,"в том числе"]
[null,null,null,null,null,null,null,null,null,null,null,null,null,null,null,null,null,null,null,null,null,null,null,null,null,null,null,null,null,null,null,null,null,null,null,null,null,null,null,null,null,null,null,null,null,null,null,null,null,null,null,null,null,null,null,null,null,null,null,null,null,null,null,null,null,null,null,null,"средства областного бюджета, поступающие из федерального бюджета",null,null,null,null,null,null,null,null,null,null,null,null,null,null,"субсидии на финансовое обеспечение выполнения государственного задания","субсидии, предоставляемые в соответствии с абзацем пункта 1 статьи 78.1 Бюджетного кодекса Российской Федерации (целевые субсидии) ","субсидии на осуществление капитальных вложений",null,null,null,null,null,null,null,null,null,null,null,null,null,null,"средства обязательного медицинского страхования",null,null,null,null,null,null,null,null,null,null,null,null,null,null,"поступления от оказания услуг (выполнения работ) на платной основе и от иной приносящей доход деятельности"]
[null,null,null,null,null,null,null,null,null,null,null,null,null,null,null,null,null,null,null,null,null,null,null,null,null,null,null,null,null,null,null,null,null,null,null,null,null,null,null,null,null,null,null,null,"Код раздела","Код подраздела","Код целевой статьи расходов","Код операций сектора государственного управления          (для поступрений)","Код вида расходов                                         (для выплат)","Код\nэкономической классификации расходов",null,null,null,null,null,null,null,null,null,null,null,null,null,null,null,null,null,null,null,null,null,null,null,null,null,null,null,null,null,null,null,null,null,null,null,null,null,null,null,null,null,null,null,null,null,null,null,null,null,null,null,null,null,null,null,null,null,null,null,null,null,null,null,null,null,"всего",null,null,null,null,null,null,null,null,null,null,null,null,null,null,"из них гранты"]
[1,null,null,null,null,null,null,null,null,null,null,null,null,null,null,null,null,null,null,null,null,null,null,null,null,null,null,null,null,null,null,null,null,null,null,null,null,null,null,null,null,null,null,2,3,4,5,6,7,8,9,null,null,null,null,null,null,null,null,null,null,null,null,null,null,null,null,null,10,null,null,null,null,null,null,null,null,null,null,null,null,null,null,11,12,13,null,null,null,null,null,null,null,null,null,null,null,null,null,null,14,null,null,null,null,null,null,null,null,null,null,null,null,null,null,15,null,null,null,null,null,null,null,null,null,null,null,null,null,null,null,16]
["Поступления, всего:",null,null,null,null,null,null,null,null,null,null,null,null,null,null,null,null,null,null,null,null,null,null,null,null,null,null,null,null,null,null,null,null,null,null,null,null,null,null,null,null,null,null,100,"х","х","х","х","х","х",{"$f":"CF12+CG12+DL12","v":25806898.359999999},null,null,null,null,null,null,null,null,null,null,null,null,null,null,null,null,null,null,null,null,null,null,null,null,null,null,null,null,null,null,null,null,{"$f":"CF15","v":22026000},{"$f":"CG21","v":3058000},null,null,null,null,null,null,null,null,null,null,null,null,null,null,null,null,null,null,null,null,null,null,null,null,null,null,null,null,null,null,{"$f":"DL15","v":722898.36}]
["в том числе:",null,null,null,null,null,null,null,null,null,null,null,null,null,null,null,null,null,null,null,null,null,null,null,null,null,null,null,null,null,null,null,null,null,null,null,null,null,null,null,null,null,null,null,null,null,null,null,"х","х",{"$f":"SUM(BQ13:DZ13)","v":0},null,null,null,null,null,null,null,null,null,null,null,null,null,null,null,null,null,null,null,null,null,null,null,null,null,null,null,null,null,null,null,null,null,null,null,null,null,null,null,null,null,null,null,null,null,null,null,null,null,null,null,null,null,null,null,null,null,null,null,null,null,null,null,null," "]
["доходы от собственности (сдача в аренду государственного недвижимого имущества и прочее)",null,null,null,null,null,null,null,null,null,null,null,null,null,null,null,null,null,null,null,null,null,null,null,null,null,null,null,null,null,null,null,null,null,null,null,null,null,null,null,null,null,null,110,null,null,null,null,"х","х",{"$f":"SUM(BQ14:DZ14)","v":0},null,null,null,null,null,null,null,null,null,null,null,null,null,null,null,null,null,"х",null,null,null,null,null,null,null,null,null,null,null,null,null,null,"х","х","х",null,null,null,null,null,null,null,null,null,null,null,null,null,null,"х",null,null,null,null,null,null,null,null,null,null,null,null,null,null,null,null,null,null,null,null,null,null,null,null,null,null,null,null,null,null,"х"]
["доходы от оказания услуг, работ",null,null,null,null,null,null,null,null,null,null,null,null,null,null,null,null,null,null,null,null,null,null,null,null,null,null,null,null,null,null,null,null,null,null,null,null,null,null,null,null,null,null,120,null,null,null,"130","х","х",{"$f":"CF15+DL15","v":22748898.359999999},null,null,null,null,null,null,null,null,null,null,null,null,null,null,null,null,null,null,null,null,null,null,null,null,null,null,null,null,null,null,null,null,{"$f":"CF16+CF17","v":22026000},"х","х",null,null,null,null,null,null,null,null,null,null,null,null,null,null,null,null,null,null,null,null,null,null,null,null,null,null,null,null,null,{"$f":"DL19+DL18","v":722898.36}]
["доходы от оказания услуг, работ",null,null,null,null,null,null,null,null,null,null,null,null,null,null,null,null,null,null,null,null,null,null,null,null,null,null,null,null,null,null,null,null,null,null,null,null,null,null,null,null,null,null,null,"07","02","0210060300","130","х","х",{"$f":"CF16","v":14882000},null,null,null,null,null,null,null,null,null,null,null,null,null,null,null,null,null,null,null,null,null,null,null,null,null,null,null,null,null,null,null,null,14882000]
["доходы от оказания услуг, работ",null,null,null,null,null,null,null,null,null,null,null,null,null,null,null,null,null,null,null,null,null,null,null,null,null,null,null,null,null,null,null,null,null,null,null,null,null,null,null,null,null,null,null,"07","01","0210060350","130","х","х",{"$f":"CF17","v":7144000},null,null,null,null,null,null,null,null,null,null,null,null,null,null,null,null,null,null,null,null,null,null,null,null,null,null,null,null,null,null,null,null,7144000]
["доходы от оказания услуг, работ",null,null,null,null,null,null,null,null,null,null,null,null,null,null,null,null,null,null,null,null,null,null,null,null,null,null,null,null,null,null,null,null,null,null,null,null,null,null,null,null,null,null,null,"00","00","0000000000","130","х","х",{"$f":"DL18","v":722898.36},null,null,null,null,null,null,null,null,null,null,null,null,null,null,null,null,null,null,null,null,null,null,null,null,null,null,null,null,null,null,null,null,null,null,null,null,null,null,null,null,null,null,null,null,null,null,null,null,null,null,null,null,null,null,null,null,null,null,null,null,null,null,null,null,722898.36]
["доходы от оказания услуг, работ",null,null,null,null,null,null,null,null,null,null,null,null,null,null,null,null,null,null,null,null,null,null,null,null,null,null,null,null,null,null,null,null,null,null,null,null,null,null,null,null,null,null,null,"00","00","0000000000","180","х","х",{"$f":"DL19","v":0}]
["доходы от штрафов, пеней, иных сумм принудительного изъятия",null,null,null,null,null,null,null,null,null,null,null,null,null,null,null,null,null,null,null,null,null,null,null,null,null,null,null,null,null,null,null,null,null,null,null,null,null,null,null,null,null,null,130,null,null,null,null,"х","х",{"$f":"SUM(BQ20:DZ20)","v":0},null,null,null,null,null,null,null,null,null,null,null,null,null,null,null,null,null,"х",null,null,null,null,null,null,null,null,null,null,null,null,null,null,"х","х","х",null,null,null,null,null,null,null,null,null,null,null,null,null,null,"х",null,null,null,null,null,null,null,null,null,null,null,null,null,null,null,null,null,null,null,null,null,null,null,null,null,null,null,null,null,null,"х"]
["целевые субсидии, предоставленные из бюджета",null,null,null,null,null,null,null,null,null,null,null,null,null,null,null,null,null,null,null,null,null,null,null,null,null,null,null,null,null,null,null,null,null,null,null,null,null,null,null,null,null,null,150,null,null,null,"180","х","х",{"$f":"CG21","v":3058000},null,null,null,null,null,null,null,null,null,null,null,null,null,null,null,null,null,null,null,null,null,null,null,null,null,null,null,null,null,null,null,null,"х",{"$f":"CG22+CG23+CG24+CG25+CG26+CG27+CG28+CG31+CG30","v":3058000},null,null,null,null,null,null,null,null,null,null,null,null,null,null,null,"х",null,null,null,null,null,null,null,null,null,null,null,null,null,null,"х",null,null,null,null,null,null,null,null,null,null,null,null,null,null,null,null,null,null,null,null,null,null,"х"]
["целевые субсидии, предоставленные из бюджета",null,null,null,null,null,null,null,null,null,null,null,null,null,null,null,null,null,null,null,null,null,null,null,null,null,null,null,null,null,null,null,null,null,null,null,null,null,null,null,null,null,null,null,"07","09","0210060340","180","х","х",0,null,null,null,null,null,null,null,null,null,null,null,null,null,null,null,null,null,null,null,null,null,null,null,null,null,null,null,null,null,null,null,null,"х",0,null,null,null,null,null,null,null,null,null,null,null,null,null,null,null,"х",null,null,null,null,null,null,null,null,null,null,null,null,null,null,"х",null,null,null,null,null,null,null,null,null,null,null,null,null,null,null,null,null,null,null,null,null,null,"х"]
["целевые субсидии, предоставленные из бюджета",null,null,null,null,null,null,null,null,null,null,null,null,null,null,null,null,null,null,null,null,null,null,null,null,null,null,null,null,null,null,null,null,null,null,null,null,null,null,null,null,null,null,null,"07","09","0210060440","180","х","х",1384000,null,null,null,null,null,null,null,null,null,null,null,null,null,null,null,null,null,null,null,null,null,null,null,null,null,null,null,null,null,null,null,null,null,1384000]
["целевые субсидии, предоставленные из бюджета",null,null,null,null,null,null,null,null,null,null,null,null,null,null,null,null,null,null,null,null,null,null,null,null,null,null,null,null,null,null,null,null,null,null,null,null,null,null,null,null,null,null,null,"07","01","0210060410","180","х","х",194000,null,null,null,null,null,null,null,null,null,null,null,null,null,null,null,null,null,null,null,null,null,null,null,null,null,null,null,null,null,null,null,null,null,194000]
["целевые субсидии, предоставленные из бюджета",null,null,null,null,null,null,null,null,null,null,null,null,null,null,null,null,null,null,null,null,null,null,null,null,null,null,null,null,null,null,null,null,null,null,null,null,null,null,null,null,null,null,null,"07","01","0210060450","180","х","х",22000,null,null,null,null,null,null,null,null,null,null,null,null,null,null,null,null,null,null,null,null,null,null,null,null,null,null,null,null,null,null,null,null,null,22000]
["целевые субсидии, предоставленные из бюджета",null,null,null,null,null,null,null,null,null,null,null,null,null,null,null,null,null,null,null,null,null,null,null,null,null,null,null,null,null,null,null,null,null,null,null,null,null,null,null,null,null,null,null,"07","02","0210060450","180","х","х",48000,null,null,null,null,null,null,null,null,null,null,null,null,null,null,null,null,null,null,null,null,null,null,null,null,null,null,null,null,null,null,null,null,null,48000]
["целевые субсидии, предоставленные из бюджета",null,null,null,null,null,null,null,null,null,null,null,null,null,null,null,null,null,null,null,null,null,null,null,null,null,null,null,null,null,null,null,null,null,null,null,null,null,null,null,null,null,null,null,"07","02","210060530","180","х","х",487000,null,null,null,null,null,null,null,null,null,null,null,null,null,null,null,null,null,null,null,null,null,null,null,null,null,null,null,null,null,null,null,null,null,487000]
["целевые субсидии, предоставленные из бюджета",null,null,null,null,null,null,null,null,null,null,null,null,null,null,null,null,null,null,null,null,null,null,null,null,null,null,null,null,null,null,null,null,null,null,null,null,null,null,null,null,null,null,null,"07","01","210062580","180","х","х",876000,null,null,null,null,null,null,null,null,null,null,null,null,null,null,null,null,null,null,null,null,null,null,null,null,null,null,null,null,null,null,null,null,null,876000]
["целевые субсидии, предоставленные из бюджета",null,null,null,null,null,null,null,null,null,null,null,null,null,null,null,null,null,null,null,null,null,null,null,null,null,null,null,null,null,null,null,null,null,null,null,null,null,null,null,null,null,null,null,"07","09","210060520","180","х","х",0]
["целевые субсидии, предоставленные из бюджета",null,null,null,null,null,null,null,null,null,null,null,null,null,null,null,null,null,null,null,null,null,null,null,null,null,null,null,null,null,null,null,null,null,null,null,null,null,null,null,null,null,null,null,"07","09","210060310","180","х","х",47000,null,null,null,null,null,null,null,null,null,null,null,null,null,null,null,null,null,null,null,null,null,null,null,null,null,null,null,null,null,null,null,null,null,47000]
["целевые субсидии, предоставленные из бюджета",null,null,null,null,null,null,null,null,null,null,null,null,null,null,null,null,null,null,null,null,null,null,null,null,null,null,null,null,null,null,null,null,null,null,null,null,null,null,null,null,null,null,null,"07","09","210060340","180","х","х",0]
["прочие доходы",null,null,null,null,null,null,null,null,null,null,null,null,null,null,null,null,null,null,null,null,null,null,null,null,null,null,null,null,null,null,null,null,null,null,null,null,null,null,null,null,null,null,160,null,null,null,null,"х","х",{"$f":"SUM(BQ32:DZ32)","v":0},null,null,null,null,null,null,null,null,null,null,null,null,null,null,null,null,null,"х",null,null,null,null,null,null,null,null,null,null,null,null,null,null,"х","х","х",null,null,null,null,null,null,null,null,null,null,null,null,null,null,"х"]
["доходы от операций с активами, в том числе",null,null,null,null,null,null,null,null,null,null,null,null,null,null,null,null,null,null,null,null,null,null,null,null,null,null,null,null,null,null,null,null,null,null,null,null,null,null,null,null,null,null,180,null,null,null,null,"х","х",{"$f":"SUM(BQ33:DZ33)","v":0},null,null,null,null,null,null,null,null,null,null,null,null,null,null,null,null,null,"х",null,null,null,null,null,null,null,null,null,null,null,null,null,null,"х","х","х",null,null,null,null,null,null,null,null,null,null,null,null,null,null,"х",null,null,null,null,null,null,null,null,null,null,null,null,null,null,null,null,null,null,null,null,null,null,null,null,null,null,null,null,null,"х","х"]
["от реализации основных средств",null,null,null,null,null,null,null,null,null,null,null,null,null,null,null,null,null,null,null,null,null,null,null,null,null,null,null,null,null,null,null,null,null,null,null,null,null,null,null,null,null,null,null,null,null,null,null,"х","х",{"$f":"SUM(BQ34:DZ34)","v":0},null,null,null,null,null,null,null,null,null,null,null,null,null,null,null,null,null,"х",null,null,null,null,null,null,null,null,null,null,null,null,null,null,"х","х","х",null,null,null,null,null,null,null,null,null,null,null,null,null,null,"х"]
["от реализации материальных запасов",null,null,null,null,null,null,null,null,null,null,null,null,null,null,null,null,null,null,null,null,null,null,null,null,null,null,null,null,null,null,null,null,null,null,null,null,null,null,null,null,null,null,null,null,null,null,null,"х","х",{"$f":"SUM(BQ35:DZ35)","v":0},null,null,null,null,null,null,null,null,null,null,null,null,null,null,null,null,null,"х",null,null,null,null,null,null,null,null,null,null,null,null,null,null,"х","х","х",null,null,null,null,null,null,null,null,null,null,null,null,null,null,"х"]
["Расходы, всего:",null,null,null,null,null,null,null,null,null,null,null,null,null,null,null,null,null,null,null,null,null,null,null,null,null,null,null,null,null,null,null,null,null,null,null,null,null,null,null,null,null,null,200,"х","х","х","х","х","х",{"$f":"CF36+CG36+DL36","v":25806898.359999999},null,null,null,null,null,null,null,null,null,null,null,null,null,null,null,null,null,null,null,null,null,null,null,null,null,null,null,null,null,null,null,null,{"$f":"CF37+CF83+CF59+CF69","v":22026000},{"$f":"CG37+CG69+CG83+CG62","v":3058000},null,null,null,null,null,null,null,null,null,null,null,null,null,null,null,null,null,null,null,null,null,null,null,null,null,null,null,null,null,null,{"$f":"DL37+DL69+DL83","v":722898.36}]
["в том числе на выплаты персоналу, всего:",null,null,null,null,null,null,null,null,null,null,null,null,null,null,null,null,null,null,null,null,null,null,null,null,null,null,null,null,null,null,null,null,null,null,null,null,null,null,null,null,null,null,210,null,null,null,null,null,"210",{"$f":"CF37+CG37+DL37","v":23693000},null,null,null,null,null,null,null,null,null,null,null,null,null,null,null,null,null,null,null,null,null,null,null,null,null,null,null,null,null,null,null,null,{"$f":"CF38","v":21436000},{"$f":"CG38","v":2257000},null,null,null,null,null,null,null,null,null,null,null,null,null,null,null,null,null,null,null,null,null,null,null,null,null,null,null,null,null,null,{"$f":"DL38","v":0}]
["из них: оплата труда и начисления на выплаты по оплате труда ",null,null,null,null,null,null,null,null,null,null,null,null,null,null,null,null,null,null,null,null,null,null,null,null,null,null,null,null,null,null,null,null,null,null,null,null,null,null,null,null,null,null,211,"х","х","х","х","111,119","211,213",{"$f":"CF38+CG38+DL38","v":23693000},null,null,null,null,null,null,null,null,null,null,null,null,null,null,null,null,null,null,null,null,null,null,null,null,null,null,null,null,null,null,null,null,{"$f":"CF39+CF49","v":21436000},{"$f":"CG39+CG49","v":2257000},null,null,null,null,null,null,null,null,null,null,null,null,null,null,null,null,null,null,null,null,null,null,null,null,null,null,null,null,null,null,{"$f":"DL39+DL49+DL61","v":0}]
["Заработная плата",null,null,null,null,null,null,null,null,null,null,null,null,null,null,null,null,null,null,null,null,null,null,null,null,null,null,null,null,null,null,null,null,null,null,null,null,null,null,null,null,null,null,null,"х","х","х","х","111","211",{"$f":"CF39+CG39+DL39","v":18197390},null,null,null,null,null,null,null,null,null,null,null,null,null,null,null,null,null,null,null,null,null,null,null,null,null,null,null,null,null,null,null,null,{"$f":"CF40+CF41","v":16463903},{"$f":"CG42+CG43+CG44+CG45+CG47+CG46","v":1733487},null,null,null,null,null,null,null,null,null,null,null,null,null,null,null,null,null,null,null,null,null,null,null,null,null,null,null,null,null,null,{"$f":"DL48","v":0}]
["Заработная плата",null,null,null,null,null,null,null,null,null,null,null,null,null,null,null,null,null,null,null,null,null,null,null,null,null,null,null,null,null,null,null,null,null,null,null,null,null,null,null,null,null,null,null,"07","02","0210060300",null,"111","211",{"$f":"CF40","v":11236560},null,null,null,null,null,null,null,null,null,null,null,null,null,null,null,null,null,null,null,null,null,null,null,null,null,null,null,null,null,null,null,null,11236560]
["Заработная плата",null,null,null,null,null,null,null,null,null,null,null,null,null,null,null,null,null,null,null,null,null,null,null,null,null,null,null,null,null,null,null,null,null,null,null,null,null,null,null,null,null,null,null,"07","01","0210060350",null,"111","211",{"$f":"CF41","v":5227343},null,null,null,null,null,null,null,null,null,null,null,null,null,null,null,null,null,null,null,null,null,null,null,null,null,null,null,null,null,null,null,null,5227343]
["Заработная плата",null,null,null,null,null,null,null,null,null,null,null,null,null,null,null,null,null,null,null,null,null,null,null,null,null,null,null,null,null,null,null,null,null,null,null,null,null,null,null,null,null,null,null,"07","09","0210060440",null,"111","211",{"$f":"CG42","v":632873},null,null,null,null,null,null,null,null,null,null,null,null,null,null,null,null,null,null,null,null,null,null,null,null,null,null,null,null,null,null,null,null,null,632873]
["Заработная плата",null,null,null,null,null,null,null,null,null,null,null,null,null,null,null,null,null,null,null,null,null,null,null,null,null,null,null,null,null,null,null,null,null,null,null,null,null,null,null,null,null,null,null,"07","01","0210060450",null,"111","211",16897,null,null,null,null,null,null,null,null,null,null,null,null,null,null,null,null,null,null,null,null,null,null,null,null,null,null,null,null,null,null,null,null,null,16897]
["Заработная плата",null,null,null,null,null,null,null,null,null,null,null,null,null,null,null,null,null,null,null,null,null,null,null,null,null,null,null,null,null,null,null,null,null,null,null,null,null,null,null,null,null,null,null,"07","02","0210060450",null,"111","211",36866,null,null,null,null,null,null,null,null,null,null,null,null,null,null,null,null,null,null,null,null,null,null,null,null,null,null,null,null,null,null,null,null,null,36866]
["Заработная плата",null,null,null,null,null,null,null,null,null,null,null,null,null,null,null,null,null,null,null,null,null,null,null,null,null,null,null,null,null,null,null,null,null,null,null,null,null,null,null,null,null,null,null,"07","02","0210060530",null,"111","211",374040,null,null,null,null,null,null,null,null,null,null,null,null,null,null,null,null,null,null,null,null,null,null,null,null,null,null,null,null,null,null,null,null,null,374040]
["Заработная плата",null,null,null,null,null,null,null,null,null,null,null,null,null,null,null,null,null,null,null,null,null,null,null,null,null,null,null,null,null,null,null,null,null,null,null,null,null,null,null,null,null,null,null,"07","01","0210062580",null,"111","211",672811,null,null,null,null,null,null,null,null,null,null,null,null,null,null,null,null,null,null,null,null,null,null,null,null,null,null,null,null,null,null,null,null,null,672811]
["Заработная плата",null,null,null,null,null,null,null,null,null,null,null,null,null,null,null,null,null,null,null,null,null,null,null,null,null,null,null,null,null,null,null,null,null,null,null,null,null,null,null,null,null,null,null,"07","09","0210060520",null,"111","211",0]
["Заработная плата",null,null,null,null,null,null,null,null,null,null,null,null,null,null,null,null,null,null,null,null,null,null,null,null,null,null,null,null,null,null,null,null,null,null,null,null,null,null,null,null,null,null,null,"00","00","0000000000",null,"111","211",{"$f":"DL48","v":0},null,null,null,null,null,null,null,null,null,null,null,null,null,null,null,null,null,null,null,null,null,null,null,null,null,null,null,null,null,null,null,null,null,null,null,null,null,null,null,null,null,null,null,null,null,null,null,null,null,null,null,null,null,null,null,null,null,null,null,null,null,null,null,null,0]
["Начисления на выплаты по оплате труда\n",null,null,null,null,null,null,null,null,null,null,null,null,null,null,null,null,null,null,null,null,null,null,null,null,null,null,null,null,null,null,null,null,null,null,null,null,null,null,null,null,null,null,null,"х","х","х","х","119","213",{"$f":"CF49+CG49+DL49","v":5495610},null,null,null,null,null,null,null,null,null,null,null,null,null,null,null,null,null,null,null,null,null,null,null,null,null,null,null,null,null,null,null,null,{"$f":"CF50+CF51","v":4972097},{"$f":"CG52+CG53+CG54+CG55+CG56+CG57","v":523513},null,null,null,null,null,null,null,null,null,null,null,null,null,null,null,null,null,null,null,null,null,null,null,null,null,null,null,null,null,null,{"$f":"DL58","v":0}]
["Начисления на выплаты по оплате труда\n",null,null,null,null,null,null,null,null,null,null,null,null,null,null,null,null,null,null,null,null,null,null,null,null,null,null,null,null,null,null,null,null,null,null,null,null,null,null,null,null,null,null,null,"07","02","0210060300",null,"119","213",{"$f":"CF50","v":3393440},null,null,null,null,null,null,null,null,null,null,null,null,null,null,null,null,null,null,null,null,null,null,null,null,null,null,null,null,null,null,null,null,3393440]
["Начисления на выплаты по оплате труда\n",null,null,null,null,null,null,null,null,null,null,null,null,null,null,null,null,null,null,null,null,null,null,null,null,null,null,null,null,null,null,null,null,null,null,null,null,null,null,null,null,null,null,null,"07","01","0210060350",null,"119","213",{"$f":"CF51","v":1578657},null,null,null,null,null,null,null,null,null,null,null,null,null,null,null,null,null,null,null,null,null,null,null,null,null,null,null,null,null,null,null,null,1578657]
["Начисления на выплаты по оплате труда\n",null,null,null,null,null,null,null,null,null,null,null,null,null,null,null,null,null,null,null,null,null,null,null,null,null,null,null,null,null,null,null,null,null,null,null,null,null,null,null,null,null,null,null,"07","09","0210060440",null,"119","213",{"$f":"CG52","v":191127},null,null,null,null,null,null,null,null,null,null,null,null,null,null,null,null,null,null,null,null,null,null,null,null,null,null,null,null,null,null,null,null,null,191127]
["Начисления на выплаты по оплате труда\n",null,null,null,null,null,null,null,null,null,null,null,null,null,null,null,null,null,null,null,null,null,null,null,null,null,null,null,null,null,null,null,null,null,null,null,null,null,null,null,null,null,null,null,"07","01","0210060450",null,"119","213",5103,null,null,null,null,null,null,null,null,null,null,null,null,null,null,null,null,null,null,null,null,null,null,null,null,null,null,null,null,null,null,null,null,null,5103]
["Начисления на выплаты по оплате труда\n",null,null,null,null,null,null,null,null,null,null,null,null,null,null,null,null,null,null,null,null,null,null,null,null,null,null,null,null,null,null,null,null,null,null,null,null,null,null,null,null,null,null,null,"07","02","0210060450",null,"119","213",11134,null,null,null,null,null,null,null,null,null,null,null,null,null,null,null,null,null,null,null,null,null,null,null,null,null,null,null,null,null,null,null,null,null,11134]
["Начисления на выплаты по оплате труда\n",null,null,null,null,null,null,null,null,null,null,null,null,null,null,null,null,null,null,null,null,null,null,null,null,null,null,null,null,null,null,null,null,null,null,null,null,null,null,null,null,null,null,null,"07","02","0210060530",null,"119","213",112960,null,null,null,null,null,null,null,null,null,null,null,null,null,null,null,null,null,null,null,null,null,null,null,null,null,null,null,null,null,null,null,null,null,112960]
["Начисления на выплаты по оплате труда\n",null,null,null,null,null,null,null,null,null,null,null,null,null,null,null,null,null,null,null,null,null,null,null,null,null,null,null,null,null,null,null,null,null,null,null,null,null,null,null,null,null,null,null,"07","01","0210062580",null,"119","213",203189,null,null,null,null,null,null,null,null,null,null,null,null,null,null,null,null,null,null,null,null,null,null,null,null,null,null,null,null,null,null,null,null,null,203189]
["Начисления на выплаты по оплате труда\n",null,null,null,null,null,null,null,null,null,null,null,null,null,null,null,null,null,null,null,null,null,null,null,null,null,null,null,null,null,null,null,null,null,null,null,null,null,null,null,null,null,null,null,"07","09","0210060520",null,"119","213",0]
["Начисления на выплаты по оплате труда\n",null,null,null,null,null,null,null,null,null,null,null,null,null,null,null,null,null,null,null,null,null,null,null,null,null,null,null,null,null,null,null,null,null,null,null,null,null,null,null,null,null,null,null,"00","00","0000000000",null,"119","213",{"$f":"DL58","v":0},null,null,null,null,null,null,null,null,null,null,null,null,null,null,null,null,null,null,null,null,null,null,null,null,null,null,null,null,null,null,null,null,null,null,null,null,null,null,null,null,null,null,null,null,null,null,null,null,null,null,null,null,null,null,null,null,null,null,null,null,null,null,null,null,0]
["Прочие выплаты",null,null,null,null,null,null,null,null,null,null,null,null,null,null,null,null,null,null,null,null,null,null,null,null,null,null,null,null,null,null,null,null,null,null,null,null,null,null,null,null,null,null,212,"х","х","х","х","112","212",{"$f":"AY60+AY61","v":0},null,null,null,null,null,null,null,null,null,null,null,null,null,null,null,null,null,null,null,null,null,null,null,null,null,null,null,null,null,null,null,null,{"$f":"CF60+CF61","v":0},null,null,null,null,null,null,null,null,null,null,null,null,null,null,null,null,null,null,null,null,null,null,null,null,null,null,null,null,null,null,null,0]
["Прочие выплаты",null,null,null,null,null,null,null,null,null,null,null,null,null,null,null,null,null,null,null,null,null,null,null,null,null,null,null,null,null,null,null,null,null,null,null,null,null,null,null,null,null,null,null,"07","02","0210060300",null,"112","212",{"$f":"CF60","v":0},null,null,null,null,null,null,null,null,null,null,null,null,null,null,null,null,null,null,null,null,null,null,null,null,null,null,null,null,null,null,null,null,null,null,null,null,null,null,null,null,null,null,null,null,null,null,null,null,null,null,null,null,null,null,null,null,null,null,null,null,null,null,null,null,0]
["Прочие выплаты",null,null,null,null,null,null,null,null,null,null,null,null,null,null,null,null,null,null,null,null,null,null,null,null,null,null,null,null,null,null,null,null,null,null,null,null,null,null,null,null,null,null,null,"07","01","0210060350",null,"112","212",{"$f":"CF61","v":0},null,null,null,null,null,null,null,null,null,null,null,null,null,null,null,null,null,null,null,null,null,null,null,null,null,null,null,null,null,null,null,null,null,null,null,null,null,null,null,null,null,null,null,null,null,null,null,null,null,null,null,null,null,null,null,null,null,null,null,null,null,null,null,null,0]
["Социальные и иные выплаты населению, всего",null,null,null,null,null,null,null,null,null,null,null,null,null,null,null,null,null,null,null,null,null,null,null,null,null,null,null,null,null,null,null,null,null,null,null,null,null,null,null,null,null,null,220,null,null,null,null,null,null,{"$f":"SUM(BQ62:DZ62)","v":47000},null,null,null,null,null,null,null,null,null,null,null,null,null,null,null,null,null,null,null,null,null,null,null,null,null,null,null,null,null,null,null,null,null,{"$f":"CG64","v":47000}]
["из них: ",null,null,null,null,null,null,null,null,null,null,null,null,null,null,null,null,null,null,null,null,null,null,null,null,null,null,null,null,null,null,null,null,null,null,null,null,null,null,null,null,null,null,null,null,null,null,null,null,null,0]
["Пособия по социальной помощи населению",null,null,null,null,null,null,null,null,null,null,null,null,null,null,null,null,null,null,null,null,null,null,null,null,null,null,null,null,null,null,null,null,null,null,null,null,null,null,null,null,null,null,262,"07","09","0210060310",null,"360","262",47000,null,null,null,null,null,null,null,null,null,null,null,null,null,null,null,null,null,null,null,null,null,null,null,null,null,null,null,null,null,null,null,null,null,47000]
["Начисления на пособие",null,null,null,null,null,null,null,null,null,null,null,null,null,null,null,null,null,null,null,null,null,null,null,null,null,null,null,null,null,null,null,null,null,null,null,null,null,null,null,null,null,null,null,null,null,null,null,null,null,0]
["Пенсии, пособия, выплачиваемые организациями",null,null,null,null,null,null,null,null,null,null,null,null,null,null,null,null,null,null,null,null,null,null,null,null,null,null,null,null,null,null,null,null,null,null,null,null,null,null,null,null,null,null,null,null,null,null,null,null,null,0]
["Прочие расходы",null,null,null,null,null,null,null,null,null,null,null,null,null,null,null,null,null,null,null,null,null,null,null,null,null,null,null,null,null,null,null,null,null,null,null,null,null,null,null,null,null,null,null,null,null,null,null,null,null,0]
["Прочие расходы",null,null,null,null,null,null,null,null,null,null,null,null,null,null,null,null,null,null,null,null,null,null,null,null,null,null,null,null,null,null,null,null,null,null,null,null,null,null,null,null,null,null,null,null,null,null,null,null,null,0]
["Уплата налогов, сборов и иных платежей, всего",null,null,null,null,null,null,null,null,null,null,null,null,null,null,null,null,null,null,null,null,null,null,null,null,null,null,null,null,null,null,null,null,null,null,null,null,null,null,null,null,null,null,230,"х","х","х","х","х","х",{"$f":"CG69+DL69+CF69","v":36000},null,null,null,null,null,null,null,null,null,null,null,null,null,null,null,null,null,null,null,null,null,null,null,null,null,null,null,null,null,null,null,null,{"$f":"CF71+CF72+CF73+CF74+CF75","v":0},{"$f":"CG74+CG72","v":29000},null,null,null,null,null,null,null,null,null,null,null,null,null,null,null,null,null,null,null,null,null,null,null,null,null,null,null,null,null,null,{"$f":"DL72+DL73+DL75","v":7000}]
["из них",null,null,null,null,null,null,null,null,null,null,null,null,null,null,null,null,null,null,null,null,null,null,null,null,null,null,null,null,null,null,null,null,null,null,null,null,null,null,null,null,null,null,null,null,null,null,null,null,null,{"$f":"SUM(BQ70:DZ70)","v":0}]
["на уплату сборов по исполнению судебных актов и соглашений по возмещению аренды и т.д.",null,null,null,null,null,null,null,null,null,null,null,null,null,null,null,null,null,null,null,null,null,null,null,null,null,null,null,null,null,null,null,null,null,null,null,null,null,null,null,null,null,null,null,null,null,null,null,null,null,{"$f":"SUM(BQ71:DZ71)","v":0}]
["уплата налогов на имущество организаций и земельного налога",null,null,null,null,null,null,null,null,null,null,null,null,null,null,null,null,null,null,null,null,null,null,null,null,null,null,null,null,null,null,null,null,null,null,null,null,null,null,null,null,null,null,null,"07","02","0210060300",null,"851","290",{"$f":"SUM(BQ72:DZ72)","v":21659},null,null,null,null,null,null,null,null,null,null,null,null,null,null,null,null,null,null,null,null,null,null,null,null,null,null,null,null,null,null,null,null,null,21659,null,null,null,null,null,null,null,null,null,null,null,null,null,null,null,null,null,null,null,null,null,null,null,null,null,null,null,null,null,null,0]
["уплата прочих налогов, сборов",null,null,null,null,null,null,null,null,null,null,null,null,null,null,null,null,null,null,null,null,null,null,null,null,null,null,null,null,null,null,null,null,null,null,null,null,null,null,null,null,null,null,null,"00","00","0000000000",null,"852","290",{"$f":"DL73","v":500},null,null,null,null,null,null,null,null,null,null,null,null,null,null,null,null,null,null,null,null,null,null,null,null,null,null,null,null,null,null,null,null,null,0,null,null,null,null,null,null,null,null,null,null,null,null,null,null,null,null,null,null,null,null,null,null,null,null,null,null,null,null,null,null,500]
["уплата прочих налогов, сборов",null,null,null,null,null,null,null,null,null,null,null,null,null,null,null,null,null,null,null,null,null,null,null,null,null,null,null,null,null,null,null,null,null,null,null,null,null,null,null,null,null,null,null,"07","09","0210060440",null,"852","290",{"$f":"CG74","v":7341},null,null,null,null,null,null,null,null,null,null,null,null,null,null,null,null,null,null,null,null,null,null,null,null,null,null,null,null,null,null,null,null,null,7341]
["уплата иных платежей",null,null,null,null,null,null,null,null,null,null,null,null,null,null,null,null,null,null,null,null,null,null,null,null,null,null,null,null,null,null,null,null,null,null,null,null,null,null,null,null,null,null,null,"00","00","0000000000",null,"853","290",{"$f":"DL75","v":6500},null,null,null,null,null,null,null,null,null,null,null,null,null,null,null,null,null,null,null,null,null,null,null,null,null,null,null,null,null,null,null,null,null,0,null,null,null,null,null,null,null,null,null,null,null,null,null,null,null,null,null,null,null,null,null,null,null,null,null,null,null,null,null,null,6500]
["Безвозмездные перечисления организациям, всего",null,null,null,null,null,null,null,null,null,null,null,null,null,null,null,null,null,null,null,null,null,null,null,null,null,null,null,null,null,null,null,null,null,null,null,null,null,null,null,null,null,null,240,null,null,null,null,null,null,{"$f":"SUM(BQ76:DZ76)","v":0}]
["из них",null,null,null,null,null,null,null,null,null,null,null,null,null,null,null,null,null,null,null,null,null,null,null,null,null,null,null,null,null,null,null,null,null,null,null,null,null,null,null,null,null,null,null,null,null,null,null,null,null,0]
["Безвозмездные перечисления государственным и муниципальным организациям",null,null,null,null,null,null,null,null,null,null,null,null,null,null,null,null,null,null,null,null,null,null,null,null,null,null,null,null,null,null,null,null,null,null,null,null,null,null,null,null,null,null,null,null,null,null,null,null,null,0]
["Безвозмездные перечисления организациям, за исключением государственных и муниципальных организаций",null,null,null,null,null,null,null,null,null,null,null,null,null,null,null,null,null,null,null,null,null,null,null,null,null,null,null,null,null,null,null,null,null,null,null,null,null,null,null,null,null,null,null,null,null,null,null,null,null,0]
["Прочие расходы (кроме расходов на закупку товаров, работ, услуг)",null,null,null,null,null,null,null,null,null,null,null,null,null,null,null,null,null,null,null,null,null,null,null,null,null,null,null,null,null,null,null,null,null,null,null,null,null,null,null,null,null,null,250,null,null,null,null,null,null,0]
["из них",null,null,null,null,null,null,null,null,null,null,null,null,null,null,null,null,null,null,null,null,null,null,null,null,null,null,null,null,null,null,null,null,null,null,null,null,null,null,null,null,null,null,null,null,null,null,null,null,null,0]
["Прочие расходы",null,null,null,null,null,null,null,null,null,null,null,null,null,null,null,null,null,null,null,null,null,null,null,null,null,null,null,null,null,null,null,null,null,null,null,null,null,null,null,null,null,null,null,null,null,null,null,null,null,0]
["Расходы на закупку товаров, работ, услуг, всего",null,null,null,null,null,null,null,null,null,null,null,null,null,null,null,null,null,null,null,null,null,null,null,null,null,null,null,null,null,null,null,null,null,null,null,null,null,null,null,null,null,null,260,"х","х","х","х","х","х",{"$f":"CF83+CG83+DL83","v":2030898.3599999999},null,null,null,null,null,null,null,null,null,null,null,null,null,null,null,null,null,null,null,null,null,null,null,null,null,null,null,null,null,null,null,null,{"$f":"CF85+CF93+CF95+CF101","v":590000},{"$f":"CG85+CG93+CG95+CG101+CG92","v":725000},null,null,null,null,null,null,null,null,null,null,null,null,null,null,null,null,null,null,null,null,null,null,null,null,null,null,null,null,null,null,{"$f":"DL85+DL93+DL95+DL101","v":715898.36}]
["из них",null,null,null,null,null,null,null,null,null,null,null,null,null,null,null,null,null,null,null,null,null,null,null,null,null,null,null,null,null,null,null,null,null,null,null,null,null,null,null,null,null,null,null,null,null,null,null,null,null,{"$f":"SUM(BQ84:DZ84)","v":0}]
["Услуги связи",null,null,null,null,null,null,null,null,null,null,null,null,null,null,null,null,null,null,null,null,null,null,null,null,null,null,null,null,null,null,null,null,null,null,null,null,null,null,null,null,null,null,null,"х","х","х","х","244","221",{"$f":"CF85+CG85+DL85","v":38000},null,null,null,null,null,null,null,null,null,null,null,null,null,null,null,null,null,null,null,null,null,null,null,null,null,null,null,null,null,null,null,null,{"$f":"CF86+CF87","v":38000},{"$f":"CG88","v":0},null,null,null,null,null,null,null,null,null,null,null,null,null,null,null,null,null,null,null,null,null,null,null,null,null,null,null,null,null,null,{"$f":"DL89","v":0}]
["Услуги связи",null,null,null,null,null,null,null,null,null,null,null,null,null,null,null,null,null,null,null,null,null,null,null,null,null,null,null,null,null,null,null,null,null,null,null,null,null,null,null,null,null,null,null,"07","02","0210060300",null,"244","221",{"$f":"CF86","v":35000},null,null,null,null,null,null,null,null,null,null,null,null,null,null,null,null,null,null,null,null,null,null,null,null,null,null,null,null,null,null,null,null,35000]
["Услуги связи",null,null,null,null,null,null,null,null,null,null,null,null,null,null,null,null,null,null,null,null,null,null,null,null,null,null,null,null,null,null,null,null,null,null,null,null,null,null,null,null,null,null,null,"07","01","0210060350",null,"244","221",{"$f":"CF87","v":3000},null,null,null,null,null,null,null,null,null,null,null,null,null,null,null,null,null,null,null,null,null,null,null,null,null,null,null,null,null,null,null,null,3000]
["Услуги связи",null,null,null,null,null,null,null,null,null,null,null,null,null,null,null,null,null,null,null,null,null,null,null,null,null,null,null,null,null,null,null,null,null,null,null,null,null,null,null,null,null,null,null,"07","09","0210060340",null,"244","221",{"$f":"CG88","v":0}]
["Услуги связи",null,null,null,null,null,null,null,null,null,null,null,null,null,null,null,null,null,null,null,null,null,null,null,null,null,null,null,null,null,null,null,null,null,null,null,null,null,null,null,null,null,null,null,"00","00","0000000000",null,"244","221",{"$f":"DL89","v":0}]
["Транспортные услуги",null,null,null,null,null,null,null,null,null,null,null,null,null,null,null,null,null,null,null,null,null,null,null,null,null,null,null,null,null,null,null,null,null,null,null,null,null,null,null,null,null,null,null,null,null,null,null,null,null,{"$f":"SUM(BQ90:DZ90)","v":0}]
["Коммунальные услуги",null,null,null,null,null,null,null,null,null,null,null,null,null,null,null,null,null,null,null,null,null,null,null,null,null,null,null,null,null,null,null,null,null,null,null,null,null,null,null,null,null,null,null,null,null,null,null,null,null,{"$f":"SUM(BQ91:DZ91)","v":0}]
["Арендная плата за пользование имуществом",null,null,null,null,null,null,null,null,null,null,null,null,null,null,null,null,null,null,null,null,null,null,null,null,null,null,null,null,null,null,null,null,null,null,null,null,null,null,null,null,null,null,null,"07","09","0210060440",null,"244","224",{"$f":"SUM(BQ92:DZ92)","v":39600},null,null,null,null,null,null,null,null,null,null,null,null,null,null,null,null,null,null,null,null,null,null,null,null,null,null,null,null,null,null,null,null,null,39600]
["Услуги по содержанию имущества",null,null,null,null,null,null,null,null,null,null,null,null,null,null,null,null,null,null,null,null,null,null,null,null,null,null,null,null,null,null,null,null,null,null,null,null,null,null,null,null,null,null,null,"х","х","х","х","244","225",{"$f":"CF93+CG93+DL93","v":80000},null,null,null,null,null,null,null,null,null,null,null,null,null,null,null,null,null,null,null,null,null,null,null,null,null,null,null,null,null,null,null,null,null,{"$f":"CG94","v":80000}]
["Услуги по содержанию имущества",null,null,null,null,null,null,null,null,null,null,null,null,null,null,null,null,null,null,null,null,null,null,null,null,null,null,null,null,null,null,null,null,null,null,null,null,null,null,null,null,null,null,null,"07","09","0210060440",null,"244","225",{"$f":"CG94","v":80000},null,null,null,null,null,null,null,null,null,null,null,null,null,null,null,null,null,null,null,null,null,null,null,null,null,null,null,null,null,null,null,null,null,80000]
["Прочие работы, услуги",null,null,null,null,null,null,null,null,null,null,null,null,null,null,null,null,null,null,null,null,null,null,null,null,null,null,null,null,null,null,null,null,null,null,null,null,null,null,null,null,null,null,null,"х","х","х","х","244","226",{"$f":"CF95+CG95+DL95","v":289000},null,null,null,null,null,null,null,null,null,null,null,null,null,null,null,null,null,null,null,null,null,null,null,null,null,null,null,null,null,null,null,null,{"$f":"CF98+CF100","v":119000},{"$f":"CG96+CG97+CG98+CG99+CG100","v":76000},null,null,null,null,null,null,null,null,null,null,null,null,null,null,null,null,null,null,null,null,null,null,null,null,null,null,null,null,null,null,{"$f":"DL97","v":94000}]
["Прочие работы, услуги",null,null,null,null,null,null,null,null,null,null,null,null,null,null,null,null,null,null,null,null,null,null,null,null,null,null,null,null,null,null,null,null,null,null,null,null,null,null,null,null,null,null,null,"07","09","0210060440",null,"244","226",{"$f":"CG96","v":76000},null,null,null,null,null,null,null,null,null,null,null,null,null,null,null,null,null,null,null,null,null,null,null,null,null,null,null,null,null,null,null,null,null,76000]
["Прочие работы, услуги",null,null,null,null,null,null,null,null,null,null,null,null,null,null,null,null,null,null,null,null,null,null,null,null,null,null,null,null,null,null,null,null,null,null,null,null,null,null,null,null,null,null,null,null,null,"0000000000",null,"244","226",{"$f":"DL97","v":94000},null,null,null,null,null,null,null,null,null,null,null,null,null,null,null,null,null,null,null,null,null,null,null,null,null,null,null,null,null,null,null,null,null,0,null,null,null,null,null,null,null,null,null,null,null,null,null,null,null,null,null,null,null,null,null,null,null,null,null,null,null,null,null,null,94000]
["Прочие работы, услуги",null,null,null,null,null,null,null,null,null,null,null,null,null,null,null,null,null,null,null,null,null,null,null,null,null,null,null,null,null,null,null,null,null,null,null,null,null,null,null,null,null,null,null,"07","02","0210060300",null,"244","226",{"$f":"CF98","v":90000},null,null,null,null,null,null,null,null,null,null,null,null,null,null,null,null,null,null,null,null,null,null,null,null,null,null,null,null,null,null,null,null,90000,0]
["Прочие работы, услуги",null,null,null,null,null,null,null,null,null,null,null,null,null,null,null,null,null,null,null,null,null,null,null,null,null,null,null,null,null,null,null,null,null,null,null,null,null,null,null,null,null,null,null,"07","09","0210060340",null,"244","226",{"$f":"CG99","v":0}]
["Прочие расходы,услуги",null,null,null,null,null,null,null,null,null,null,null,null,null,null,null,null,null,null,null,null,null,null,null,null,null,null,null,null,null,null,null,null,null,null,null,null,null,null,null,null,null,null,null,"07","01","0210060350",null,"244","226",{"$f":"CF100","v":29000},null,null,null,null,null,null,null,null,null,null,null,null,null,null,null,null,null,null,null,null,null,null,null,null,null,null,null,null,null,null,null,null,29000,0]
["Увеличение стоимости материальных запасов",null,null,null,null,null,null,null,null,null,null,null,null,null,null,null,null,null,null,null,null,null,null,null,null,null,null,null,null,null,null,null,null,null,null,null,null,null,null,null,null,null,null,null,"х","х","х","х","244","340",{"$f":"CF101+CG101+DL101","v":1584298.3599999999},null,null,null,null,null,null,null,null,null,null,null,null,null,null,null,null,null,null,null,null,null,null,null,null,null,null,null,null,null,null,null,null,{"$f":"CF103+CF104","v":433000},{"$f":"CG102+CG106+CG105","v":529400},null,null,null,null,null,null,null,null,null,null,null,null,null,null,null,null,null,null,null,null,null,null,null,null,null,null,null,null,null,null,{"$f":"DL107","v":621898.36}]
["Увеличение стоимости материальных запасов",null,null,null,null,null,null,null,null,null,null,null,null,null,null,null,null,null,null,null,null,null,null,null,null,null,null,null,null,null,null,null,null,null,null,null,null,null,null,null,null,null,null,null,"07","09","0210060440",null,"244","340",{"$f":"CG102","v":335400},null,null,null,null,null,null,null,null,null,null,null,null,null,null,null,null,null,null,null,null,null,null,null,null,null,null,null,null,null,null,null,null,null,335400]
["Увеличение стоимости материальных запасов",null,null,null,null,null,null,null,null,null,null,null,null,null,null,null,null,null,null,null,null,null,null,null,null,null,null,null,null,null,null,null,null,null,null,null,null,null,null,null,null,null,null,null,"07","02","0210060300",null,"244","340",{"$f":"CF103","v":127000},null,null,null,null,null,null,null,null,null,null,null,null,null,null,null,null,null,null,null,null,null,null,null,null,null,null,null,null,null,null,null,null,127000]
["Увеличение стоимости материальных запасов",null,null,null,null,null,null,null,null,null,null,null,null,null,null,null,null,null,null,null,null,null,null,null,null,null,null,null,null,null,null,null,null,null,null,null,null,null,null,null,null,null,null,null,"07","01","0210060350",null,"244","340",{"$f":"CF104","v":306000},null,null,null,null,null,null,null,null,null,null,null,null,null,null,null,null,null,null,null,null,null,null,null,null,null,null,null,null,null,null,null,null,306000]
["Увеличение стоимости материальных запасов",null,null,null,null,null,null,null,null,null,null,null,null,null,null,null,null,null,null,null,null,null,null,null,null,null,null,null,null,null,null,null,null,null,null,null,null,null,null,null,null,null,null,null,"07","01","0210060410",null,"244","340",{"$f":"CG105","v":194000},null,null,null,null,null,null,null,null,null,null,null,null,null,null,null,null,null,null,null,null,null,null,null,null,null,null,null,null,null,null,null,null,null,194000]
["Увеличение стоимости материальных запасов",null,null,null,null,null,null,null,null,null,null,null,null,null,null,null,null,null,null,null,null,null,null,null,null,null,null,null,null,null,null,null,null,null,null,null,null,null,null,null,null,null,null,null,null,null,null,null,"244","340",{"$f":"CG106","v":0}]
["Увеличение стоимости материальных запасов",null,null,null,null,null,null,null,null,null,null,null,null,null,null,null,null,null,null,null,null,null,null,null,null,null,null,null,null,null,null,null,null,null,null,null,null,null,null,null,null,null,null,null,"00","00","0000000000",null,"244","340",{"$f":"DL107","v":621898.36},null,null,null,null,null,null,null,null,null,null,null,null,null,null,null,null,null,null,null,null,null,null,null,null,null,null,null,null,null,null,null,null,null,null,null,null,null,null,null,null,null,null,null,null,null,null,null,null,null,null,null,null,null,null,null,null,null,null,null,null,null,null,null,null,621898.36]
["Поступление финансовых активов, всего",null,null,null,null,null,null,null,null,null,null,null,null,null,null,null,null,null,null,null,null,null,null,null,null,null,null,null,null,null,null,null,null,null,null,null,null,null,null,null,null,null,null,300,"х","х","х","х","х","х",{"$f":"CF108+CG108+DL108","v":25806898.359999999},null,null,null,null,null,null,null,null,null,null,null,null,null,null,null,null,null,null,null,null,null,null,null,null,null,null,null,null,null,null,null,null,22026000,3058000,null,null,null,null,null,null,null,null,null,null,null,null,null,null,null,null,null,null,null,null,null,null,null,null,null,null,null,null,null,null,722898.36]
["из них:",null,null,null,null,null,null,null,null,null,null,null,null,null,null,null,null,null,null,null,null,null,null,null,null,null,null,null,null,null,null,null,null,null,null,null,null,null,null,null,null,null,null,null,"х","х","х",null,null,null,{"$f":"SUM(BQ109:DZ109)","v":0},null,null,null,null,null,null,null,null,null,null,null,null,null,null,null,null,null,null,null,null,null,null,null,null,null,null,null,null,null,null,null,null,"0,00","0,00",null,null,null,null,null,null,null,null,null,null,null,null,null,null,null,null,null,null,null,null,null,null,null,null,null,null,null,null,null,null,"0,00"]
["увеличение остатков средств ",null,null,null,null,null,null,null,null,null,null,null,null,null,null,null,null,null,null,null,null,null,null,null,null,null,null,null,null,null,null,null,null,null,null,null,null,null,null,null,null,null,null,310,"х","х","х",null,null,"х",{"$f":"CF110+CG110+DL110","v":25806898.359999999},null,null,null,null,null,null,null,null,null,null,null,null,null,null,null,null,null,null,null,null,null,null,null,null,null,null,null,null,null,null,null,null,22026000,3058000,null,null,null,null,null,null,null,null,null,null,null,null,null,null,null,null,null,null,null,null,null,null,null,null,null,null,null,null,null,null,722898.36]
["прочие поступления",null,null,null,null,null,null,null,null,null,null,null,null,null,null,null,null,null,null,null,null,null,null,null,null,null,null,null,null,null,null,null,null,null,null,null,null,null,null,null,null,null,null,320,"х","х","х",null,null,null,{"$f":"SUM(BQ111:DZ111)","v":0},null,null,null,null,null,null,null,null,null,null,null,null,null,null,null,null,null,null,null,null,null,null,null,null,null,null,null,null,null,null,null,null,0,0,null,null,null,null,null,null,null,null,null,null,null,null,null,null,null,null,null,null,null,null,null,null,null,null,null,null,null,null,null,null,"0,00"]
["Выбытие финансовых активов, всего",null,null,null,null,null,null,null,null,null,null,null,null,null,null,null,null,null,null,null,null,null,null,null,null,null,null,null,null,null,null,null,null,null,null,null,null,null,null,null,null,null,null,400,"х","х","х","х","х","х",{"$f":"CF112+CG112+DL112","v":25806898.359999999},null,null,null,null,null,null,null,null,null,null,null,null,null,null,null,null,null,null,null,null,null,null,null,null,null,null,null,null,null,null,null,null,22026000,3058000,null,null,null,null,null,null,null,null,null,null,null,null,null,null,null,null,null,null,null,null,null,null,null,null,null,null,null,null,null,null,722898.36]
["из них:",null,null,null,null,null,null,null,null,null,null,null,null,null,null,null,null,null,null,null,null,null,null,null,null,null,null,null,null,null,null,null,null,null,null,null,null,null,null,null,null,null,null,null,"х","х","х",null,null,null,{"$f":"SUM(BQ113:DZ113)","v":0},null,null,null,null,null,null,null,null,null,null,null,null,null,null,null,null,null,null,null,null,null,null,null,null,null,null,null,null,null,null,null,null,0,0,null,null,null,null,null,null,null,null,null,null,null,null,null,null,null,null,null,null,null,null,null,null,null,null,null,null,null,null,null,null,"0,00"]
["уменьшение остатков средств ",null,null,null,null,null,null,null,null,null,null,null,null,null,null,null,null,null,null,null,null,null,null,null,null,null,null,null,null,null,null,null,null,null,null,null,null,null,null,null,null,null,null,410,"х","х","х",null,null,"х",{"$f":"CF114+CG114+DL114","v":25806898.359999999},null,null,null,null,null,null,null,null,null,null,null,null,null,null,null,null,null,null,null,null,null,null,null,null,null,null,null,null,null,null,null,null,22026000,3058000,null,null,null,null,null,null,null,null,null,null,null,null,null,null,null,null,null,null,null,null,null,null,null,null,null,null,null,null,null,null,722898.36]
["прочие выбытие",null,null,null,null,null,null,null,null,null,null,null,null,null,null,null,null,null,null,null,null,null,null,null,null,null,null,null,null,null,null,null,null,null,null,null,null,null,null,null,null,null,null,420,"х","х","х"]
["Остаток средств на начало года",null,null,null,null,null,null,null,null,null,null,null,null,null,null,null,null,null,null,null,null,null,null,null,null,null,null,null,null,null,null,null,null,null,null,null,null,null,null,null,null,null,null,500,"х","х","х","х","х","х",null,null,null,null,null,null,null,null,null,null,null,null,null,null,null,null,null,null,null,null,null,null,null,null,null,null,null,null,null,null,null,null,null,"х","х"]
["Остаток средств на конец года",null,null,null,null,null,null,null,null,null,null,null,null,null,null,null,null,null,null,null,null,null,null,null,null,null,null,null,null,null,null,null,null,null,null,null,null,null,null,null,null,null,null,600,"х","х","х","х","х","х",{"$f":"CF117+CG117+DL117","v":0},null,null,null,null,null,null,null,null,null,null,null,null,null,null,null,null,null,null,null,null,null,null,null,null,null,null,null,null,null,null,null,null,null,null,null,null,null,null,null,null,null,null,null,null,null,null,null,null,null,null,null,null,null,null,null,null,null,null,null,null,null,null,null,null,0]
[]
["По строкам 500, 600 в графах 5 - 12 указываются планируемые суммы остатков средств на начало и на конец планируемого года либо указываются фактические остатки средств при внесении изменений в утвержденный план после завершения отчетного финансового года;"]
[]
["в графе 3 по строкам 110 - 180, 300 - 420 указываются коды классификации сектора государственного управления, по строкам 210 - 280 указываются коды видов расходов бюджетов;"]
[]
["по строке 120 в графе 12 указываются плановые показатели по доходам от грантов, предоставление которых из соответствующего бюджета бюджетной системы Российской Федерации осуществляется по кодам 613 \"Гранты в Форме субсидии бюджетным учреждениям\" или 623 \"Гранты в Форме субсидии автономным учреждениям\" видов расходов бюджетов."]

{"sheet":"4","index":5,"n_rows":51,"n_cols":118,"rows_kept":51,"cut":false,"hidden":false,"merged":[[1,104,1,117],[2,0,2,117],[4,0,8,42],[4,43,8,43],[4,44,8,60],[4,61,6,64],[4,65,6,65],[4,66,4,117],[5,66,6,88],[5,89,5,117],[6,89,6,114],[6,115,6,117],[7,66,8,81],[7,82,8,87],[7,88,8,88],[7,89,7,102],[7,104,7,114],[9,0,9,42],[9,44,9,60],[9,66,9,81],[9,82,9,87],[9,89,9,102],[9,104,9,114],[10,0,10,42],[10,44,10,60],[10,66,10,81],[10,82,10,87],[10,89,10,102],[10,104,10,114],[12,104,12,114],[11,0,11,42],[11,44,11,60],[11,66,11,81],[11,82,11,87],[11,89,11,102],[11,104,11,114],[13,82,13,87],[13,88,13,93],[13,94,13,101],[12,0,12,42],[12,44,12,60],[12,66,12,81],[12,82,12,87],[12,89,12,102],[13,103,13,108],[13,109,13,114],[14,0,14,42],[14,66,14,78],[14,82,14,87],[14,89,14,101],[14,104,14,114],[13,0,13,42],[13,44,13,60],[13,66,13,81],[15,0,15,42],[15,66,15,78],[15,82,15,87],[15,89,15,101],[15,104,15,114],[16,0,16,42],[16,66,16,78],[16,82,16,87],[16,89,16,101],[16,104,16,114],[17,0,17,42],[17,66,17,78],[17,82,17,87],[17,89,17,101],[17,104,17,114],[18,0,18,42],[18,66,18,78],[18,82,18,87],[18,89,18,101],[18,104,18,114],[19,0,19,42],[19,66,19,78],[19,82,19,87],[19,89,19,101],[19,104,19,114],[20,0,20,42],[20,66,20,78],[20,82,20,87],[20,89,20,101],[20,104,20,114],[21,0,21,42],[21,66,21,78],[21,82,21,87],[21,89,21,101],[21,104,21,114],[22,0,22,42],[22,66,22,78],[22,82,22,87],[22,89,22,101],[22,104,22,114],[23,0,23,42],[23,66,23,78],[23,82,23,87],[23,89,23,101],[23,104,23,114],[24,0,24,42],[24,66,24,78],[24,82,24,87],[24,89,24,101],[24,104,24,114],[25,0,25,42],[25,66,25,78],[25,82,25,87],[25,89,25,101],[25,104,25,114],[26,0,26,42],[26,66,26,78],[26,82,26,87],[26,89,26,101],[26,104,26,114],[27,1,27,43],[27,66,27,78],[27,82,27,87],[27,89,27,101],[27,104,27,114],[28,0,28,42],[28,66,28,78],[28,82,28,87],[28,89,28,101],[28,104,28,114],[29,0,29,42],[29,66,29,78],[29,82,29,87],[29,89,29,101],[29,104,29,114],[30,0,30,42],[30,66,30,78],[30,82,30,87],[30,89,30,101],[30,104,30,114],[31,0,31,42],[31,66,31,78],[31,82,31,87],[31,89,31,101],[31,104,31,114],[32,0,32,42],[32,66,32,78],[32,82,32,87],[32,89,32,101],[32,104,32,114],[33,0,33,42],[33,44,33,60],[33,82,33,87],[33,89,33,102],[33,104,33,114],[35,0,35,117],[37,0,37,117],[39,0,39,117],[41,0,41,117],[42,0,42,117],[43,0,43,117],[44,0,44,117],[45,0,45,117],[46,0,46,117],[47,0,47,117],[48,0,48,117],[49,0,49,117],[50,0,50,117]]}
[]
[null,null,null,null,null,null,null,null,null,null,null,null,null,null,null,null,null,null,null,null,null,null,null,null,null,null,null,null,null,null,null,null,null,null,null,null,null,null,null,null,null,null,null,null,null,null,null,null,null,null,null,null,null,null,null,null,null,null,null,null,null,null,null,null,null,null,null,null,null,null,null,null,null,null,null,null,null,null,null,null,null,null,null,null,null,null,null,null,null,null,null,null,null,null,null,null,null,null,null,null,null,null,null,null,"Таблица 2.3"]
["IV. Показатели выплат по расходам на закупку товаров, работ, услуг учреждения на                       2018г."]
[]
["Наименование показателя",null,null,null,null,null,null,null,null,null,null,null,null,null,null,null,null,null,null,null,null,null,null,null,null,null,null,null,null,null,null,null,null,null,null,null,null,null,null,null,null,null,null,"Код строки","Год начала закупки",null,null,null,null,null,null,null,null,null,null,null,null,null,null,null,null,"Коды                                           бюджетной классификации                                     Российской Федерации",null,null,null,"Код                                                               дополнительной                                      классификации","Сумма выплат по расходам на закупку товаров, работ и услуг, руб."]
[null,null,null,null,null,null,null,null,null,null,null,null,null,null,null,null,null,null,null,null,null,null,null,null,null,null,null,null,null,null,null,null,null,null,null,null,null,null,null,null,null,null,null,null,null,null,null,null,null,null,null,null,null,null,null,null,null,null,null,null,null,null,null,null,null,null,"всего на закупки",null,null,null,null,null,null,null,null,null,null,null,null,null,null,null,null,null,null,null,null,null,null,"в том числе"]
[null,null,null,null,null,null,null,null,null,null,null,null,null,null,null,null,null,null,null,null,null,null,null,null,null,null,null,null,null,null,null,null,null,null,null,null,null,null,null,null,null,null,null,null,null,null,null,null,null,null,null,null,null,null,null,null,null,null,null,null,null,null,null,null,null,null,null,null,null,null,null,null,null,null,null,null,null,null,null,null,null,null,null,null,null,null,null,null,null,"в соответствии с Федеральным законом от 5 апреля 2013 г. № 44 -ФЗ \"О контрактной системе в сферезакупок товаров, работ, услуг для обеспечения государственных и муниципальных нужд\"",null,null,null,null,null,null,null,null,null,null,null,null,null,null,null,null,null,null,null,null,null,null,null,null,null,"в соответствии с Федеральным законом от 18 июля 2011 г. № 223 -ФЗ \"О закупках товаров, работ, услуг отдельными видами юридических лиц\""]
[null,null,null,null,null,null,null,null,null,null,null,null,null,null,null,null,null,null,null,null,null,null,null,null,null,null,null,null,null,null,null,null,null,null,null,null,null,null,null,null,null,null,null,null,null,null,null,null,null,null,null,null,null,null,null,null,null,null,null,null,null,"Код раздела","код подраздела","Код целевой статьи расходов","код вида расходов              ( для выплат)","Код экономической                          классификации  расходов              ( для выплат)","на 2018г. очередной финансовый год",null,null,null,null,null,null,null,null,null,null,null,null,null,null,null,"на 2019г. 1-й год планового период",null,null,null,null,null,"на 2020г. 2-й год планового период","на 2018г. очередной финансовый год",null,null,null,null,null,null,null,null,null,null,null,null,null,"на 2019г. 1-й год планового период","на 2020г. 2-й год планового период",null,null,null,null,null,null,null,null,null,null,"на 2018г. очередной финансовый год","на 2019г. 1-й год планового период","на 2020г. 2-й год планового период"]
[]
[1,null,null,null,null,null,null,null,null,null,null,null,null,null,null,null,null,null,null,null,null,null,null,null,null,null,null,null,null,null,null,null,null,null,null,null,null,null,null,null,null,null,null,2,3,null,null,null,null,null,null,null,null,null,null,null,null,null,null,null,null,4,5,6,7,8,9,null,null,null,null,null,null,null,null,null,null,null,null,null,null,null,10,null,null,null,null,null,11,12,null,null,null,null,null,null,null,null,null,null,null,null,null,13,14,null,null,null,null,null,null,null,null,null,null,15,16,17]
["Выплаты по расходам на закупку товаров, работ, услуг всего:",null,null,null,null,null,null,null,null,null,null,null,null,null,null,null,null,null,null,null,null,null,null,null,null,null,null,null,null,null,null,null,null,null,null,null,null,null,null,null,null,null,null,"0001","х",null,null,null,null,null,null,null,null,null,null,null,null,null,null,null,null,null,null,null,null,"Х",{"$f":"BO14","v":2518270.36},null,null,null,null,null,null,null,null,null,null,null,null,null,null,null,{"$f":"CE14","v":2013898.3599999999},null,null,null,null,null,{"$f":"CK14","v":2030898.3599999999},{"$f":"CQ14","v":2518270.36},null,null,null,null,null,null,null,null,null,null,null,null,null,{"$f":"CZ14","v":2013898.3599999999},{"$f":"DF14","v":2030898.3599999999}]
["в том числе: на оплату контрактов, заключенных до начала очередного финансового года",null,null,null,null,null,null,null,null,null,null,null,null,null,null,null,null,null,null,null,null,null,null,null,null,null,null,null,null,null,null,null,null,null,null,null,null,null,null,null,null,null,null,"1001","х",null,null,null,null,null,null,null,null,null,null,null,null,null,null,null,null,null,null,null,null,"Х"]
[]
["на закупку товаров, работ, услуг по году начала закупки:",null,null,null,null,null,null,null,null,null,null,null,null,null,null,null,null,null,null,null,null,null,null,null,null,null,null,null,null,null,null,null,null,null,null,null,null,null,null,null,null,null,null,"2001","2018",null,null,null,null,null,null,null,null,null,null,null,null,null,null,null,null,null,null,null,null,"Х",{"$f":"BO15+BO16+BO17+BO18+BO19+BO20+BO21+BO22+BO23+BO24+BO27+BO29+BO30+BO31+BO32+BO33+BO28+BO25+BO26","v":2518270.36},null,null,null,null,null,null,null,null,null,null,null,null,null,null,null,{"$f":"CE15+CE16+CE17+CE18+CE19+CE20+CE21+CE22+CE23+CE24+CE27+CE29+CE30+CE31+CE32+CE33+CE28+CE25","v":2013898.3599999999},null,null,null,null,null,{"$f":"CK15+CK16+CK17+CK18+CK19+CK20+CK21+CK22+CK23+CK24+CK27+CK29+CK30+CK31+CK32+CK33+CK28+CK25","v":2030898.3599999999},1774777.6,null,null,null,null,{"$f":"CL15+CL16+CL17+CL18+CL19+CL20+CL21+CL22+CL23+CL24+CL27+CL29+CL30+CL31+CL32+CL33+CL28+CL25+CL26","v":2518270.36},null,null,null,null,null,null,null,null,{"$f":"CZ15+CZ16+CZ17+CZ18+CZ19+CZ20+CZ21+CZ22+CZ23+CZ24+CZ27+CZ29+CZ30+CZ31+CZ32+CZ33+CZ28+CZ25","v":2013898.3599999999},1756000,null,null,null,null,{"$f":"DA15+DA16+DA17+DA18+DA19+DA20+DA21+DA22+DA23+DA24+DA27+DA29+DA30+DA32+DA33+DA28+DA31+DA25","v":2030898.3599999999}]
["Услуги связи",null,null,null,null,null,null,null,null,null,null,null,null,null,null,null,null,null,null,null,null,null,null,null,null,null,null,null,null,null,null,null,null,null,null,null,null,null,null,null,null,null,null,null,null,null,null,null,null,null,null,null,null,null,null,null,null,null,null,null,null,"07","02","0210060340","244","221",76641,null,null,null,null,null,null,null,null,null,null,null,null,null,null,null,null,null,null,null,null,null,null,76641]
["Услуги связи",null,null,null,null,null,null,null,null,null,null,null,null,null,null,null,null,null,null,null,null,null,null,null,null,null,null,null,null,null,null,null,null,null,null,null,null,null,null,null,null,null,null,null,null,null,null,null,null,null,null,null,null,null,null,null,null,null,null,null,null,"07","02","0210060300","244","221",27795.37,null,null,null,null,null,null,null,null,null,null,null,null,null,null,null,35000,null,null,null,null,null,35000,27795.37,null,null,null,null,null,null,null,null,null,null,null,null,null,35000,35000]
["Услуги связи",null,null,null,null,null,null,null,null,null,null,null,null,null,null,null,null,null,null,null,null,null,null,null,null,null,null,null,null,null,null,null,null,null,null,null,null,null,null,null,null,null,null,null,null,null,null,null,null,null,null,null,null,null,null,null,null,null,null,null,null,"07","02","0210060350","244","221",2000,null,null,null,null,null,null,null,null,null,null,null,null,null,null,null,3000,null,null,null,null,null,3000,2000,null,null,null,null,null,null,null,null,null,null,null,null,null,3000,3000]
["Арендная плата за пользование имуществом",null,null,null,null,null,null,null,null,null,null,null,null,null,null,null,null,null,null,null,null,null,null,null,null,null,null,null,null,null,null,null,null,null,null,null,null,null,null,null,null,null,null,null,null,null,null,null,null,null,null,null,null,null,null,null,null,null,null,null,null,"07","09","0210060440","244","224",39600,null,null,null,null,null,null,null,null,null,null,null,null,null,null,null,39600,null,null,null,null,null,39600,39600,null,null,null,null,null,null,null,null,null,null,null,null,null,39600,39600]
["Услуги по содержанию имущества",null,null,null,null,null,null,null,null,null,null,null,null,null,null,null,null,null,null,null,null,null,null,null,null,null,null,null,null,null,null,null,null,null,null,null,null,null,null,null,null,null,null,null,null,null,null,null,null,null,null,null,null,null,null,null,null,null,null,null,null,"07","09","0210060440","244","225",80000,null,null,null,null,null,null,null,null,null,null,null,null,null,null,null,80000,null,null,null,null,null,80000,80000,null,null,null,null,null,null,null,null,null,null,null,null,null,80000,80000]
["Прочие работы, услуги",null,null,null,null,null,null,null,null,null,null,null,null,null,null,null,null,null,null,null,null,null,null,null,null,null,null,null,null,null,null,null,null,null,null,null,null,null,null,null,null,null,null,null,null,null,null,null,null,null,null,null,null,null,null,null,null,null,null,null,null,"07","09","9070065730","244","226",296360,null,null,null,null,null,null,null,null,null,null,null,null,null,null,null,0,null,null,null,null,null,0,296360,null,null,null,null,null,null,null,null,null,null,null,null,null,0,0]
["Прочие работы, услуги",null,null,null,null,null,null,null,null,null,null,null,null,null,null,null,null,null,null,null,null,null,null,null,null,null,null,null,null,null,null,null,null,null,null,null,null,null,null,null,null,null,null,null,null,null,null,null,null,null,null,null,null,null,null,null,null,null,null,null,null,"07","09","0210060440","244","226",78988.399999999994,null,null,null,null,null,null,null,null,null,null,null,null,null,null,null,76000,null,null,null,null,null,76000,78988.399999999994,null,null,null,null,null,null,null,null,null,null,null,null,null,76000,76000]
["Прочие работы, услуги",null,null,null,null,null,null,null,null,null,null,null,null,null,null,null,null,null,null,null,null,null,null,null,null,null,null,null,null,null,null,null,null,null,null,null,null,null,null,null,null,null,null,null,null,null,null,null,null,null,null,null,null,null,null,null,null,null,null,null,null,"00","00","000000000","244","226",94000,null,null,null,null,null,null,null,null,null,null,null,null,null,null,null,94000,null,null,null,null,null,94000,94000,null,null,null,null,null,null,null,null,null,null,null,null,null,94000,94000]
["Прочие работы, услуги",null,null,null,null,null,null,null,null,null,null,null,null,null,null,null,null,null,null,null,null,null,null,null,null,null,null,null,null,null,null,null,null,null,null,null,null,null,null,null,null,null,null,null,null,null,null,null,null,null,null,null,null,null,null,null,null,null,null,null,null,"07","02","0210060340","244","226",3000,null,null,null,null,null,null,null,null,null,null,null,null,null,null,null,null,null,null,null,null,null,null,3000]
["Прочие работы, услуги",null,null,null,null,null,null,null,null,null,null,null,null,null,null,null,null,null,null,null,null,null,null,null,null,null,null,null,null,null,null,null,null,null,null,null,null,null,null,null,null,null,null,null,null,null,null,null,null,null,null,null,null,null,null,null,null,null,null,null,null,"07","02","0210060300","244","226",100789.08,null,null,null,null,null,null,null,null,null,null,null,null,null,null,null,90000,null,null,null,null,null,90000,100789.08,null,null,null,null,null,null,null,null,null,null,null,null,null,90000,90000]
["Прочие работы, услуги",null,null,null,null,null,null,null,null,null,null,null,null,null,null,null,null,null,null,null,null,null,null,null,null,null,null,null,null,null,null,null,null,null,null,null,null,null,null,null,null,null,null,null,null,null,null,null,null,null,null,null,null,null,null,null,null,null,null,null,null,"07","02","0210060350","244","226",31000,null,null,null,null,null,null,null,null,null,null,null,null,null,null,null,28000,null,null,null,null,null,29000,31000,null,null,null,null,null,null,null,null,null,null,null,null,null,28000,29000]
["Прочие работы, услуги",null,null,null,null,null,null,null,null,null,null,null,null,null,null,null,null,null,null,null,null,null,null,null,null,null,null,null,null,null,null,null,null,null,null,null,null,null,null,null,null,null,null,null,null,null,null,null,null,null,null,null,null,null,null,null,null,null,null,null,null,"07","07","4120065900","244","226",113697,null,null,null,null,null,null,null,null,null,null,null,null,null,null,null,0,null,null,null,null,null,0,113697,null,null,null,null,null,null,null,null,null,null,null,null,null,0,0]
["Прочие работы, услуги",null,null,null,null,null,null,null,null,null,null,null,null,null,null,null,null,null,null,null,null,null,null,null,null,null,null,null,null,null,null,null,null,null,null,null,null,null,null,null,null,null,null,null,null,null,null,null,null,null,null,null,null,null,null,null,null,null,null,null,null,"07","09","0230065610","244","226",0,null,null,null,null,null,null,null,null,null,null,null,null,null,null,null,0,null,null,null,null,null,0,0,null,null,null,null,null,null,null,null,null,null,null,null,null,0,0]
[]
["Увеличение стоимости материальных запасов",null,null,null,null,null,null,null,null,null,null,null,null,null,null,null,null,null,null,null,null,null,null,null,null,null,null,null,null,null,null,null,null,null,null,null,null,null,null,null,null,null,null,null,null,null,null,null,null,null,null,null,null,null,null,null,null,null,null,null,null,"07","09","0210060440","244","340",338085.6,null,null,null,null,null,null,null,null,null,null,null,null,null,null,null,335400,null,null,null,null,null,335400,338085.6,null,null,null,null,null,null,null,null,null,null,null,null,null,335400,335400]
["Увеличение стоимости материальных запасов",null,null,null,null,null,null,null,null,null,null,null,null,null,null,null,null,null,null,null,null,null,null,null,null,null,null,null,null,null,null,null,null,null,null,null,null,null,null,null,null,null,null,null,null,null,null,null,null,null,null,null,null,null,null,null,null,null,null,null,null,"07","01","0210060350","244","340",297000,null,null,null,null,null,null,null,null,null,null,null,null,null,null,null,294000,null,null,null,null,null,306000,297000,null,null,null,null,null,null,null,null,null,null,null,null,null,294000,306000]
["Увеличение стоимости материальных запасов",null,null,null,null,null,null,null,null,null,null,null,null,null,null,null,null,null,null,null,null,null,null,null,null,null,null,null,null,null,null,null,null,null,null,null,null,null,null,null,null,null,null,null,null,null,null,null,null,null,null,null,null,null,null,null,null,null,null,null,null,"07","01","0210060410","244",340,195000,null,null,null,null,null,null,null,null,null,null,null,null,null,null,null,194000,null,null,null,null,null,194000,195000,null,null,null,null,null,null,null,null,null,null,null,null,null,194000,194000]
["Увеличение стоимости материальных запасов",null,null,null,null,null,null,null,null,null,null,null,null,null,null,null,null,null,null,null,null,null,null,null,null,null,null,null,null,null,null,null,null,null,null,null,null,null,null,null,null,null,null,null,null,null,null,null,null,null,null,null,null,null,null,null,null,null,null,null,null,"07","02","0210060300","244",340,120415.55,null,null,null,null,null,null,null,null,null,null,null,null,null,null,null,123000,null,null,null,null,null,127000,120415.55,null,null,null,null,null,null,null,null,null,null,null,null,null,123000,127000]
["Увеличение стоимости материальных запасов",null,null,null,null,null,null,null,null,null,null,null,null,null,null,null,null,null,null,null,null,null,null,null,null,null,null,null,null,null,null,null,null,null,null,null,null,null,null,null,null,null,null,null,null,null,null,null,null,null,null,null,null,null,null,null,null,null,null,null,null,"00","00","000000000","244",340,623898.36,null,null,null,null,null,null,null,null,null,null,null,null,null,null,null,621898.36,null,null,null,null,null,621898.36,623898.36,null,null,null,null,null,null,null,null,null,null,null,null,null,621898.36,621898.36]
[null,null,null,null,null,null,null,null,null,null,null,null,null,null,null,null,null,null,null,null,null,null,null,null,null,null,null,null,null,null,null,null,null,null,null,null,null,null,null,null,null,null,null,null,null,null,null,null,null,null,null,null,null,null,null,null,null,null,null,null,null,null,null,null,null,"0000000000.244",null,null,null,null,null,null,null,null,null,null,null,null,null,null,null,null,0,null,null,null,null,null,0,0,null,null,null,null,null,null,null,null,null,null,null,null,null,0,0]
[]
["в графах 8 - 13 указываются: "]
[]
["по строке 1001 - суммы оплаты в соответствующем финансовом году по контрактам (договорам), заключенным до начала очередного финансового года, при этом в графе 8 -10 - указываются суммы оплаты по контрактам, заключенным в соответствии с Федеральным законом от 05.02.2013 № 44-ФЗ  \"О контрактной системе в сферезакупок товаров, работ, услуг для обеспечения государственных и муниципальных нужд\", а в графе 11 - 13 - по договорам, заключенным в соответствии с Федеральным законом от 18.07.2011 № 223-ФЗ  \"О закупках товаров, работ, услуг отдельными видами юридических лиц\";"]
[]
["по строке 2001 - в разрезе года начала закупки указываются суммы планируемых  в соответствующем финансовом году выплат по контрактам (договорам), для заключения которых планируется начать закупку, при этом в графе  8 - 10 - указываются суммы планируемых выплат по контрактам, для заключения которых в соответствующем году согласно Федеральному закону № 44-ФЗ планируется разместить извещение об осуществлении закупки товаров, работ, услуг для обнспечения государственных или муниципальных нужд либо направить приглашение принять участие в определении поставщика (подрядчика, исполнителя) или проект контракта, а в графе 11 - 13 указываются суммы планируемых выплат по договорам, для заключения которых в соответствии с Федеральным законом № 223-ФЗ осуществляется закупка (планируется начать закупку) в порядке, установленном положением о закупке."]
[]
["При этом необходимо обеспечить соотношение следующих показателей:"]
["1) показатели граф 5-13 по строке 0001 должны бвть равны сумме показателей соответствующих граф по строкам 1001 и 2001; "]
["2) показатели графы 5 по строкам 0001, 10001 и 20001 должны быть равны сумме показателей граф 8 и 11 по соответствующим строкам;"]
["3) показатели графы 6 по строкам 0001, 10001 и 20001 должны быть равны сумме показателей граф 9 и 12 по соответствующим строкам;"]
["4) показатели графы 7 по строкам 0001, 10001 и 20001 должны быть равны сумме показателей граф 10 и 13 по соответствующим строкам;"]
["5) показатель по строке 0001 графы 8 - 10 по очередному году формирования показателя выплат по расходам на закупку товаров, работ, услуг:"]
["а) для бюджетных учреждений не могут быть меньше показателя по строке 260 в графах 6 - 10 раздела III на соответствующий год; "]
["б) для автономных учреждений не могут быть меньше показателя по строке 260 в графе 9 раздела III на соответствующий год; "]
["6) для бюджетных учреждений показатели строки 0001 графы 11 - 13 не могут быть больше показателя строки 260 графы 11 раздела iii на соответствующий год;"]
["7) показатели строки 0001 графы 11 - 13 должны быть равны нулю, если все закупки товаров, работ и услуг осуществляются в соответствии с Федеральным законом № 44-ФЗ."]

{"sheet":"5","index":6,"n_rows":39,"n_cols":94,"rows_kept":39,"cut":false,"hidden":false,"merged":[[2,83,2,107],[3,0,3,107],[4,0,4,107],[5,0,5,107],[7,0,7,77],[7,78,7,92],[7,93,7,107],[8,0,8,77],[8,78,8,89],[8,93,8,107],[9,0,9,77],[9,78,9,92],[9,93,9,107],[10,0,10,77],[10,78,10,89],[10,93,10,107],[11,0,11,77],[11,78,11,89],[11,93,11,107],[12,0,12,77],[12,78,12,92],[12,93,12,107],[14,83,14,107],[15,0,15,107],[16,0,16,77],[16,78,16,92],[16,93,16,107],[17,0,17,77],[17,78,17,89],[17,93,17,107],[18,0,18,77],[18,78,18,92],[18,93,18,107],[19,0,19,77],[19,78,19,89],[19,93,19,107],[20,0,20,77],[20,78,20,92],[20,93,20,107],[23,65,23,77],[23,89,23,107],[24,66,24,77],[24,89,24,107],[27,65,27,77],[27,89,27,107],[28,66,28,77],[28,89,28,107],[29,65,29,77],[29,89,29,107],[30,66,30,77],[30,89,30,107],[32,65,32,77],[32,89,32,107],[33,66,33,77],[33,89,33,107],[34,6,34,34],[36,0,36,34]]}
[]
[]
[null,null,null,null,null,null,null,null,null,null,null,null,null,null,null,null,null,null,null,null,null,null,null,null,null,null,null,null,null,null,null,null,null,null,null,null,null,null,null,null,null,null,null,null,null,null,null,null,null,null,null,null,null,null,null,null,null,null,null,null,null,null,null,null,null,null,null,null,null,null,null,null,null,null,null,null,null,null,null,null,null,null,null,"Таблица 3"]
["V . Сведения о средствах, поступающих во временное распоряжение учреждения                                              "]
["На                                 2018 г."]
["(очередной финансовый год)"]
[]
["Наименование показателя",null,null,null,null,null,null,null,null,null,null,null,null,null,null,null,null,null,null,null,null,null,null,null,null,null,null,null,null,null,null,null,null,null,null,null,null,null,null,null,null,null,null,null,null,null,null,null,null,null,null,null,null,null,null,null,null,null,null,null,null,null,null,null,null,null,null,null,null,null,null,null,null,null,null,null,null,null,"Код строки",null,null,null,null,null,null,null,null,null,null,null,null,null,null,"Сумм, руб. (с точностью до двух знаков после запятой - 0,00)"]
[1,null,null,null,null,null,null,null,null,null,null,null,null,null,null,null,null,null,null,null,null,null,null,null,null,null,null,null,null,null,null,null,null,null,null,null,null,null,null,null,null,null,null,null,null,null,null,null,null,null,null,null,null,null,null,null,null,null,null,null,null,null,null,null,null,null,null,null,null,null,null,null,null,null,null,null,null,null,2,null,null,null,null,null,null,null,null,null,null,null,null,null,null,3]
["Остаток средств на начало года",null,null,null,null,null,null,null,null,null,null,null,null,null,null,null,null,null,null,null,null,null,null,null,null,null,null,null,null,null,null,null,null,null,null,null,null,null,null,null,null,null,null,null,null,null,null,null,null,null,null,null,null,null,null,null,null,null,null,null,null,null,null,null,null,null,null,null,null,null,null,null,null,null,null,null,null,null,"010"]
["Остаток средств на конец года",null,null,null,null,null,null,null,null,null,null,null,null,null,null,null,null,null,null,null,null,null,null,null,null,null,null,null,null,null,null,null,null,null,null,null,null,null,null,null,null,null,null,null,null,null,null,null,null,null,null,null,null,null,null,null,null,null,null,null,null,null,null,null,null,null,null,null,null,null,null,null,null,null,null,null,null,null,"020"]
["Поступление",null,null,null,null,null,null,null,null,null,null,null,null,null,null,null,null,null,null,null,null,null,null,null,null,null,null,null,null,null,null,null,null,null,null,null,null,null,null,null,null,null,null,null,null,null,null,null,null,null,null,null,null,null,null,null,null,null,null,null,null,null,null,null,null,null,null,null,null,null,null,null,null,null,null,null,null,null,"030"]
["Выбытие",null,null,null,null,null,null,null,null,null,null,null,null,null,null,null,null,null,null,null,null,null,null,null,null,null,null,null,null,null,null,null,null,null,null,null,null,null,null,null,null,null,null,null,null,null,null,null,null,null,null,null,null,null,null,null,null,null,null,null,null,null,null,null,null,null,null,null,null,null,null,null,null,null,null,null,null,null,"040"]
[]
[null,null,null,null,null,null,null,null,null,null,null,null,null,null,null,null,null,null,null,null,null,null,null,null,null,null,null,null,null,null,null,null,null,null,null,null,null,null,null,null,null,null,null,null,null,null,null,null,null,null,null,null,null,null,null,null,null,null,null,null,null,null,null,null,null,null,null,null,null,null,null,null,null,null,null,null,null,null,null,null,null,null,null,"Таблица 4"]
["VI . Справочная информация"]
["Наименование показателя",null,null,null,null,null,null,null,null,null,null,null,null,null,null,null,null,null,null,null,null,null,null,null,null,null,null,null,null,null,null,null,null,null,null,null,null,null,null,null,null,null,null,null,null,null,null,null,null,null,null,null,null,null,null,null,null,null,null,null,null,null,null,null,null,null,null,null,null,null,null,null,null,null,null,null,null,null,"Код строки",null,null,null,null,null,null,null,null,null,null,null,null,null,null,"Сумма (тыс.рублей)"]
[1,null,null,null,null,null,null,null,null,null,null,null,null,null,null,null,null,null,null,null,null,null,null,null,null,null,null,null,null,null,null,null,null,null,null,null,null,null,null,null,null,null,null,null,null,null,null,null,null,null,null,null,null,null,null,null,null,null,null,null,null,null,null,null,null,null,null,null,null,null,null,null,null,null,null,null,null,null,2,null,null,null,null,null,null,null,null,null,null,null,null,null,null,3]
["Объем публичных обязательств, всего:",null,null,null,null,null,null,null,null,null,null,null,null,null,null,null,null,null,null,null,null,null,null,null,null,null,null,null,null,null,null,null,null,null,null,null,null,null,null,null,null,null,null,null,null,null,null,null,null,null,null,null,null,null,null,null,null,null,null,null,null,null,null,null,null,null,null,null,null,null,null,null,null,null,null,null,null,null,"010"]
["Объем бюджетных инвестиций (в части переданных полномочий государственного заказчика в соответствии с Бюджетным кодексом Российской Федерации), всего:",null,null,null,null,null,null,null,null,null,null,null,null,null,null,null,null,null,null,null,null,null,null,null,null,null,null,null,null,null,null,null,null,null,null,null,null,null,null,null,null,null,null,null,null,null,null,null,null,null,null,null,null,null,null,null,null,null,null,null,null,null,null,null,null,null,null,null,null,null,null,null,null,null,null,null,null,null,"020"]
["объем средств, поступивших во временное распоряжение, всего:",null,null,null,null,null,null,null,null,null,null,null,null,null,null,null,null,null,null,null,null,null,null,null,null,null,null,null,null,null,null,null,null,null,null,null,null,null,null,null,null,null,null,null,null,null,null,null,null,null,null,null,null,null,null,null,null,null,null,null,null,null,null,null,null,null,null,null,null,null,null,null,null,null,null,null,null,null,"030"]
[]
["Руководитель  государственного учреждения"]
["(уполномоченное лицо)",null,null,null,null,null,null,null,null,null,null,null,null,null,null,null,null,null,null,null,null,null,null,null,null,null,null,null,null,null,null,null,null,null,null,null,null,null,null,null,null,null,null,null,null,null,null,null,null,null,null,null,null,null,null,null,null,null,null,null,null,null,null,null,null,"______________________",null,null,null,null,null,null,null,null,null,null,null,null,null,null,null,null,null,null,null,null,null,null,null,"Хураськина С.Т."]
[null,null,null,null,null,null,null,null,null,null,null,null,null,null,null,null,null,null,null,null,null,null,null,null,null,null,null,null,null,null,null,null,null,null,null,null,null,null,null,null,null,null,null,null,null,null,null,null,null,null,null,null,null,null,null,null,null,null,null,null,null,null,null,null,null,null,"(подпись)",null,null,null,null,null,null,null,null,null,null,null,null,null,null,null,null,null,null,null,null,null,null,"(расшифровка подписи)"]
[]
["Руководитель финансово-экономической "]
["службы",null,null,null,null,null,null,null,null,null,null,null,null,null,null,null,null,null,null,null,null,null,null,null,null,null,null,null,null,null,null,null,null,null,null,null,null,null,null,null,null,null,null,null,null,null,null,null,null,null,null,null,null,null,null,null,null,null,null,null,null,null,null,null,null,"______________________",null,null,null,null,null,null,null,null,null,null,null,null,null,null,null,null,null,null,null,null,null,null,null,"Лопатина В.П."]
[null,null,null,null,null,null,null,null,null,null,null,null,null,null,null,null,null,null,null,null,null,null,null,null,null,null,null,null,null,null,null,null,null,null,null,null,null,null,null,null,null,null,null,null,null,null,null,null,null,null,null,null,null,null,null,null,null,null,null,null,null,null,null,null,null,null,"(подпись)",null,null,null,null,null,null,null,null,null,null,null,null,null,null,null,null,null,null,null,null,null,null,"(расшифровка подписи)"]
["Главный бухгалтер ",null,null,null,null,null,null,null,null,null,null,null,null,null,null,null,null,null,null,null,null,null,null,null,null,null,null,null,null,null,null,null,null,null,null,null,null,null,null,null,null,null,null,null,null,null,null,null,null,null,null,null,null,null,null,null,null,null,null,null,null,null,null,null,null,"______________________",null,null,null,null,null,null,null,null,null,null,null,null,null,null,null,null,null,null,null,null,null,null,null,"Лопатина В.П."]
[null,null,null,null,null,null,null,null,null,null,null,null,null,null,null,null,null,null,null,null,null,null,null,null,null,null,null,null,null,null,null,null,null,null,null,null,null,null,null,null,null,null,null,null,null,null,null,null,null,null,null,null,null,null,null,null,null,null,null,null,null,null,null,null,null,null,"(подпись)",null,null,null,null,null,null,null,null,null,null,null,null,null,null,null,null,null,null,null,null,null,null,"(расшифровка подписи)"]
[]
["Исполнитель",null,null,null,null,null,null,null,null,null,null,null,null,null,null,null,null,null,null,null,null,null,null,null,null,null,null,null,null,null,null,null,null,null,null,null,null,null,null,null,null,null,null,null,null,null,null,null,null,null,null,null,null,null,null,null,null,null,null,null,null,null,null,null,null,"______________________",null,null,null,null,null,null,null,null,null,null,null,null,null,null,null,null,null,null,null,null,null,null,null,"Лопатина В.П."]
[null,null,null,null,null,null,null,null,null,null,null,null,null,null,null,null,null,null,null,null,null,null,null,null,null,null,null,null,null,null,null,null,null,null,null,null,null,null,null,null,null,null,null,null,null,null,null,null,null,null,null,null,null,null,null,null,null,null,null,null,null,null,null,null,null,null,"(подпись)",null,null,null,null,null,null,null,null,null,null,null,null,null,null,null,null,null,null,null,null,null,null,"(расшифровка подписи)"]
["тел.",null,null,null,null,null,"884654 31101"]
[]
["\"           \"                                  2018 г. "]
[]
["М.П."]